Workbook

Sheet CWUDFsStorage (hidden)
A1: SH:COVER | B1: SH:Assets-Liab 5-6 | C1: SH:Acct Summary 7-8 | D1: SH:Revenues 9-14 | E1: SH:Expenditures 15-22
A2: 5 | B2: 161 | C2: 126 | D2: 816 | E2: 941
A3: $A$13 | B3: $C$4 | C3: $C$9 | D3: $C$5 | E3: $C$5
A4: 7016205017 | B4: 0 | C4: 33263188 | D4: 34229124 | E4: 30966639
A5: cw_clp("CLP145") | B5: cw_map("BR","10->1.1011") | C5: -(cw_map("BR","10->2.3999.1")) | D5: -(cw_map("BR","10->2.1110")) | E5: cw_map("BR","10->3.1100.1")
A6: $A$15 | B6: $D$4 | C6: $C$25 | D6: $D$5 | E6: $D$5
A7: Cook | B7: 0 | C7: 0 | D7: 5377622 | E7: 5183243
A8: cw_clp("CLP149") | B8: cw_map("BR","20->1.1011") | C8: -(cw_map("BR","10->4.7110")) | D8: -(cw_map("BR","20->2.1110")) | E8: cw_map("BR","10->3.1100.2")
A9: $A$17 | B9: $E$4 | C9: $D$25 | D9: $E$5 | E9: $E$5
A10: Thornton Township High School District 205 | B10: 4864136 | C10: 0 | D10: 9002885 | E10: 272553
A11: cw_clp("CLP2") | B11: cw_map("BR","30->1.1011") | C11: -(cw_map("BR","20->4.7110")) | D11: -(cw_map("BR","30->2.1110")) | E11: cw_map("BR","10->3.1100.3")
A12: $A$19 | B12: $F$4 | C12: $E$25 | D12: $F$5 | E12: $F$5
A13: 465 East 170th Street | B13: 13612976 | C13: 0 | D13: 6606947 | E13: 1088747
A14: cw_clp("CLP3") | B14: cw_map("BR","40->1.1011") | C14: -(cw_map("BR","30->4.7110")) | D14: -(cw_map("BR","40->2.1110")) | E14: cw_map("BR","10->3.1100.4")
A15: $A$21 | B15: $G$4 | C15: $F$25 | D15: $G$5 | E15: $G$5
A16: South Holland | B16: 2676109 | C16: 0 | D16: 768917 | E16: 0
A17: cw_clp("CLP5") | B17: cw_map("BR","50->1.1011") | C17: -(cw_map("BR","40->4.7110")) | D17: -(cw_map("BR","50->2.1110")) | E17: cw_map("BR","10->3.1100.5")
B18: $H$4 | C18: $G$25 | D18: $H$5 | E18: $H$5
B19: 31797701 | C19: 0 | D19: 0 | E19: 50385
B20: cw_map("BR","60->1.1011") | C20: -(cw_map("BR","50->4.7110")) | D20: -(cw_map("BR","60->2.1110")) | E20: cw_map("BR","10->3.1100.6")
B21: $I$4 | C21: $H$25 | D21: $I$5 | E21: $I$5
B22: 12038951 | C22: 0 | D22: 489594 | E22: 60141
B23: cw_map("BR","70->1.1011") | C23: -(cw_map("BR","60->4.7110")) | D23: -(cw_map("BR","70->2.1110")) | E23: cw_map("BR","10->3.1100.7")
B24: $J$4 | C24: $J$25 | D24: $J$5 | E24: $J$5
B25: 3483653 | C25: 0 | D25: 2034637 | E25: 0
B26: cw_map("BR","80->1.1011") | C26: -(cw_map("BR","80->4.7110")) | D26: -(cw_map("BR","80->2.1120")) | E26: cw_map("BR","10->3.1100.8")
B27: $K$4 | C27: $K$25 | D27: $K$5 | E27: $L$5
B28: 3528152 | C28: 0 | D28: 979189 | E28: 43107000
B29: cw_map("BR","90->1.1011") | C29: -(cw_map("BR","90->4.7110")) | D29: -(cw_map("BR","90->2.1110")) | E29: cw_map("BB","10->3.1100")
B30: $C$5 | C30: $C$26 | D30: $C$6 | E30: $E$6
B31: 0 | C31: 0 | D31: 0 | E31: 0
B32: cw_map("BR","10->1.1012")+cw_map("BR","10->1.1040.0.010") | C32: -(cw_map("BR","10->4.7120")) | D32: -(cw_map("BR","10->2.1130")) | E32: cw_map("BR","10->3.1115.3")
B33: $D$5 | C33: $D$26 | D33: $D$6 | E33: $L$6
B34: 0 | C34: 0 | D34: 557680 | E34: 0
B35: cw_map("BR","20->1.1012")+cw_map("BR","20->1.1040.0.010") | C35: -(cw_map("BR","20->4.7120")) | D35: -(cw_map("BR","20->2.1130")) | E35: cw_map("BB","10->3.1115")
B36: $E$5 | C36: $E$26 | D36: $C$7 | E36: $C$7
B37: 0 | C37: 0 | D37: 3912278 | E37: 0
B38: cw_map("BR","30->1.1012")+cw_map("BR","30->1.1040.0.010") | C38: -(cw_map("BR","30->4.7120")) | D38: -(cw_map("BR","10->2.1140")) | E38: cw_map("BR","10->3.1125.1")
B39: $F$5 | C39: $F$26 | D39: $D$7 | E39: $D$7
B40: 0 | C40: 0 | D40: 0 | E40: 0
B41: cw_map("BR","40->1.1012")+cw_map("BR","40->1.1040.0.010") | C41: -(cw_map("BR","40->4.7120")) | D41: -(cw_map("BR","20->2.1140")) | E41: cw_map("BR","10->3.1125.2")
B42: $G$5 | C42: $G$26 | D42: $F$7 | E42: $E$7
B43: 0 | C43: 0 | D43: 0 | E43: 0
B44: cw_map("BR","50->1.1012")+cw_map("BR","50->1.1040.0.010") | C44: -(cw_map("BR","50->4.7120")) | D44: -(cw_map("BR","40->2.1140")) | E44: cw_map("BR","10->3.1125.3")
B45: $H$5 | C45: $H$26 | D45: $G$7 | E45: $F$7
B46: 0 | C46: 0 | D46: 0 | E46: 0
B47: cw_map("BR","60->1.1012")+cw_map("BR","60->1.1040.0.010") | C47: -(cw_map("BR","60->4.7120")) | D47: -(cw_map("BR","50->2.1140")) | E47: cw_map("BR","10->3.1125.4")
B48: $I$5 | C48: $J$26 | D48: $H$7 | E48: $G$7
B49: 0 | C49: 0 | D49: 0 | E49: 0
B50: cw_map("BR","70->1.1012")+cw_map("BR","70->1.1040.0.010") | C50: -(cw_map("BR","80->4.7120")) | D50: -(cw_map("BR","60->2.1140")) | E50: cw_map("BR","10->3.1125.5")
B51: $J$5 | C51: $K$26 | D51: $G$8 | E51: $H$7
B52: 0 | C52: 0 | D52: 1521556 | E52: 0
B53: cw_map("BR","80->1.1012")+cw_map("BR","80->1.1040.0.010") | C53: -(cw_map("BR","90->4.7120")) | D53: -(cw_map("BR","50->2.1150")) | E53: cw_map("BR","10->3.1125.6")
B54: $K$5 | C54: $C$27 | D54: $D$9 | E54: $I$7
B55: 0 | C55: 0 | D55: 0 | E55: 0
B56: cw_map("BR","90->1.1012")+cw_map("BR","90->1.1040.0.010") | C56: -(cw_map("BR","10->4.7130")) | D56: -(cw_map("BR","20->2.1160")) | E56: cw_map("BR","10->3.1125.7")
B57: $C$6 | C57: $D$27 | D57: $E$9 | E57: $J$7
B58: 0 | C58: 0 | D58: 0 | E58: 0
B59: cw_map("BR","10->1.1040.0.020") | C59: -(cw_map("BR","20->4.7130")) | D59: -(cw_map("BR","30->2.1160")) | E59: cw_map("BR","10->3.1125.8")
B60: $D$6 | C60: $F$27 | D60: $H$9 | E60: $L$7
B61: 0 | C61: 0 | D61: 0 | E61: 0
B62: cw_map("BR","20->1.1040.0.020") | C62: -(cw_map("BR","40->4.7130")) | D62: -(cw_map("BR","60->2.1160")) | E62: cw_map("BB","10->3.1125")
B63: $E$6 | C63: $C$28 | D63: $C$10 | E63: $C$8
B64: 0 | C64: 0 | D64: 0 | E64: 5862361
B65: cw_map("BR","30->1.1040.0.020") | C65: -(cw_map("BR","10->4.7140")) | D65: -(cw_map("BR","10->2.1170")) | E65: cw_map("BR","10->3.1200.1")
B66: $F$6 | C66: $D$28 | D66: $C$11 | E66: $D$8
B67: 0 | C67: 0 | D67: 0 | E67: 917273
B68: cw_map("BR","40->1.1040.0.020") | C68: -(cw_map("BR","20->4.7140")) | D68: -(cw_map("BR","10->2.1190")) | E68: cw_map("BR","10->3.1200.2")
B69: $G$6 | C69: $E$28 | D69: $D$11 | E69: $E$8
B70: 0 | C70: 0 | D70: 0 | E70: 659375
B71: cw_map("BR","50->1.1040.0.020") | C71: -(cw_map("BR","30->4.7140")) | D71: -(cw_map("BR","20->2.1190")) | E71: cw_map("BR","10->3.1200.3")
B72: $H$6 | C72: $F$28 | D72: $E$11 | E72: $F$8
B73: 0 | C73: 0 | D73: 0 | E73: 118529
B74: cw_map("BR","60->1.1040.0.020") | C74: -(cw_map("BR","40->4.7140")) | D74: -(cw_map("BR","30->2.1190")) | E74: cw_map("BR","10->3.1200.4")
B75: $I$6 | C75: $G$28 | D75: $F$11 | E75: $G$8
B76: 0 | C76: 0 | D76: 0 | E76: 0
B77: cw_map("BR","70->1.1040.0.020") | C77: -(cw_map("BR","50->4.7140")) | D77: -(cw_map("BR","40->2.1190")) | E77: cw_map("BR","10->3.1200.5")
B78: $J$6 | C78: $H$28 | D78: $G$11 | E78: $H$8
B79: 0 | C79: 0 | D79: 0 | E79: 198556
B80: cw_map("BR","80->1.1040.0.020") | C80: -(cw_map("BR","60->4.7140")) | D80: -(cw_map("BR","50->2.1190")) | E80: cw_map("BR","10->3.1200.6")
B81: $K$6 | C81: $I$28 | D81: $H$11 | E81: $I$8
B82: 0 | C82: 0 | D82: 0 | E82: 6412
B83: cw_map("BR","90->1.1040.0.020") | C83: -(cw_map("BR","70->4.7140")) | D83: -(cw_map("BR","60->2.1190")) | E83: cw_map("BR","10->3.1200.7")
B84: $C$7 | C84: $J$28 | D84: $I$11 | E84: $J$8
B85: 0 | C85: 0 | D85: 0 | E85: 0
B86: cw_map("BR","10->1.11?0")-(cw_map("BR","10->1.1190")) | C86: -(cw_map("BR","80->4.7140")) | D86: -(cw_map("BR","70->2.1190")) | E86: cw_map("BR","10->3.1200.8")
B87: $D$7 | C87: $K$28 | D87: $J$11 | E87: $L$8
B88: 0 | C88: 0 | D88: 0 | E88: 7470000
B89: cw_map("BR","20->1.11?0")-(cw_map("BR","20->1.1190")) | C89: -(cw_map("BR","90->4.7140")) | D89: -(cw_map("BR","80->2.1190")) | E89: cw_map("BB","10->3.1200")
B90: $E$7 | C90: $D$29 | D90: $K$11 | E90: $C$9
B91: 0 | C91: 0 | D91: 0 | E91: 0
B92: cw_map("BR","30->1.11?0")-(cw_map("BR","30->1.1190")) | C92: -(cw_map("BR","20->4.7150")) | D92: -(cw_map("BR","90->2.1190")) | E92: cw_map("BR","10->3.1225.1")
B93: $F$7 | C93: $D$30 | D93: $C$14 | E93: $D$9
B94: 3866529 | C94: 0 | D94: 0 | E94: 0
B95: cw_map("BR","40->1.11?0")-(cw_map("BR","40->1.1190")) | C95: -(cw_map("BR","20->4.7160")) | D95: -(cw_map("BR","10->2.1210")) | E95: cw_map("BR","10->3.1225.2")
B96: $G$7 | C96: $E$31 | D96: $D$14 | E96: $E$9
B97: 0 | C97: 0 | D97: 0 | E97: 0
B98: cw_map("BR","50->1.11?0")-(cw_map("BR","50->1.1190")) | C98: -(cw_map("BR","30->4.7170")) | D98: -(cw_map("BR","20->2.1210")) | E98: cw_map("BR","10->3.1225.3")
B99: $H$7 | C99: $C$33 | D99: $E$14 | E99: $F$9
B100: 0 | C100: 0 | D100: 0 | E100: 0
B101: cw_map("BR","60->1.11?0")-(cw_map("BR","60->1.1190")) | C101: -(cw_map("BR","10->4.7210")) | D101: -(cw_map("BR","30->2.1210")) | E101: cw_map("BR","10->3.1225.4")
B102: $I$7 | C102: $D$33 | D102: $F$14 | E102: $G$9
B103: 0 | C103: 0 | D103: 0 | E103: 0
B104: cw_map("BR","70->1.11?0")-(cw_map("BR","70->1.1190")) | C104: -(cw_map("BR","20->4.7210")) | D104: -(cw_map("BR","40->2.1210")) | E104: cw_map("BR","10->3.1225.5")
B105: $J$7 | C105: $E$33 | D105: $G$14 | E105: $H$9
B106: 0 | C106: 27426828 | D106: 0 | E106: 0
B107: cw_map("BR","80->1.11?0")-(cw_map("BR","80->1.1190")) | C107: -(cw_map("BR","30->4.7210")) | D107: -(cw_map("BR","50->2.1210")) | E107: cw_map("BR","10->3.1225.6")
B108: $K$7 | C108: $F$33 | D108: $H$14 | E108: $I$9
B109: 0 | C109: 0 | D109: 0 | E109: 0
B110: cw_map("BR","90->1.11?0")-(cw_map("BR","90->1.1190")) | C110: -(cw_map("BR","40->4.7210")) | D110: -(cw_map("BR","60->2.1210")) | E110: cw_map("BR","10->3.1225.7")
B111: $C$8 | C111: $H$33 | D111: $I$14 | E111: $J$9
B112: 0 | C112: 29817372 | D112: 0 | E112: 0
B113: cw_map("BR","10->1.1040.0.040") | C113: -(cw_map("BR","60->4.7210")) | D113: -(cw_map("BR","70->2.1210")) | E113: cw_map("BR","10->3.1225.8")
B114: $D$8 | C114: $I$33 | D114: $J$14 | E114: $L$9
B115: 0 | C115: 3370800 | D115: 0 | E115: 0
B116: cw_map("BR","20->1.1040.0.040") | C116: -(cw_map("BR","70->4.7210")) | D116: -(cw_map("BR","80->2.1210")) | E116: cw_map("BB","10->3.1225")
B117: $E$8 | C117: $J$33 | D117: $K$14 | E117: $C$10
B118: 0 | C118: 0 | D118: 0 | E118: 26180
B119: cw_map("BR","30->1.1040.0.040") | C119: -(cw_map("BR","80->4.7210")) | D119: -(cw_map("BR","90->2.1210")) | E119: cw_map("BR","10->3.1250.1")
B120: $F$8 | C120: $K$33 | D120: $C$15 | E120: $D$10
B121: 0 | C121: 0 | D121: 0 | E121: 3889
B122: cw_map("BR","40->1.1040.0.040") | C122: -(cw_map("BR","90->4.7210")) | D122: -(cw_map("BR","10->2.1220")) | E122: cw_map("BR","10->3.1250.2")
B123: $G$8 | C123: $C$34 | D123: $D$15 | E123: $E$10
B124: 0 | C124: 0 | D124: 0 | E124: 0
B125: cw_map("BR","50->1.1040.0.040") | C125: -(cw_map("BR","10->4.7220")) | D125: -(cw_map("BR","20->2.1220")) | E125: cw_map("BR","10->3.1250.3")
B126: $H$8 | C126: $D$34 | D126: $E$15 | E126: $F$10
B127: 0 | C127: 0 | D127: 0 | E127: 0
B128: cw_map("BR","60->1.1040.0.040") | C128: -(cw_map("BR","20->4.7220")) | D128: -(cw_map("BR","30->2.1220")) | E128: cw_map("BR","10->3.1250.4")
B129: $I$8 | C129: $E$34 | D129: $F$15 | E129: $G$10
B130: 0 | C130: 4337372 | D130: 0 | E130: 0
B131: cw_map("BR","70->1.1040.0.040") | C131: -(cw_map("BR","30->4.7220")) | D131: -(cw_map("BR","40->2.1220")) | E131: cw_map("BR","10->3.1250.5")
B132: $J$8 | C132: $F$34 | D132: $G$15 | E132: $H$10
B133: 0 | C133: 0 | D133: 0 | E133: 0
B134: cw_map("BR","80->1.1040.0.040") | C134: -(cw_map("BR","40->4.7220")) | D134: -(cw_map("BR","50->2.1220")) | E134: cw_map("BR","10->3.1250.6")
B135: $K$8 | C135: $H$34 | D135: $H$15 | E135: $I$10
B136: 0 | C136: 149400 | D136: 0 | E136: 0
B137: cw_map("BR","90->1.1040.0.040") | C137: -(cw_map("BR","60->4.7220")) | D137: -(cw_map("BR","60->2.1220")) | E137: cw_map("BR","10->3.1250.7")
B138: $C$9 | C138: $I$34 | D138: $I$15 | E138: $J$10
B139: 0 | C139: 0 | D139: 0 | E139: 0
B140: cw_map("BR","10->1.1040")-(cw_map("BR","10->1.1040.0.010"))-(cw_map("BR","10->1.1040.0.020"))-(cw_map("BR","10->1.1040.0.040")) | C140: -(cw_map("BR","70->4.7220")) | D140: -(cw_map("BR","70->2.1220")) | E140: cw_map("BR","10->3.1250.8")
B141: $D$9 | C141: $J$34 | D141: $J$15 | E141: $L$10
B142: 0 | C142: 0 | D142: 0 | E142: 184500
B143: cw_map("BR","20->1.1040")-(cw_map("BR","20->1.1040.0.010"))-(cw_map("BR","20->1.1040.0.020"))-(cw_map("BR","20->1.1040.0.040")) | C143: -(cw_map("BR","80->4.7220")) | D143: -(cw_map("BR","80->2.1220")) | E143: cw_map("BB","10->3.1250")
B144: $E$9 | C144: $K$34 | D144: $K$15 | E144: $C$11
B145: 0 | C145: 0 | D145: 0 | E145: 0
B146: cw_map("BR","30->1.1040")-(cw_map("BR","30->1.1040.0.010"))-(cw_map("BR","30->1.1040.0.020"))-(cw_map("BR","30->1.1040.0.040")) | C146: -(cw_map("BR","90->4.7220")) | D146: -(cw_map("BR","90->2.1220")) | E146: cw_map("BR","10->3.1275.1")
B147: $F$9 | C147: $C$35 | D147: $C$16 | E147: $D$11
B148: 0 | C148: 0 | D148: 4123861 | E148: 0
B149: cw_map("BR","40->1.1040")-(cw_map("BR","40->1.1040.0.010"))-(cw_map("BR","40->1.1040.0.020"))-(cw_map("BR","40->1.1040.0.040")) | C149: -(cw_map("BR","10->4.7230")) | D149: -(cw_map("BR","10->2.1230")) | E149: cw_map("BR","10->3.1275.2")
B150: $G$9 | C150: $D$35 | D150: $D$16 | E150: $E$11
B151: 0 | C151: 0 | D151: 0 | E151: 0
B152: cw_map("BR","50->1.1040")-(cw_map("BR","50->1.1040.0.010"))-(cw_map("BR","50->1.1040.0.020"))-(cw_map("BR","50->1.1040.0.040")) | C152: -(cw_map("BR","20->4.7230")) | D152: -(cw_map("BR","20->2.1230")) | E152: cw_map("BR","10->3.1275.3")
B153: $H$9 | C153: $E$35 | D153: $E$16 | E153: $F$11
B154: 0 | C154: 0 | D154: 0 | E154: 0
B155: cw_map("BR","60->1.1040")-(cw_map("BR","60->1.1040.0.010"))-(cw_map("BR","60->1.1040.0.020"))-(cw_map("BR","60->1.1040.0.040")) | C155: -(cw_map("BR","30->4.7230")) | D155: -(cw_map("BR","30->2.1230")) | E155: cw_map("BR","10->3.1275.4")
B156: $I$9 | C156: $F$35 | D156: $F$16 | E156: $G$11
B157: 0 | C157: 0 | D157: 0 | E157: 0
B158: cw_map("BR","70->1.1040")-(cw_map("BR","70->1.1040.0.010"))-(cw_map("BR","70->1.1040.0.020"))-(cw_map("BR","70->1.1040.0.040")) | C158: -(cw_map("BR","40->4.7230")) | D158: -(cw_map("BR","40->2.1230")) | E158: cw_map("BR","10->3.1275.5")
B159: $J$9 | C159: $H$35 | D159: $G$16 | E159: $H$11
B160: 0 | C160: 0 | D160: 107979 | E160: 0
B161: cw_map("BR","80->1.1040")-(cw_map("BR","80->1.1040.0.010"))-(cw_map("BR","80->1.1040.0.020"))-(cw_map("BR","80->1.1040.0.040")) | C161: -(cw_map("BR","60->4.7230")) | D161: -(cw_map("BR","50->2.1230")) | E161: cw_map("BR","10->3.1275.6")
B162: $K$9 | C162: $I$35 | D162: $H$16 | E162: $I$11
B163: 0 | C163: 0 | D163: 0 | E163: 0
B164: cw_map("BR","90->1.1040")-(cw_map("BR","90->1.1040.0.010"))-(cw_map("BR","90->1.1040.0.020"))-(cw_map("BR","90->1.1040.0.040")) | C164: -(cw_map("BR","70->4.7230")) | D164: -(cw_map("BR","60->2.1230")) | E164: cw_map("BR","10->3.1275.7")
B165: $C$10 | C165: $J$35 | D165: $I$16 | E165: $J$11
B166: 0 | C166: 0 | D166: 0 | E166: 0
B167: cw_map("BR","10->1.1060") | C167: -(cw_map("BR","80->4.7230")) | D167: -(cw_map("BR","70->2.1230")) | E167: cw_map("BR","10->3.1275.8")
B168: $D$10 | C168: $K$35 | D168: $J$16 | E168: $L$11
B169: 0 | C169: 0 | D169: 0 | E169: 0
B170: cw_map("BR","20->1.1060") | C170: -(cw_map("BR","90->4.7230")) | D170: -(cw_map("BR","80->2.1230")) | E170: cw_map("BB","10->3.1275")
B171: $E$10 | C171: $C$36 | D171: $K$16 | E171: $C$12
B172: 0 | C172: 0 | D172: 0 | E172: 0
B173: cw_map("BR","30->1.1060") | C173: -(cw_map("BR","10->4.7300")) | D173: -(cw_map("BR","90->2.1230")) | E173: cw_map("BR","10->3.1300.1")
B174: $F$10 | C174: $D$36 | D174: $C$17 | E174: $D$12
B175: 0 | C175: 0 | D175: 0 | E175: 0
B176: cw_map("BR","40->1.1060") | C176: -(cw_map("BR","20->4.7300")) | D176: -(cw_map("BR","10->2.1290")) | E176: cw_map("BR","10->3.1300.2")
B177: $G$10 | C177: $E$36 | D177: $D$17 | E177: $E$12
B178: 0 | C178: 0 | D178: 0 | E178: 0
B179: cw_map("BR","50->1.1060") | C179: -(cw_map("BR","30->4.7300")) | D179: -(cw_map("BR","20->2.1290")) | E179: cw_map("BR","10->3.1300.3")
B180: $H$10 | C180: $F$36 | D180: $E$17 | E180: $F$12
B181: 0 | C181: 0 | D181: 0 | E181: 0
B182: cw_map("BR","60->1.1060") | C182: -(cw_map("BR","40->4.7300")) | D182: -(cw_map("BR","30->2.1290")) | E182: cw_map("BR","10->3.1300.4")
B183: $I$10 | C183: $G$36 | D183: $F$17 | E183: $G$12
B184: 0 | C184: 0 | D184: 0 | E184: 0
B185: cw_map("BR","70->1.1060") | C185: -(cw_map("BR","50->4.7300")) | D185: -(cw_map("BR","40->2.1290")) | E185: cw_map("BR","10->3.1300.5")
B186: $J$10 | C186: $H$36 | D186: $G$17 | E186: $H$12
B187: 0 | C187: 0 | D187: 0 | E187: 0
B188: cw_map("BR","80->1.1060") | C188: -(cw_map("BR","60->4.7300")) | D188: -(cw_map("BR","50->2.1290")) | E188: cw_map("BR","10->3.1300.6")
B189: $K$10 | C189: $J$36 | D189: $H$17 | E189: $I$12
B190: 0 | C190: 0 | D190: 0 | E190: 0
B191: cw_map("BR","90->1.1060") | C191: -(cw_map("BR","80->4.7300")) | D191: -(cw_map("BR","60->2.1290")) | E191: cw_map("BR","10->3.1300.7")
B192: $C$11 | C192: $K$36 | D192: $I$17 | E192: $J$12
B193: 0 | C193: 0 | D193: 0 | E193: 0
B194: cw_map("BR","10->1.1070") | C194: -(cw_map("BR","90->4.7300")) | D194: -(cw_map("BR","70->2.1290")) | E194: cw_map("BR","10->3.1300.8")
B195: $D$11 | C195: $C$42 | D195: $J$17 | E195: $L$12
B196: 0 | C196: 0 | D196: 0 | E196: 0
B197: cw_map("BR","20->1.1070") | C197: -(cw_map("BR","10->4.7900")) | D197: -(cw_map("BR","80->2.1290")) | E197: cw_map("BB","10->3.1300")
B198: $E$11 | C198: $D$42 | D198: $K$17 | E198: $C$13
B199: 0 | C199: 0 | D199: 0 | E199: 33953
B200: cw_map("BR","30->1.1070") | C200: -(cw_map("BR","20->4.7900")) | D200: -(cw_map("BR","90->2.1290")) | E200: cw_map("BR","10->3.1400.1")
... 2625 more rows

Sheet COVER
A1: Due to ROE on Friday, October 14th | I1: ILLINOIS STATE BOARD OF EDUCATION
A2: Due to ISBE on Tuesday, November 15th | I2: School Business Services Division
A3: SD/JA17 | I3: 100 North First Street, Springfield, Illinois 62777-0001
I4: 217/785-8779
B5: X | C5: School District | I5: Illinois School District/Joint Agreement
C6: Joint Agreement | I6: Annual Financial Report *
I7: 2017-06-30
I9: Accounting Basis: | T9: Certified Public Accountant Information
A10: School District/Joint Agreement Information
A11: (See instructions on inside of this page.) | O11: X | P11: CASH
A12: School District/Joint Agreement Number: | P12: ACCRUAL | T12: Name of Auditing Firm:
A13: 7016205017 | T13: Baker Tilly Virchow Krause, LLP
A14: County Name: | T14: Name of Audit Manager:
A15: Cook | T15: Carl Thomas, CPA
A16: Name of School District/Joint Agreement: | T16: Address:
A17: Thornton Township High School District 205 | T17: 1301 West 22nd Street, Suite 400
A18: Address: | I18: Filing Status: | T18: City: | X18: State: | Z18: Zip Code:
A19: 465 East 170th Street | M19: Submit electronic AFR directly to ISBE | T19: Oak Brook | X19: IL | Z19: 60523
A20: City: | T20: Phone Number: | X20: Fax Number:
A21: South Holland | I21: Click on the Link to Submit: | T21: (630) 990-3131 | X21: (630) 990-0039
A22: Email Address: | I22: Send ISBE a File | T22: IL License Number (9 digit): | X22: Expiration Date:
T23: 066-004260
A24: Zip Code: | J24: =IF(B5="x",IF(AUDITCHECK!D35="AFR form Incomplete.","",IF(AUDITCHECK!D35="Deficit reduction plan is required.","School District must complete a deficit reduction plan in the 2017-2018 Budget",)),"") -> 0 | T24: Email Address:
T25: carl.thomas@bakertilly.com
C27: Annual Financial Report | I27: Single Audit Status:
C28: Type of Auditor's Report Issued: | W28: ISBE Use Only
C29: Qualified | E29: X | F29: Unqualified | J29: X | K29: YES | M29: NO | N29: Are Federal expenditures greater than $750,000?
C30: Adverse | J30: X | K30: YES | M30: NO | N30: Is all Single Audit Information completed and attached?
B31: X | C31: Disclaimer | J31: X | K31: YES | M31: NO | N31: Were any financial statement or federal award findings issued?
C34: Reviewed by District Superintendent/Administrator | M34: Reviewed by Township Treasurer (Cook County only) | V34: Reviewed by Regional Superintendent/Cook ISC
L35: Name of Township: | P35: Thornton
A37: District Superintendent/Administrator Name (Type or Print): | I37: Township Treasurer Name (type or print) | T37: RegionalSuperintendent/Cook ISC Name (Type or Print):
A38: Dr. Leotis Swopes
A39: Email Address: | I39: Email Address: | T39: Email Address:
A40: Swopes.leotis@district205.net
A41: Telephone: | D41: Fax Number: | I41: Telephone: | P41: Fax Number: | T41: Telephone: | X41: Fax Number:
A42: 708-225-4020
A43: Signature & Date: | I43: Signature & Date: | T43: Signature & Date:
A45: * This form is based on 23 Illinois Administrative Code 100, Subtitle A, Chapter I, Subchapter C (Part 100). | Q45: This form is based on 23 Illinois Administrative Code, Subtitle A, Chapter I, Subchapter C, Part 100.
A46: ISBE Form SD50-35/JA50-60 (05/17) | Q46: In some instances, use of open account codes (cells) may not be authorized by statute or administrative rule.
Q47: Each school district or joint agreement is responsible for obtaining the concurring legal opinion and/or other s
Q48: upporting authorization/documentation, as necessary, to use the applicable account code (cell).

Sheet TOC
A1: TABLE OF CONTENTS
D2: TAB Name | E2: AFR Page No.
A4: Auditor's Questionnaire……………………………...………....…………………………..………..................................................... | D4: Aud Quest | E4: 2
A5: Comments Applicable to the Auditor's Questionnaire……..……..………………. ………………….…………………………. | D5: Aud Quest | E5: 2
A6: Financial Profile Information …………………………………………….…………………………………………….................................................. | D6: FP Info | E6: 3
A7: Estimated Financial Profile Summary…………………………………………………………………………………………………………...... | D7: Financial Profile | E7: 4
A8: Basic Financial Statements
B9: Statement of Assets and Liabilities Arising from Cash Transactions/Statement of Position ………………............................................... | D9: Assets-Liab | E9: 5 - 6
B10: Statement of Revenues Received/Revenues, Expenditures Disbursed/Expenditures, Other
B11: Sources (Uses) and Changes in Fund Balances (All Funds)…...……………..…………………….......................................... | D11: Acct Summary | E11: 7 - 8
B12: Statements of Revenues Received/Revenues (All Funds)………………………………………………………………................................. | D12: Revenues | E12: 9 - 14
B13: Statements of Expenditures Disbursed/Expenditures Budget to Actual (All Funds)……………………….................................................... | D13: Expenditures | E13: 15 - 22
A14: Supplementary Schedules
B15: Federal Stimulus - American Recovery and Reinvestment Act (ARRA) Schedule……………………………………………. | D15: ARRA Sched | E15: 23
B16: Schedule of Ad Valorem Tax Receipts…………………………………………………………………………………………….. | D16: Tax Sched | E16: 24
B17: Schedule of Short-Term Debt/Long-Term Debt ………………………………………………………….................................................... | D17: Short-Term Long-Term Debt | E17: 25
B18: Schedule of Restricted Local Tax Levies and Selected Revenue Sources/
B19: Schedule of Tort Immunity Expenditures…………………………………..….……………….……………………..…....... | D19: Rest Tax Levies-Tort Im | E19: 26
A20: Statistical Section
B21: Schedule of Capital Outlay and Depreciation……………………………………………………………………................................................ | D21: Cap Outlay Deprec | E21: 27
B22: Estimated Operating Expenditures Per Pupil and Per Capita Tuition Charge Computation…………………………… | D22: PCTC-OEPP | E22: 28 - 29
A23: Estimated Indirect Cost Rate for Federal Programs (Section I, Section II)………………………………………………............................................. | D23: ICR Computation | E23: 30
A24: Report on Shared Services or Outsourcing ………………………………………………................................................................................................................ | D24: Shared Outsourced Serv. | E24: 31
A25: Administrative Cost Worksheet……………………………………………………………………….……………................................................ | D25: AC | E25: 32
A26: Itemization Schedule…………………………………………………………………………………………………................................................ | D26: ITEMIZATION | E26: 33
A27: Reference Page……………………………………………………………………………………………………….................................................. | D27: REF | E27: 34
A28: Notes, Opinion Letters, etc…… | D28: Opinion-Notes | E28: 35
A29: Deficit Reduction Calculation…… | D29: Deficit AFR Sum Calc | E29: 36
A30: Audit Checklist/Balancing Schedule………………………………………………………………………………................................................. | D30: AUDITCHECK | E30: -
A31: Single Audit Section
B32: Annual Federal Compliance Report…………………………………………………………………………………............................................. | D32: Single Audit Cover - CAP | E32: 37 - 46
A35: INSTRUCTIONS/REQUIREMENTS: For School Districts/Joint Agreements
A37: All School Districts/Joint Agreements must complete this form (Note: joint agreement supplementary/statistical schedules may not be applicable)
A38: Round all amounts to the nearest dollar. Do not enter cents. (Exception: 9 Month ADA on page 28, line 78)
B39: This form complies with Part 100 (Requirements for Accounting, Budgeting, Financial Reporting, and Auditing).
B41: 23, Illinois Administrative Code 100, Subtitle A, Chapter I, Subchapter C (Part 100)
B43: Any errors left unresolved by the Audit Checklist/Balancing Schedule must be explained in the itemization page.
A45: Submit AFR Electronically
A46: * The Annual Financial Reports (AFR) must be submitted directly through the Attachment Manager to the AFR Group by the Auditor or School District
B47: designated personnel (Please see Instructions for complete submission procedures).
B49: Attachment Manager Link
B51: Note: CD/Disk no longer accepted.
A53: * AFR supporting documentation must be embedded as Microsoft Word (.doc), Word Perfect (*.wpd) or Adobe (*.pdf) and inserted within tab "Opinions & Notes".
A54: These documents include: The Audit, Management letter, Opinion letters, Compliance letters, Financial notes etc…. For embedding instructions see
B55: "Opinions & Notes" tab of this form.
A56: Note: In Windows 7 and above, files can be saved in Adobe Acrobat (*.pdf) and embedded even if you do not have the software. If you have problems embedding
A57: the files you may attach them as separate (.docx) in the Attachment Manager and ISBE will embedded them for you.
A60: Submit Paper Copy of AFR with Signatures
A61: 1) The auditor must send three paper copies of the AFR form (cover through page 8 at minimum) to the School District with the auditor signature.
A62: Note: School Districts and Regional Superintendents may prefer a complete paper copy in lieu of an electronic file. Please comply with their requests as neccessary.
A63: 2) Upon receipt, the School District retains one copy for their records, signs, and forwards the remaining two copies to the Regional Superintendent's
B64: office no later than October 15, annually.
A65: 3) Upon receipt, the Regional Superintendent's office retains one copy for their records, signs, and forwards the remaining paper copy to ISBE no later
B66: than November 15, annually.
A68: * Yellow Book, CPE, and Peer Review requirements must be met if the Auditor issues an opinion stating "Governmental Auditing Standards" were utilized.
B69: Federal Single Audit 2 CFR 200.500
A72: Qualifications of Auditing Firm
A73: * School District/Joint Agreement entities must verify the qualifications of the auditing firm by requesting the most current peer review report and the
B74: corresponding acceptance letter from the approved peer review program, for the current peer review period.
A75: * A school district/joint agreement who engages with an auditing firm who is not licensed and qualified will be required to complete a new audit by a qualified
B76: auditing firm at the school district's/joint agreement's expense.

Sheet Aud Quest 2
A2: AUDITOR'S QUESTIONNAIRE
C4: INSTRUCTIONS: If your review and testing of State, Local, and Federal Programs revealed any of the following statements to be true, then check
C5: the box on the left, and attach the appropriate findings/comments.
A7: PART A - FINDINGS
C9: 1 | D9: One or more school board members, administrators, certified school business officials, or other qualifying district employees failed to file economic interested
D10: statements pursuant to the Illinois Government Ethics Act. [5 ILCS 420/4A-101]
C11: 2 | D11: One or more custodians of funds failed to comply with the bonding requirements pursuant to Illinois School Code [105 ILCS 5/8-2;10-20.19;19-6].
C13: 3 | D13: One or more contracts were executed or purchases made contrary to the provisions of the Illinois School Code [105 ILCS 5/10-20.21].
C14: 4 | D14: One or more violations of the Public Funds Deposit Act or the Public Funds Investment Act were noted [30 ILCS 225/1 et. seq. and 30 ILCS 235/1 et. seq.].
C15: 5 | D15: Restricted funds were commingled in the accounting records or used for other than the purpose for which they were restricted.
C16: 6 | D16: One or more short-term loans or short-term debt instruments were executed in non-conformity with the applicable authorizing statute or without statutory Authority.
C18: 7 | D18: One or more long-term loans or long-term debt instruments were executed in non-conformity with the applicable authorizing statute or without statutory Authority.
C20: 8 | D20: Corporate Personal Property Replacement Tax monies were deposited and/or used without first satisfying the lien imposed pursuant to the Illinois State Revenue
D21: Sharing Act [30 ILCS 115/12].
C22: 9 | D22: One or more interfund loans were made in non-conformity with the applicable authorizing statute or without statutory authorization per Illinois School Code [105 ILCS
D23: 5/10-22.33, 20-4 and 20-5].
C24: 10 | D24: One or more interfund loans were outstanding beyond the term provided by statute Illinois School Code [105 ILCS 5/10-22.33, 20-4, 20-5].
C25: 11 | D25: One or more permanent transfers were made in non-conformity with the applicable authorizing statute/regulation or without statutory/regulatory authorization per Illinois
D26: School Code [105 ILCS 5/17-2A].
C27: 12 | D27: Substantial, or systematic misclassification of budgetary items such as, but not limited to, revenues, receipts, expenditures, disbursements or expenses were observed.
C29: 13 | D29: The Chart of Accounts used to define and control budget and accounting records does not conform to the minimum requirements imposed by
D30: ISBE rules pursuant to Illinois School Code [105 ILCS 5/2-3.27; 2-3.28].
C31: 14 | D31: At least one of the following forms was filed with ISBE late: The FY16 AFR (ISBE FORM 50-35), FY16 Annual Statement of Affairs (ISBE Form 50-37) and FY17
D32: Budget (ISBE FORM 50-36). Explain in the comments box below in persuant to Illinois School Code [105 ILCS 5/3-15.1; 5/10-17; 5/17-1].
A35: PART B - FINANCIAL DIFFICULTIES/CERTIFICATION Criteria pursuant to the Illinois School Code [105 ILCS 5/1A-8].
C37: 15 | D37: The district has issued tax anticipation warrants or tax anticipation notes in anticipation of a second year's taxes when warrants or notes in
D38: anticipation of current year taxes are still outstanding, as authorized by Illinois School Code [105 ILCS 5/17-16 or 34-23 through 34-27].
C40: 16 | D40: The district has issued short-term debt against two future revenue sources, such as, but not limited to, tax anticipation warrants and General State Aid
D41: certificates or tax anticipation warrants and revenue anticipation notes.
C42: 17 | D42: The district has issued school or teacher orders for wages as permitted in Illinois School Code [105 ILCS 5/8-16, 32-7.2 and 34-76] or issued funding
D43: bonds for this purpose pursuant to Illinois School Code [105 ILCS 5/8-6; 32-7.2; 34-76; and 19-8].
C44: 18 | D44: The district has for two consecutive years shown an excess of expenditures/other uses over revenues/other sources and beginning fund balances
D45: on its annual financial report for the aggregate totals of the Educational, Operations & Maintenance, Transportation, and Working Cash Funds.
A47: PART C - OTHER ISSUES
B49: X | C49: 19 | D49: Student Activity Funds, Imprest Funds, or other funds maintained by the district were excluded from the audit.
B50: X | C50: 20 | D50: Findings, other than those listed in Part A (above), were reported (e.g. student activity fund findings).
C51: 21 | D51: Federal Stimulus Funds were not maintained and expended in accordance with the American Recovery and Reinvestment Act (ARRA) of 2009. If checked,
D52: an explanation must be provided.
B53: X | C53: 22 | D53: Check this box if the district is subject to the Property Tax Extension Limitation Law. | G53: Effective Date: | H53: 1995-01-01 | I53: (Ex: 00/00/0000)
B54: X | C54: 23 | D54: If the type of Auditor Report designated on the cover page is other than an unqualified opinion and is due to reason(s) other than solely Cash Basis Accounting,
D55: please check and explain the reason(s) in the box below.
B57: Disclaimer of opinion regarding student activity fund balances. Unmodified opinion on modified cash basis for all other opinion units.
A70: PART D - EXPLANATION OF ACCOUNTING PRACTICES FOR LATE MANDATED CATEGORICAL PAYMENTS
D71: (For School Districts who report on an Accrual/Modified Accrual Accounting Basis only)
A73: School districts that report on the accrual/modified accrual basis of accounting must identify where late mandated categorical payments (Acct Codes 3100, 3105, 3110, 3500, and 3510)
A74: are recorded. Depending on the accounting procedure these amounts will be used to adjust the Direct Receipts/Revenues in calculation 1 and 2 of the Financial Profile Score.
A75: In FY2017, identify those late payments recorded as Intergovermental Receivables, Other Recievables, or Deferred Revenue & Other Current Liabilities or Direct Receipts/Revenue.
A76: Payments should only be listed once.
C77: 24 | D77: Enter the date that the district used to accrue mandated categorical payments | G77: Date:
C79: 25 | D79: For the listed mandated categorical (Revenue Code (3110, 3500, 3510, 3100, 3105) that were vouchered prior to June 30th, but not released until after year end
D80: as reported in ISBE FRIS system, enter the amounts that were accrued in the chart below.
A83: Account Name | E83: 3110 | F83: 3500 | G83: 3510 | H83: 3100 | I83: 3105 | J83: Total
A84: Deferred Revenues (490)
A85: Mandated Categoricals Payments (3110, 3500, 3510, 3100, 3105) | J85: =SUM(E85:I85) -> 0
A87: Direct Receipts/Revenue
A88: Mandated Categoricals Payments (3110, 3500, 3510, 3100, 3105 | J88: =SUM(E88:I88) -> 0
A90: Total | J90: =SUM(J85:J89) -> 0
B92: * Revenue Code (3110-Sp Ed Personnel, 3510-Sp Ed Transportation, 3500-Regular/Vocational Transportation, 3105-Sp Ed Funding for Children Requiring Services,
B93: 3100-Sp Ed Private Facilities)
A94: PART E - QUALIFICATIONS OF AUDITING FIRM
A95: * School District/Joint Agreement entities must verify the qualifications of the auditing firm by requesting the most current peer review report and the corresponding acceptance
A96: letter from the approved peer review program for the current peer review.
A97: * A school district/joint agreement who engages with an auditing firm who is not licensed and qualified will be required to complete a new audit by a qualified auditing firm
B98: at the school district's/joint agreement's expense.
B101: Comments Applicable to the Auditor's Questionnaire:
C114: Baker Tilly Virchow Krause, LLP
D115: Name of Audit Firm (print)
C117: The undersigned affirms that this audit was conducted by a qualified auditing firm and in accordance with the applicable standards [23 Illinois Administrative Code Part 100] and the scope of the audit conformed to the requirements of subsection (a) or (b) of 23 Illinois Administrative Code Part 100 Section 110, as applicable.
D119: Signature | F119: mm/dd/yyyy

Sheet FP Info 3
A1: FINANCIAL PROFILE INFORMATION
A3: Required to be completed for School Districts only.
A5: A. | B5: Tax Rates (Enter the tax rate - ex: .0150 for $1.50)
D7: Tax Year 2016 | F7: Equalized Assessed Valuation (EAV): | J7: 1209252258
D9: Educational | F9: Operations & Maintenance | H9: Transportation | J9: Combined Total | L9: Working Cash
A10: Rate(s): | D10: 0.034026 | E10: + | F10: 0.005347 | G10: + | H10: 0.005987 | I10: = | J10: =ROUND(D10+F10+H10,5) -> 0.04536 | L10: 0.000486
D11: =IF(SUM(J10)<=0.0999999,"","Enter the Tax Rates by moving the decimal two places to the left.") -> 
A13: B. | B13: Results of Operations *
D15: Receipts/Revenues | F15: Disbursements/ Expenditures | H15: Excess/ (Deficiency) | J15: Fund Balance
D16: =SUM('Acct Summary 7-8'!C8,'Acct Summary 7-8'!D8,'Acct Summary 7-8'!F8,'Acct Summary 7-8'!I8) -> 99339395 | F16: =SUM('Acct Summary 7-8'!C17,'Acct Summary 7-8'!D17,'Acct Summary 7-8'!F17) -> 99360788 | H16: =SUM(D16-F16) -> -21393 | J16: =SUM('Acct Summary 7-8'!C81,'Acct Summary 7-8'!D81,'Acct Summary 7-8'!F81,'Acct Summary 7-8'!I81) -> 25859851
B17: * | C17: The numbers shown are the sum of entries on Pages 7 & 8, lines 8, 17, 20, and 81 for the Educational, Operations & Maintenance,
C18: Transportation and Working Cash Funds.
A20: C. | B20: Short-Term Debt **
D21: CPPRT Notes | F21: TAWs | H21: TANs | J21: TO/EMP. Orders | L21: GSA Certificates
D22: ='Short-Term Long-Term Debt 25'!F4 -> 0 | E22: + | F22: ='Short-Term Long-Term Debt 25'!F15 -> 0 | G22: + | H22: ='Short-Term Long-Term Debt 25'!F21 -> 0 | I22: + | J22: ='Short-Term Long-Term Debt 25'!F23 -> 0 | K22: + | L22: ='Short-Term Long-Term Debt 25'!F25 -> 0 | M22: +
D23: Other | F23: Total
D24: ='Short-Term Long-Term Debt 25'!F27 -> 0 | E24: = | F24: =SUM(D22,F22,H22,J22,L22, D24) -> 0
B25: ** | C25: The numbers shown are the sum of entries on page 25.
A28: D. | B28: Long-Term Debt
B29: Check the applicable box for long-term debt allowance by type of district.
B31: X | C31: a. | D31: 6.9% for elementary and high school districts, | H31: =IF(B31="X",(J7*0.069),IF(B32="X",(J7*0.138),"Enter x in a.or b.")) -> 83438405.8
C32: b. | D32: 13.8% for unit districts.
B34: Long-Term Debt Outstanding:
C36: c. | D36: Long-Term Debt (Principal only) | G36: Acct
D37: Outstanding:……….....…………….... | G37: 511 | H37: ='Assets-Liab 5-6'!N36 -> 56455000
A40: E. | B40: Material Impact on Financial Position
B41: If applicable, check any of the following items that may have a material impact on the entity's financial position during future reporting periods.
B42: Attach sheets as needed explaining each item checked.
C44: Pending Litigation
C45: Material Decrease in EAV
C46: Material Increase/Decrease in Enrollment
C47: Adverse Arbitration Ruling
C48: Passage of Referendum
C49: Taxes Filed Under Protest
C50: Decisions By Local Board of Review or Illinois Property Tax Appeal Board (PTAB)
C51: Other Ongoing Concerns (Describe & Itemize)
B53: Comments:

Sheet Fin Profile 4
A2: ESTIMATED FINANCIAL PROFILE SUMMARY
A3: (Go to the following website for reference to the Financial Profile)
A4: https://www.isbe.net/Pages/School-District-Financial-Profile.aspx
C7: District Name: | D7: =COVER!A17 -> Thornton Township High School District 205
C8: District Code: | D8: =COVER!A13 -> 7016205017
C9: County Name: | D9: =COVER!A15 -> Cook
B11: 1. | C11: Fund Balance to Revenue Ratio: | H11: Total | K11: Ratio | M11: Score | O11: =IF(K12>0.24999,"4",IF(K12>0.09999,"3",IF(K12>=0,"2",1))) -> 4
C12: Total Sum of Fund Balance (P8, Cells C81, D81, F81 & I81) | F12: Funds 10, 20, 40, 70 + (50 & 80 if negative) | H12: =SUM('Acct Summary 7-8'!C81+'Acct Summary 7-8'!D81+'Acct Summary 7-8'!F81+'Acct Summary 7-8'!I81+IF('Acct Summary 7-8'!G81<0,'Acct Summary 7-8'!G81,"0")+IF('Acct Summary 7-8'!J81<0,'Acct Summary 7-8'!J81,"0")) -> 25859851 | K12: =TRUNC((H12/H13*100000),5)/100000 -> 0.2603181849 | M12: Weight | O12: 0.35
C13: Total Sum of Direct Revenues (P7, Cell C8, D8, F8 & I8) | F13: Funds 10, 20, 40, & 70, | H13: =SUM('Acct Summary 7-8'!C8+'Acct Summary 7-8'!D8+'Acct Summary 7-8'!F8+'Acct Summary 7-8'!I8)+H14 -> 99339395 | M13: Value | O13: =(O11*O12) -> 1.4
C14: Less: Operating Debt Pledged to Other Funds (P8, Cell C54 thru D74) | F14: Minus Funds 10 & 20 | H14: =-SUM('Acct Summary 7-8'!C54:D56,'Acct Summary 7-8'!C58:D60,'Acct Summary 7-8'!C62:D64,'Acct Summary 7-8'!C66:D68,'Acct Summary 7-8'!C70:D72,'Acct Summary 7-8'!C74:D74) -> 0
C15: (Excluding C:D57, C:D61, C:D65, C:D69 and C:D73)
B16: 2. | C16: Expenditures to Revenue Ratio: | H16: Total | K16: Ratio | M16: Score | O16: =IF(K17>1.2,"1",IF(K17>1.1,"2",IF(K17>1,"3",4))) -> 3
C17: Total Sum of Direct Expenditures (P7, Cell C17, D17, F17, I17) | F17: Funds 10, 20 & 40 | H17: =SUM('Acct Summary 7-8'!C17+'Acct Summary 7-8'!D17+'Acct Summary 7-8'!F17) -> 99360788 | K17: =TRUNC((H17/H18*100000),5)/100000 -> 1.000215353 | M17: Adjustment | O17: =IF(AND(O16="2", J20 > 2),"1",IF(AND(O16 = "1", J20 > 2),"2",IF(AND(O16="1", J20 >1),"1","0"))) -> 0
C18: Total Sum of Direct Revenues (P7, Cell C8, D8, F8, & I8) | F18: Funds 10, 20, 40 & 70, | H18: =SUM('Acct Summary 7-8'!C8+'Acct Summary 7-8'!D8+'Acct Summary 7-8'!F8+'Acct Summary 7-8'!I8)+H19 -> 99339395 | M18: Weight | O18: 0.35
C19: Less: Operating Debt Pledged to Other Funds (P8, Cell C54 thru D74) | F19: Minus Funds 10 & 20 | H19: =-SUM('Acct Summary 7-8'!C54:D56,'Acct Summary 7-8'!C58:D60,'Acct Summary 7-8'!C62:D64,'Acct Summary 7-8'!C66:D68,'Acct Summary 7-8'!C70:D72,'Acct Summary 7-8'!C74:D74) -> 0
C20: (Excluding C:D57, C:D61, C:D65, C:D69 and C:D73) | J20: =IF(K17<=1,"0",TRUNC(((K12-0.1)/(K17-1)*100),5)/100) -> 744.4450863 | K20: =IF(K17<=1,"0",IF(AND(O16="2", J20 > 2),TRUNC(((K12-0.1)/(K17-1)*100),5)/100,IF(AND(O16 = "1", J20 > 2),TRUNC(((K12-0.1)/(K17-1)*100),5)/100,IF(AND(O16="1", J20 >1),TRUNC(((K12-0.1)/(K17-1)*100),5)/100,"")))) ->  | M20: Value | O20: =(O16+O17)*O18 -> 1.05
C21: Possible Adjustment:
B23: 3. | C23: Days Cash on Hand: | H23: Total | K23: Days | M23: Score | O23: =IF(K24>=180,"4",IF(K24>=90,"3",IF(K24>=30,"2",1))) -> 3
C24: Total Sum of Cash & Investments (P5, Cell C4, D4, F4, I4 & C5, D5, F5 & I5) | F24: Funds 10, 20 40 & 70 | H24: =SUM('Assets-Liab 5-6'!C4+'Assets-Liab 5-6'!D4+'Assets-Liab 5-6'!F4+'Assets-Liab 5-6'!I4+'Assets-Liab 5-6'!C5+'Assets-Liab 5-6'!D5+'Assets-Liab 5-6'!F5+'Assets-Liab 5-6'!I5) -> 25651927 | K24: =TRUNC(((H24/H25*100000)/100000),2) -> 92.94 | M24: Weight | O24: 0.1
C25: Total Sum of Direct Expenditures (P7, Cell C17, D17, F17 & I17) | F25: Funds 10, 20, 40 divided by 360 | H25: =ROUND((H17/360),5) -> 276002.1889 | M25: Value | O25: =O23*O24 -> 0.3
B27: 4. Percent of Short-Term Borrowing Maximum Remaining: | H27: Total | K27: Percent | M27: Score | O27: =IF(K28>=75,"4",IF(K28>=50,"3",IF(K28>=25,"2",1))) -> 4
C28: Tax Anticipation Warrants Borrowed (P25, Cell F6-7 & F11) | F28: Funds 10, 20 & 40 | H28: =SUM('Short-Term Long-Term Debt 25'!F6,'Short-Term Long-Term Debt 25'!F7,'Short-Term Long-Term Debt 25'!F11) -> 0 | K28: =TRUNC(100-((((H28/H29*100))*100)/100),2) -> 100 | M28: Weight | O28: 0.1
C29: EAV x 85% x Combined Tax Rates (P3, Cell J7 and J10) | F29: (.85 x EAV) x Sum of Combined Tax Rates | H29: =ROUND((0.85*'FP Info 3'!J7*'FP Info 3'!J10),5) -> 46623930.06 | M29: Value | O29: =O27*O28 -> 0.4
B31: 5. Percent of Long-Term Debt Margin Remaining: | H31: Total | K31: Percent | M31: Score | O31: =IF(K32>=75,"4",IF(K32>=50,"3",IF(K32>=25,"2",1))) -> 2
C32: Long-Term Debt Outstanding (P3, Cell H37) | H32: ='FP Info 3'!H37 -> 56455000 | K32: =TRUNC(100-((((H32/H33*100))*100)/100),2) -> 32.33 | M32: Weight | O32: 0.1
C33: Total Long-Term Debt Allowed (P3, Cell H31) | H33: =IF('FP Info 3'!H31="Enter X in a or b"," ",'FP Info 3'!H31) -> 83438405.8 | M33: Value | O33: =(O31*O32) -> 0.2
M35: Total Profile Score: | O35: =(O13+O20+O25+O29+O33) -> 3.35 | P35: *
M37: Estimated 2018 Financial Profile Designation: | O37: =IF(O35>3.53,"RECOGNITION",IF(O35>3.07,"REVIEW ",IF(O35>2.61,"WARNING","WATCH"))) -> REVIEW
F39: * | H39: Total Profile Score may change based on data provided on the Financial Profile
H40: Information, page 3 and by the timing of mandated categorical payments. Final score
H41: will be calculated by ISBE.

Sheet Assets-Liab 5-6
A1: ASSETS (Enter Whole Dollars) | C1: (10) | D1: (20) | E1: (30) | F1: (40) | G1: (50) | H1: (60) | I1: (70) | J1: (80) | K1: (90) | M1: Account Groups
B2: Acct. # | C2: Educational | D2: Operations & Maintenance | E2: Debt Services | F2: Transportation | G2: Municipal Retirement/Social Security | H2: Capital Projects | I2: Working Cash | J2: Tort | K2: Fire Prevention & Safety | L2: Agency Fund | M2: General Fixed Assets | N2: General Long-Term Debt
A3: CURRENT ASSETS (100)
A4: Cash (Accounts 111 through 115) 1 | C4: 0 | D4: 0 | E4: 4864136 | F4: 13612976 | G4: 2676109 | H4: 31797701 | I4: 12038951 | J4: 3483653 | K4: 3528152 | L4: 390121
A5: Investments | B5: 120 | C5: 0 | D5: 0 | E5: 0 | F5: 0 | G5: 0 | H5: 0 | I5: 0 | J5: 0 | K5: 0
A6: Taxes Receivable | B6: 130 | C6: 0 | D6: 0 | E6: 0 | F6: 0 | G6: 0 | H6: 0 | I6: 0 | J6: 0 | K6: 0
A7: Interfund Receivables | B7: 140 | C7: 0 | D7: 0 | E7: 0 | F7: 3866529 | G7: 0 | H7: 0 | I7: 0 | J7: 0 | K7: 0
A8: Intergovernmental Accounts Receivable | B8: 150 | C8: 0 | D8: 0 | E8: 0 | F8: 0 | G8: 0 | H8: 0 | I8: 0 | J8: 0 | K8: 0
A9: Other Receivables | B9: 160 | C9: 0 | D9: 0 | E9: 0 | F9: 0 | G9: 0 | H9: 0 | I9: 0 | J9: 0 | K9: 0
A10: Inventory | B10: 170 | C10: 0 | D10: 0 | E10: 0 | F10: 0 | G10: 0 | H10: 0 | I10: 0 | J10: 0 | K10: 0
A11: Prepaid Items | B11: 180 | C11: 0 | D11: 0 | E11: 0 | F11: 0 | G11: 0 | H11: 0 | I11: 0 | J11: 0 | K11: 0
A12: Other Current Assets (Describe & Itemize) | B12: 190 | C12: 0 | D12: 0 | E12: 0 | F12: 0 | G12: 0 | H12: 0 | I12: 0 | J12: 0 | K12: 0
A13: Total Current Assets | C13: =SUM(C4:C12) -> 0 | D13: =SUM(D4:D12) -> 0 | E13: 4864136 | F13: 17479505 | G13: 2676109 | H13: 31797701 | I13: 12038951 | J13: 3483653 | K13: 3528152 | L13: 390121
A14: CAPITAL ASSETS (200)
A15: Works of Art & Historical Treasures | B15: 210 | M15: =+'Cap Outlay Deprec 27'!F3 -> 0
A16: Land | B16: 220 | M16: ='Cap Outlay Deprec 27'!F5+'Cap Outlay Deprec 27'!F6 -> 2007357
A17: Building & Building Improvements | B17: 230 | M17: =+'Cap Outlay Deprec 27'!F8+'Cap Outlay Deprec 27'!F9 -> 99122395
A18: Site Improvements & Infrastructure | B18: 240 | M18: =+'Cap Outlay Deprec 27'!F10 -> 4471739
A19: Capitalized Equipment | B19: 250 | M19: =+'Cap Outlay Deprec 27'!F12+'Cap Outlay Deprec 27'!F13+'Cap Outlay Deprec 27'!F14 -> 12306591
A20: Construction in Progress | B20: 260 | M20: =+'Cap Outlay Deprec 27'!F15 -> 2862869
A21: Amount Available in Debt Service Funds | B21: 340 | N21: =SUM(E38:E39) -> 4864136
A22: Amount to be Provided for Payment on Long-Term Debt | B22: 350 | N22: ='Short-Term Long-Term Debt 25'!J49 -> 51590864
A23: Total Capital Assets | M23: =SUM(M15:M22) -> 120770951 | N23: =SUM(N21:N22) -> 56455000
A24: CURRENT LIABILITIES (400)
A25: Interfund Payables | B25: 410 | C25: 3262620 | D25: 603909 | E25: 0 | F25: 0 | G25: 0 | H25: 0 | J25: 0 | K25: 0
A26: Intergovernmental Accounts Payable | B26: 420 | C26: 0 | D26: 0 | E26: 0 | F26: 0 | G26: 0 | H26: 0 | I26: 0 | J26: 0 | K26: 0
A27: Other Payables | B27: 430 | C27: 0 | D27: 0 | E27: 0 | F27: 0 | G27: 0 | H27: 0 | I27: 0 | J27: 0 | K27: 0
A28: Contracts Payable | B28: 440 | C28: 0 | D28: 0 | E28: 0 | F28: 0 | G28: 0 | H28: 0 | I28: 0 | J28: 0 | K28: 0
A29: Loans Payable | B29: 460 | C29: 0 | D29: 0 | E29: 0 | F29: 0 | G29: 0 | H29: 0 | I29: 0 | J29: 0 | K29: 0
A30: Salaries & Benefits Payable | B30: 470 | C30: 0 | D30: 0 | E30: 0 | F30: 0 | G30: 0 | H30: 0 | I30: 0 | J30: 0 | K30: 0
A31: Payroll Deductions & Withholdings | B31: 480 | C31: 0 | D31: 0 | E31: 0 | F31: 0 | G31: 0 | H31: 0 | I31: 0 | J31: 0 | K31: 0
A32: Deferred Revenues & Other Current Liabilities | B32: 490 | C32: -195438 | D32: -12486 | E32: 0 | F32: 0 | G32: 0 | H32: 0 | I32: 0 | J32: 0 | K32: 0
A33: Due to Activity Fund Organizations | B33: 493 | C33: 0 | D33: 0 | E33: 0 | F33: 0 | G33: 0 | H33: 0 | I33: 0 | J33: 0 | K33: 0 | L33: =L13 -> 390121
A34: Total Current Liabilities | C34: =SUM(C25:C33) -> 3067182 | D34: =SUM(D25:D33) -> 591423 | E34: 0 | F34: 0 | G34: 0 | H34: 0 | I34: 0 | J34: 0 | K34: 0 | L34: =SUM(L33) -> 390121
A35: LONG-TERM LIABILITIES (500)
A36: Long-Term Debt Payable (General Obligation, Revenue, Other) | B36: 511 | N36: ='Short-Term Long-Term Debt 25'!I49 -> 56455000
A37: Total Long-Term Liabilities | N37: =SUM(N36:N36) -> 56455000
A38: Reserved Fund Balance | B38: 714 | C38: 0 | D38: -591423 | E38: 64487 | F38: 470473 | G38: 51572 | H38: 4698433 | I38: 0 | J38: 3483653 | K38: 39627 | L38: 0
A39: Unreserved Fund Balance | B39: 730 | C39: -3067182 | D39: 0 | E39: 4799649 | F39: 17009032 | G39: 2624537 | H39: 27099268 | I39: 12038951 | J39: 0 | K39: 3488525 | L39: =L13-L34 -> 0
A40: Investment in General Fixed Assets | M40: =+'Cap Outlay Deprec 27'!F16 -> 120770951
A41: Total Liabilities and Fund Balance | C41: =(SUM(C34,C37,C38,C39)) -> 0 | D41: =SUM(D34,D37,D38:D39) -> 0 | E41: 4864136 | F41: 17479505 | G41: 2676109 | H41: 31797701 | I41: 12038951 | J41: 3483653 | K41: 3528152 | L41: 390121 | M41: =SUM(M40) -> 120770951 | N41: =SUM(N37) -> 56455000

Sheet Acct Summary 7-8
A1: Description (Enter Whole Dollars) | C1: (10) | D1: (20) | E1: (30) | F1: (40) | G1: (50) | H1: (60) | I1: (70) | J1: (80) | K1: (90)
B2: Acct # | C2: Educational | D2: Operations & Maintenance | E2: Debt Services | F2: Transportation | G2: Municipal Retirement/ Social Security | H2: Capital Projects | I2: Working Cash | J2: Tort | K2: Fire Prevention & Safety
A3: RECEIPTS/REVENUES
A4: LOCAL SOURCES | B4: 1000 | C4: ='Revenues 9-14'!C109 -> 44242765 | D4: ='Revenues 9-14'!D109 -> 6081432 | E4: ='Revenues 9-14'!E109 -> 9024427 | F4: ='Revenues 9-14'!F109 -> 6740840 | G4: ='Revenues 9-14'!G109 -> 2414427 | H4: ='Revenues 9-14'!H109 -> 71467 | I4: ='Revenues 9-14'!I109 -> 549818 | J4: ='Revenues 9-14'!J109 -> 2050612 | K4: ='Revenues 9-14'!K109 -> 998237
A5: FLOW-THROUGH RECEIPTS/REVENUES FROM ONE DISTRICT TO ANOTHER DISTRICT | B5: 2000 | C5: ='Revenues 9-14'!C114 -> 0 | D5: ='Revenues 9-14'!D114 -> 0 | F5: ='Revenues 9-14'!F114 -> 0 | G5: ='Revenues 9-14'!G114 -> 0
A6: STATE SOURCES | B6: 3000 | C6: ='Revenues 9-14'!C173 -> 31591240 | D6: ='Revenues 9-14'!D173 -> 111918 | E6: ='Revenues 9-14'!E173 -> 0 | F6: ='Revenues 9-14'!F173 -> 2922699 | G6: ='Revenues 9-14'!G173 -> 0 | H6: ='Revenues 9-14'!H173 -> 0 | I6: ='Revenues 9-14'!I173 -> 0 | J6: ='Revenues 9-14'!J173 -> 0 | K6: ='Revenues 9-14'!K173 -> 0
A7: FEDERAL SOURCES | B7: 4000 | C7: ='Revenues 9-14'!C274 -> 7098683 | D7: ='Revenues 9-14'!D274 -> 0 | E7: ='Revenues 9-14'!E274 -> 0 | F7: ='Revenues 9-14'!F274 -> 0 | G7: ='Revenues 9-14'!G274 -> 0 | H7: ='Revenues 9-14'!H274 -> 0 | I7: ='Revenues 9-14'!I274 -> 0 | J7: ='Revenues 9-14'!J274 -> 0 | K7: ='Revenues 9-14'!K274 -> 0
A8: Total Direct Receipts/Revenues | C8: =SUM(C4:C7) -> 82932688 | D8: =SUM(D4:D7) -> 6193350 | E8: 9024427 | F8: 9663539 | G8: 2414427 | H8: 71467 | I8: 549818 | J8: 2050612 | K8: 998237
A9: Receipts/Revenues for "On Behalf" Payments 2 | B9: 3998 | C9: 33263188
A10: Total Receipts/Revenues | C10: =SUM(C8:C9) -> 116195876 | D10: =SUM(D8:D9) -> 6193350 | E10: 9024427 | F10: 9663539 | G10: 2414427 | H10: 71467 | I10: 549818 | J10: 2050612 | K10: 998237
A11: DISBURSEMENTS/EXPENDITURES
A12: Instruction | B12: 1000 | C12: ='Expenditures 15-22'!K33 -> 48417939 | G12: ='Expenditures 15-22'!K223 -> 1012342
A13: Support Services | B13: 2000 | C13: ='Expenditures 15-22'!K74 -> 21593041 | D13: ='Expenditures 15-22'!K129 -> 11543011 | F13: ='Expenditures 15-22'!K178 -> 7429886 | G13: ='Expenditures 15-22'!K273 -> 972850 | H13: ='Expenditures 15-22'!K296 -> 2867504 | J13: ='Expenditures 15-22'!K323 -> 197862 | K13: ='Expenditures 15-22'!K341 -> 0
A14: Community Services | B14: 3000 | C14: ='Expenditures 15-22'!K75 -> 687722 | D14: ='Expenditures 15-22'!K130 -> 0 | F14: ='Expenditures 15-22'!K179 -> 0 | G14: ='Expenditures 15-22'!K274 -> 20708
A15: Payments to Other Districts & Govermental Units | B15: 4000 | C15: ='Expenditures 15-22'!K102 -> 9689189 | D15: ='Expenditures 15-22'!K138 -> 0 | E15: ='Expenditures 15-22'!K154 -> 0 | F15: ='Expenditures 15-22'!K190 -> 0 | G15: ='Expenditures 15-22'!K278 -> 0 | H15: ='Expenditures 15-22'!K303 -> 0 | K15: ='Expenditures 15-22'!K344 -> 0
A16: Debt Service | B16: 5000 | C16: ='Expenditures 15-22'!K112 -> 0 | D16: ='Expenditures 15-22'!K148 -> 0 | E16: ='Expenditures 15-22'!K166 -> 40208066 | F16: ='Expenditures 15-22'!K202 -> 0 | G16: ='Expenditures 15-22'!K286 -> 0 | J16: ='Expenditures 15-22'!K329 -> 0 | K16: ='Expenditures 15-22'!K352 -> 0
A17: Total Direct Disbursements/Expenditures | C17: =SUM(C12:C16) -> 80387891 | D17: 11543011 | E17: 40208066 | F17: 7429886 | G17: 2005900 | H17: 2867504 | J17: =SUM(J12:J16) -> 197862 | K17: =SUM(K12:K16) -> 0
A18: Disbursements/Expenditures for "On Behalf" Payments 2 | B18: 4180 | C18: =C9 -> 33263188 | D18: 0 | E18: 0 | F18: 0 | G18: 0 | H18: 0 | J18: =J9 -> 0 | K18: =K9 -> 0
A19: Total Disbursements/Expenditures | C19: =SUM(C17:C18) -> 113651079 | D19: 11543011 | E19: 40208066 | F19: 7429886 | G19: 2005900 | H19: 2867504 | J19: =SUM(J17:J18) -> 197862 | K19: =SUM(K17:K18) -> 0
A20: Excess of Direct Receipts/Revenues Over (Under) Direct Disbursements/Expenditures 3 | C20: =C8-C17 -> 2544797 | D20: =D8-D17 -> -5349661 | E20: -31183639 | F20: 2233653 | G20: 408527 | H20: -2796037 | I20: 549818 | J20: 1852750 | K20: 998237
A21: OTHER SOURCES/USES OF FUNDS
A22: OTHER SOURCES OF FUNDS (7000)
A23: PERMANENT TRANSFER FROM VARIOUS FUNDS
A24: Abolishment of the Working Cash Fund 12 | B24: 7110
A25: Abatement of the Working Cash Fund 12 | B25: 7110 | C25: 0 | D25: 0 | E25: 0 | F25: 0 | G25: 0 | H25: 0 | J25: 0 | K25: 0
A26: Transfer of Working Cash Fund Interest | B26: 7120 | C26: 0 | D26: 0 | E26: 0 | F26: 0 | G26: 0 | H26: 0 | J26: 0 | K26: 0
A27: Transfer Among Funds | B27: 7130 | C27: 0 | D27: 0 | F27: 0
A28: Transfer of Interest | B28: 7140 | C28: 0 | D28: 0 | E28: 0 | F28: 0 | G28: 0 | H28: 0 | I28: 0 | J28: 0 | K28: 0
A29: Transfer from Capital Project Fund to O&M Fund | B29: 7150 | D29: 0
A30: Transfer of Excess Fire Prevention & Safety Tax and Interest Proceeds to O&M Fund 4 | B30: 7160 | D30: 0
A31: Transfer to Excess Fire Prevention & Safety Bond and Interest Proceeds to Debt Service Fund 5 | B31: 7170 | E31: 0
A32: SALE OF BONDS (7200)
A33: Principal on Bonds Sold | B33: 7210 | C33: 0 | D33: 0 | E33: 27426828 | F33: 0 | H33: 29817372 | I33: 3370800 | J33: 0 | K33: 0
A34: Premium on Bonds Sold | B34: 7220 | C34: 0 | D34: 0 | E34: 4337372 | F34: 0 | H34: 149400 | I34: 0 | J34: 0 | K34: 0
A35: Accrued Interest on Bonds Sold | B35: 7230 | C35: 0 | D35: 0 | E35: 0 | F35: 0 | H35: 0 | I35: 0 | J35: 0 | K35: 0
A36: Sale or Compensation for Fixed Assets 6 | B36: 7300 | C36: 0 | D36: 0 | E36: 0 | F36: 0 | G36: 0 | H36: 0 | J36: 0 | K36: 0
A37: Transfer to Debt Service to Pay Principal on Capital Leases | B37: 7400 | E37: =SUM(C54:D57,H54:H57) -> 0
A38: Transfer to Debt Service to Pay Interest on Capital Leases | B38: 7500 | E38: =SUM(C58:D61,H58:H61) -> 0
A39: Transfer to Debt Service to Pay Principal on Revenue Bonds | B39: 7600 | E39: =SUM(C62:D65) -> 0
A40: Transfer to Debt Service Fund to Pay Interest on Revenue Bonds | B40: 7700 | E40: =SUM(C66:D69) -> 0
A41: Transfer to Capital Projects Fund | B41: 7800 | H41: =SUM(C70:D73) -> 0
A42: ISBE Loan Proceeds | B42: 7900 | C42: 0 | D42: 0 | E42: 0 | F42: 0 | G42: 0 | H42: 0 | K42: 0
A43: Other Sources Not Classified Elsewhere | B43: 7990 | C43: 0 | D43: 0 | E43: 0 | F43: 0 | G43: 0 | H43: 0 | I43: 0 | J43: 0 | K43: 0
A44: Total Other Sources of Funds | C44: =SUM(C24:C43) -> 0 | D44: =SUM(D24:D43) -> 0 | E44: 31764200 | F44: 0 | G44: 0 | H44: 29966772 | I44: 3370800 | J44: 0 | K44: 0
A45: OTHER USES OF FUNDS (8000)
A46: PERMANENT TRANSFER TO VARIOUS OTHER FUNDS (8100)
A47: Abolishment or Abatement of the Working Cash Fund 12 | B47: 8110 | I47: =SUM(C24,C25:H25,J25:K25) -> 0
A48: Transfer of Working Cash Fund Interest 12 | B48: 8120 | I48: =SUM(C26:H26,J26,K26) -> 0
A49: Transfer Among Funds | B49: 8130 | C49: 0 | D49: 0 | F49: 0
A50: Transfer of Interest | B50: 8140 | C50: 0 | D50: 0 | E50: 0 | F50: 0 | G50: 0 | H50: 0 | J50: 0
A51: Transfer from Capital Project Fund to O&M Fund | B51: 8150 | H51: =SUM(D29) -> 0
A52: Transfer of Excess Fire Prevention & Safety Tax & Interest Proceeds to O&M Fund 4 | B52: 8160 | K52: =D30 -> 0
A53: Transfer of Excess Fire Prevention & Safety Bond and Interest Proceeds to Debt Service Fund 5 | B53: 8170 | K53: =E31 -> 0
A54: Taxes Pledged to Pay Principal on Capital Leases | B54: 8410
A55: Grants/Reimbursements Pledged to Pay Principal on Capital Leases | B55: 8420
A56: Other Revenues Pledged to Pay Principal on Capital Leases | B56: 8430
A57: Fund Balance Transfers Pledged to Pay Principal on Capital Leases | B57: 8440 | C57: 0 | D57: 0 | H57: 0
A58: Taxes Pledged to Pay Interest on Capital Leases | B58: 8510
A59: Grants/Reimbursements Pledged to Pay Interest on Capital Leases | B59: 8520
A60: Other Revenues Pledged to Pay Interest on Capital Leases | B60: 8530
A61: Fund Balance Transfers Pledged to Pay Interest on Capital Leases | B61: 8540 | C61: 0 | D61: 0 | H61: 0
A62: Taxes Pledged to Pay Principal on Revenue Bonds | B62: 8610
A63: Grants/Reimbursements Pledged to Pay Principal on Revenue Bonds | B63: 8620
A64: Other Revenues Pledged to Pay Principal on Revenue Bonds | B64: 8630
A65: Fund Balance Transfers Pledged to Pay Principal on Revenue Bonds | B65: 8640 | C65: 0 | D65: 0
A66: Taxes Pledged to Pay Interest on Revenue Bonds | B66: 8710
A67: Grants/Reimbursements Pledged to Pay Interest on Revenue Bonds | B67: 8720
A68: Other Revenues Pledged to Pay Interest on Revenue Bonds | B68: 8730
A69: Fund Balance Transfers Pledged to Pay Interest on Revenue Bonds | B69: 8740 | C69: 0 | D69: 0
A70: Taxes Transferred to Pay for Capital Projects | B70: 8810
A71: Grants/Reimbursements Pledged to Pay for Capital Projects | B71: 8820
A72: Other Revenues Pledged to Pay for Capital Projects | B72: 8830
A73: Fund Balance Transfers Pledged to Pay for Capital Projects | B73: 8840 | C73: 0 | D73: 0
A74: Transfer to Debt Service Fund to Pay Principal on ISBE Loans | B74: 8910 | C74: 0 | D74: 0 | F74: 0 | G74: 0 | H74: 0 | K74: 0
A75: Other Uses Not Classified Elsewhere | B75: 8990 | C75: 0 | D75: 0 | E75: 0 | F75: 0 | G75: 0 | H75: 0 | I75: 0 | J75: 0 | K75: 0
A76: Total Other Uses of Funds | C76: =SUM(C47:C75) -> 0 | D76: 0 | E76: 0 | F76: 0 | G76: 0 | H76: 0 | I76: 0 | J76: 0 | K76: 0
A77: Total Other Sources/Uses of Funds | C77: =C44-C76 -> 0 | D77: 0 | E77: 31764200 | F77: 0 | G77: 0 | H77: 29966772 | I77: 3370800 | J77: 0 | K77: 0
A78: Excess of Receipts/Revenues and Other Sources of Funds (Over/Under) Expenditures/Disbursements and Other Uses of Funds | C78: =C20+C77 -> 2544797 | D78: -5349661 | E78: 580561 | F78: 2233653 | G78: 408527 | H78: 27170735 | I78: 3920618 | J78: 1852750 | K78: 998237
A79: Fund Balances - July 1, 2016 | C79: -5611979 | D79: 4758238 | E79: 4283575 | F79: 15245852 | G79: 2267582 | H79: 4626966 | I79: 8118333 | J79: 1630903 | K79: 2529915
A80: Other Changes in Fund Balances - Increases (Decreases) (Describe & Itemize)
A81: Fund Balances - June 30, 2017 | C81: =(SUM(C78:C80)) -> -3067182 | D81: =SUM(D78:D80) -> -591423 | E81: =SUM(E78:E80) -> 4864136 | F81: 17479505 | G81: 2676109 | H81: 31797701 | I81: 12038951 | J81: 3483653 | K81: 3528152
A82: Change in Fund Balance FY09 - FY10 | C82: =(C81-C79) -> 2544797 | D82: =(D81-D79) -> -5349661 | E82: 580561 | F82: 2233653 | G82: 408527 | H82: 27170735 | I82: 3920618 | J82: 1852750 | K82: 998237
A83: % Change in Fund Balance FY09 - FY10 | C83: =C82/C81 -> -0.8296856854 | D83: =D82/D81 -> 9.045405742 | E83: 0.119355421 | F83: 0.1277869711 | G83: 0.1526570853 | H83: 0.8544874046 | I83: 0.3256610979 | J83: 0.5318411449 | K83: 0.2829348055

Sheet Revenues 9-14
A1: Description (Enter Whole Dollars) | C1: (10) | D1: (20) | E1: (30) | F1: (40) | G1: (50) | H1: (60) | I1: (70) | J1: (80) | K1: (90)
B2: Acct # | C2: Educational | D2: Operations & Maintenance | E2: Debt Services | F2: Transportation | G2: Municipal Retirement/ Social Security | H2: Capital Projects | I2: Working Cash | J2: Tort | K2: Fire Prevention & Safety
A3: RECEIPTS/REVENUES FROM LOCAL SOURCES (1000)
A4: AD VALOREM TAXES LEVIED BY LOCAL EDUCATION AGENCY | B4: 1100
A5: Designated Purposes Levies (1110-1120) 7 | C5: 34229124 | D5: 5377622 | E5: 9002885 | F5: 6606947 | G5: 768917 | H5: 0 | I5: 489594 | J5: 2034637 | K5: 979189
A6: Leasing Purposes Levy 8 | B6: 1130 | C6: 0 | D6: 557680
A7: Special Education Purposes Levy | B7: 1140 | C7: 3912278 | D7: 0 | F7: 0 | G7: 0 | H7: 0
A8: FICA/Medicare Only Purposes Levies | B8: 1150 | G8: 1521556
A9: Area Vocational Construction Purposes Levy | B9: 1160 | D9: 0 | E9: 0 | H9: 0
A10: Summer School Purposes Levy | B10: 1170 | C10: 0
A11: Other Tax Levies (Describe & Itemize) | B11: 1190 | C11: 0 | D11: 0 | E11: 0 | F11: 0 | G11: 0 | H11: 0 | I11: 0 | J11: 0 | K11: 0
A12: Total Ad Valorem Taxes Levied By District | C12: =SUM(C5:C11) -> 38141402 | D12: 5935302 | E12: 9002885 | F12: 6606947 | G12: 2290473 | H12: 0 | I12: 489594 | J12: 2034637 | K12: 979189
A13: PAYMENTS IN LIEU OF TAXES | B13: 1200
A14: Mobile Home Privilege Tax | B14: 1210 | C14: 0 | D14: 0 | E14: 0 | F14: 0 | G14: 0 | H14: 0 | I14: 0 | J14: 0 | K14: 0
A15: Payments from Local Housing Authorities | B15: 1220 | C15: 0 | D15: 0 | E15: 0 | F15: 0 | G15: 0 | H15: 0 | I15: 0 | J15: 0 | K15: 0
A16: Corporate Personal Property Replacement Taxes 9 | B16: 1230 | C16: 4123861 | D16: 0 | E16: 0 | F16: 0 | G16: 107979 | H16: 0 | I16: 0 | J16: 0 | K16: 0
A17: Other Payments in Lieu of Taxes (Describe & Itemize) | B17: 1290 | C17: 0 | D17: 0 | E17: 0 | F17: 0 | G17: 0 | H17: 0 | I17: 0 | J17: 0 | K17: 0
A18: Total Payments in Lieu of Taxes | C18: =SUM(C14:C17) -> 4123861 | D18: =SUM(D14:D17) -> 0 | E18: 0 | F18: 0 | G18: 107979 | H18: 0 | I18: 0 | J18: 0 | K18: 0
A19: TUITION | B19: 1300
A20: Regular - Tuition from Pupils or Parents (In State) | B20: 1311 | C20: 7
A21: Regular - Tuition from Other Districts (In State) | B21: 1312 | C21: 0
A22: Regular - Tuition from Other Sources (In State) | B22: 1313 | C22: 0
A23: Regular - Tuition from Other Sources (Out of State) | B23: 1314 | C23: 0
A24: Summer Sch - Tuition from Pupils or Parents (In State) | B24: 1321 | C24: 1359
A25: Summer Sch - Tuition from Other Districts (In State) | B25: 1322 | C25: 0
A26: Summer Sch - Tuition from Other Sources (In State) | B26: 1323 | C26: 0
A27: Summer Sch - Tuition from Other Sources (Out of State) | B27: 1324 | C27: 0
A28: CTE - Tuition from Pupils or Parents (In State) | B28: 1331 | C28: 0
A29: CTE - Tuition from Other Districts (In State) | B29: 1332 | C29: 0
A30: CTE - Tuition from Other Sources (In State) | B30: 1333 | C30: 0
A31: CTE - Tuition from Other Sources (Out of State) | B31: 1334 | C31: 0
A32: Special Ed - Tuition from Pupils or Parents (In State) | B32: 1341 | C32: 0
A33: Special Ed - Tuition from Other Districts (In State) | B33: 1342 | C33: 0
A34: Special Ed - Tuition from Other Sources (In State) | B34: 1343 | C34: 0
A35: Special Ed - Tuition from Other Sources (Out of State) | B35: 1344 | C35: 0
A36: Adult - Tuition from Pupils or Parents (In State) | B36: 1351 | C36: 0
A37: Adult - Tuition from Other Districts (In State) | B37: 1352 | C37: 0
A38: Adult - Tuition from Other Sources (In State) | B38: 1353 | C38: 0
A39: Adult - Tuition from Other Sources (Out of State) | B39: 1354 | C39: 0
A40: Total Tuition | C40: =SUM(C20:C39) -> 1366
A41: TRANSPORTATION FEES | B41: 1400
A42: Regular -Transp Fees from Pupils or Parents (In State) | B42: 1411 | F42: 0
A43: Regular - Transp Fees from Other Districts (In State) | B43: 1412 | F43: 0
A44: Regular - Transp Fees from Other Sources (In State) | B44: 1413 | F44: 0
A45: Regular - Transp Fees from Co-curricular Activities (In State) | B45: 1415 | F45: 0
A46: Regular Transp Fees from Other Sources (Out of State) | B46: 1416 | F46: 0
A47: Summer Sch - Transp. Fees from Pupils or Parents (In State) | B47: 1421 | F47: 0
A48: Summer Sch - Transp. Fees from Other Districts (In State) | B48: 1422 | F48: 0
A49: Summer Sch - Transp. Fees from Other Sources (In State) | B49: 1423 | F49: 0
A50: Summer Sch - Transp. Fees from Other Sources (Out of State) | B50: 1424 | F50: 0
A51: CTE - Transp Fees from Pupils or Parents (In State) | B51: 1431 | F51: 0
A52: CTE - Transp Fees from Other Districts (In State) | B52: 1432 | F52: 0
A53: CTE - Transp Fees from Other Sources (In State) | B53: 1433 | F53: 0
A54: CTE - Transp Fees from Other Sources (Out of State) | B54: 1434 | F54: 0
A55: Special Ed - Transp Fees from Pupils or Parents (In State) | B55: 1441 | F55: 0
A56: Special Ed - Transp Fees from Other Districts (In State) | B56: 1442 | F56: 0
A57: Special Ed - Transp Fees from Other Sources (In State) | B57: 1443 | F57: 0
A58: Special Ed - Transp Fees from Other Sources (Out of State) | B58: 1444 | F58: 0
A59: Adult - Transp Fees from Pupils or Parents (In State) | B59: 1451 | F59: 0
A60: Adult - Transp Fees from Other Districts (In State) | B60: 1452 | F60: 0
A61: Adult - Transp Fees from Other Sources (In State) | B61: 1453 | F61: 0
A62: Adult - Transp Fees from Other Sources (Out of State) | B62: 1454 | F62: 0
A63: Total Transportation Fees | F63: =SUM(F42:F62) -> 0
A64: EARNINGS ON INVESTMENTS | B64: 1500
A65: Interest on Investments | B65: 1510 | C65: 1315 | D65: 18030 | E65: 21542 | F65: 133893 | G65: 15975 | H65: 71467 | I65: 60224 | J65: 15975 | K65: 19048
A66: Gain or Loss on Sale of Investments | B66: 1520 | C66: 0 | D66: 0 | E66: 0 | F66: 0 | G66: 0 | H66: 0 | I66: 0 | J66: 0 | K66: 0
A67: Total Earnings on Investments | C67: =SUM(C65:C66) -> 1315 | D67: =SUM(D65:D66) -> 18030 | E67: 21542 | F67: 133893 | G67: 15975 | H67: 71467 | I67: 60224 | J67: 15975 | K67: 19048
A68: FOOD SERVICE | B68: 1600
A69: Sales to Pupils - Lunch | B69: 1611 | C69: 0
A70: Sales to Pupils - Breakfast | B70: 1612 | C70: 0
A71: Sales to Pupils - A la Carte | B71: 1613 | C71: 0
A72: Sales to Pupils - Other (Describe & Itemize) | B72: 1614 | C72: 0
A73: Sales to Adults | B73: 1620 | C73: 0
A74: Other Food Service (Describe & Itemize) | B74: 1690 | C74: 7284
A75: Total Food Service | C75: =SUM(C69:C74) -> 7284
A76: DISTRICT/SCHOOL ACTIVITY INCOME | B76: 1700
A77: Admissions - Athletic | B77: 1711 | C77: 0 | D77: 0
A78: Admissions - Other (Describe & Itemize) | B78: 1719 | C78: 0 | D78: 0
A79: Fees | B79: 1720 | C79: -500 | D79: 0
A80: Book Store Sales | B80: 1730 | C80: 0 | D80: 0
A81: Other District/School Activity Revenue (Describe & Itemize) | B81: 1790 | C81: 0 | D81: 0
A82: Total District/School Activity Income | C82: =SUM(C77:C81) -> -500 | D82: =SUM(D77:D81) -> 0
A83: TEXTBOOK INCOME | B83: 1800
A84: Rentals - Regular Textbooks | B84: 1811 | C84: -50
A85: Rentals - Summer School Textbooks | B85: 1812 | C85: 0
A86: Rentals - Adult/Continuing Education Textbooks | B86: 1813 | C86: 0
A87: Rentals - Other (Describe & Itemize) | B87: 1819 | C87: 0
A88: Sales - Regular Textbooks | B88: 1821 | C88: 0
A89: Sales - Summer School Textbooks | B89: 1822 | C89: 0
A90: Sales - Adult/Continuing Education Textbooks | B90: 1823 | C90: 0
A91: Sales - Other (Describe & Itemize) | B91: 1829 | C91: 0
A92: Other (Describe & Itemize) | B92: 1890 | C92: 0
A93: Total Textbook Income | C93: =SUM(C84:C92) -> -50
A94: OTHER REVENUE FROM LOCAL SOURCES | B94: 1900
A95: Rentals | B95: 1910 | C95: 0 | D95: 96093
A96: Contributions and Donations from Private Sources | B96: 1920 | C96: 0 | D96: 0 | E96: 0 | F96: 0 | G96: 0 | H96: 0 | I96: 0 | J96: 0 | K96: 0
A97: Impact Fees from Municipal or County Governments | B97: 1930 | C97: 0 | D97: 0 | E97: 0 | F97: 0 | G97: 0 | H97: 0 | I97: 0 | J97: 0 | K97: 0
A98: Services Provided Other Districts | B98: 1940 | C98: 0 | D98: 0 | F98: 0
A99: Refund of Prior Years' Expenditures | B99: 1950 | C99: 862265 | D99: 0 | E99: 0 | F99: 0 | G99: 0 | H99: 0 | J99: 0 | K99: 0
A100: Payments of Surplus Moneys from TIF Districts | B100: 1960 | C100: 0 | D100: 0 | E100: 0 | F100: 0 | G100: 0 | H100: 0 | I100: 0 | J100: 0 | K100: 0
A101: Drivers' Education Fees | B101: 1970 | C101: -250
A102: Proceeds from Vendors' Contracts | B102: 1980 | C102: 0 | D102: 0 | E102: 0 | F102: 0 | G102: 0 | H102: 0 | I102: 0 | J102: 0 | K102: 0
A103: School Facility Occupation Tax Proceeds | B103: 1983 | E103: 0
A104: Payment from Other Districts | B104: 1991 | C104: 0 | D104: 0 | E104: 0 | F104: 0 | G104: 0 | H104: 0
A105: Sale of Vocational Projects | B105: 1992 | C105: 0
A106: Other Local Fees (Describe & Itemize) | B106: 1993 | C106: 0 | D106: 0 | E106: 0 | F106: 0 | G106: 0 | H106: 0 | J106: 0 | K106: 0
A107: Other Local Revenues (Describe & Itemize) | B107: 1999 | C107: 1106072 | D107: 32007 | E107: 0 | F107: 0 | G107: 0 | H107: 0 | I107: 0 | J107: 0 | K107: 0
A108: Total Other Revenue from Local Sources | C108: =SUM(C95:C107) -> 1968087 | D108: =SUM(D95:D107) -> 128100 | E108: 0 | F108: 0 | G108: 0 | H108: 0 | I108: 0 | J108: 0 | K108: 0
A109: Total Receipts/Revenues from Local Sources | B109: 1000 | C109: =SUM(C12,C18,C40,C63,C67,C75,C82,C93,C108,) -> 44242765 | D109: 6081432 | E109: 9024427 | F109: 6740840 | G109: 2414427 | H109: 71467 | I109: 549818 | J109: 2050612 | K109: 998237
A110: FLOW-THROUGH RECEIPTS/REVENUES FROM ONE DISTRICT TO ANOTHER DISTRICT (2000)
A111: Flow-through Revenue from State Sources | B111: 2100 | C111: 0 | D111: 0 | F111: 0 | G111: 0
A112: Flow-through Revenue from Federal Sources | B112: 2200 | C112: 0 | D112: 0 | F112: 0 | G112: 0
A113: Other Flow-Through (Describe & Itemize) | B113: 2300 | C113: 0 | D113: 0 | F113: 0 | G113: 0
A114: Total Flow-Through Receipts/Revenues from One District to Another District | B114: 2000 | C114: =SUM(C111:C113) -> 0 | D114: =SUM(D111:D113) -> 0 | F114: =SUM(F111:F113) -> 0 | G114: =SUM(G111:G113) -> 0
A115: RECEIPTS/REVENUES FROM STATE SOURCES (3000)
A116: UNRESTRICTED GRANTS-IN-AID (3001-3099)
A117: General State Aid- Sec. 18-8.05 | B117: 3001 | C117: 29302748 | D117: 0 | E117: 0 | F117: 0 | G117: 0 | H117: 0 | J117: 0 | K117: 0
A118: General State Aid - Hold Harmless/Supplemental | B118: 3002 | C118: 0 | D118: 0 | E118: 0 | F118: 0 | G118: 0 | H118: 0 | J118: 0 | K118: 0
A119: Reorganization Incentives (Accounts 3005-3021) | B119: 3005 | C119: 0 | D119: 0 | E119: 0 | F119: 0 | G119: 0 | H119: 0 | J119: 0 | K119: 0
A120: Other Unrestricted Grants-In-Aid from State Sources (Describe & Itemize) | B120: 3099 | C120: 0 | D120: 0 | E120: 0 | F120: 0 | G120: 0 | H120: 0 | J120: 0 | K120: 0
A121: Total Unrestricted Grants-In-Aid | C121: =SUM(C117:C120) -> 29302748 | D121: 0 | E121: 0 | F121: 0 | G121: 0 | H121: 0 | J121: =SUM(J117:J120) -> 0 | K121: =SUM(K117:K120) -> 0
A122: RESTRICTED GRANTS-IN-AID (3100 - 3900)
A123: SPECIAL EDUCATION
A124: Special Education - Private Facility Tuition | B124: 3100 | C124: 23290 | F124: 0
A125: Special Education - Funding for Children Requiring Sp ED Services | B125: 3105 | C125: 619542 | F125: 0
A126: Special Education - Personnel | B126: 3110 | C126: 902412 | D126: 0 | F126: 0
A127: Special Education - Orphanage - Individual | B127: 3120 | C127: 452118 | F127: 0
A128: Special Education - Orphanage - Summer Individual | B128: 3130 | C128: 0 | F128: 0
A129: Special Education - Summer School | B129: 3145 | C129: 0 | F129: 0
A130: Special Education - Other (Describe & Itemize) | B130: 3199 | C130: 0 | D130: 0 | F130: 0
A131: Total Special Education | C131: =SUM(C124:C130) -> 1997362 | D131: =SUM(D124:D130) -> 0 | F131: =SUM(F124:F130) -> 0
A132: CAREER AND TECHNICAL EDUCATION (CTE)
A133: CTE - Technical Education - Tech Prep | B133: 3200 | C133: 0 | D133: 0 | G133: 0
A134: CTE - Secondary Program Improvement (CTEI) | B134: 3220 | C134: 91819 | D134: 0 | G134: 0
A135: CTE - WECEP | B135: 3225 | C135: 0 | D135: 0 | G135: 0
A136: CTE - Agriculture Education | B136: 3235 | C136: 0 | D136: 0 | G136: 0
A137: CTE - Instructor Practicum | B137: 3240 | C137: 0 | D137: 0 | G137: 0
A138: CTE - Student Organizations | B138: 3270 | C138: 0 | D138: 0 | G138: 0
A139: CTE - Other (Describe & Itemize) | B139: 3299 | C139: 0 | D139: 0 | G139: 0
A140: Total Career and Technical Education | C140: =SUM(C133:C139) -> 91819 | D140: =SUM(D133:D139) -> 0 | G140: =SUM(G133:G139) -> 0
A141: BILINGUAL EDUCATION
A142: Bilingual Ed - Downstate - TPI and TBE | B142: 3305 | C142: 2701 | G142: 0
A143: Bilingual Education Downstate - Transitional Bilingual Education | B143: 3310 | C143: 0 | G143: 0
A144: Total Bilingual Ed | C144: =SUM(C142:C143) -> 2701 | G144: =SUM(G142:G143) -> 0
A145: State Free Lunch & Breakfast | B145: 3360 | C145: 9027
A146: School Breakfast Initiative | B146: 3365 | C146: 0 | D146: 0 | G146: 0
A147: Driver Education | B147: 3370 | C147: 94214 | D147: 0
A148: Adult Ed (from ICCB) | B148: 3410 | C148: 0 | D148: 0 | E148: 0 | F148: 0 | G148: 0 | H148: 0 | I148: 0 | J148: 0 | K148: 0
A149: Adult Ed - Other (Describe & Itemize) | B149: 3499 | C149: 0 | D149: 0 | E149: 0 | F149: 0 | G149: 0 | H149: 0 | I149: 0 | J149: 0 | K149: 0
A150: TRANSPORTATION
A151: Transportation - Regular and Vocational | B151: 3500 | C151: 0 | D151: 0 | F151: 1304938 | G151: 0
A152: Transportation - Special Education | B152: 3510 | C152: 0 | D152: 0 | F152: 1617761 | G152: 0
A153: Transportation - Other (Describe & Itemize) | B153: 3599 | C153: 0 | D153: 0 | F153: 0 | G153: 0
A154: Total Transportation | C154: =SUM(C151:C153) -> 0 | D154: =SUM(D151:D153) -> 0 | F154: =SUM(F151:F153) -> 2922699 | G154: =SUM(G151:G153) -> 0
A155: Learning Improvement - Change Grants | B155: 3610 | C155: 0
A156: Scientific Literacy | B156: 3660 | C156: 0 | D156: 0 | F156: 0 | G156: 0
A157: Truant Alternative/Optional Education | B157: 3695 | C157: 12730 | F157: 0 | G157: 0
A158: Early Childhood - Block Grant | B158: 3705 | C158: 0 | D158: 0 | F158: 0 | G158: 0
A159: Reading Improvement Block Grant | B159: 3715 | C159: 0 | F159: 0 | G159: 0
A160: Reading Improvement Block Grant - Reading Recovery | B160: 3720 | C160: 0 | F160: 0 | G160: 0
A161: Continued Reading Improvement Block Grant | B161: 3725 | C161: 0 | F161: 0 | G161: 0
A162: Continued Reading Improvement Block Grant (2% Set Aside) | B162: 3726 | C162: 0 | F162: 0 | G162: 0
A163: Chicago General Education Block Grant | B163: 3766 | C163: 0 | D163: 0 | F163: 0 | G163: 0
A164: Chicago Educational Services Block Grant | B164: 3767 | C164: 0 | D164: 0 | F164: 0 | G164: 0
A165: School Safety & Educational Improvement Block Grant | B165: 3775 | C165: 0 | D165: 0 | E165: 0 | F165: 0 | G165: 0 | H165: 0 | K165: 0
A166: Technology - Technology for Success | B166: 3780 | C166: 0 | D166: 0 | E166: 0 | F166: 0 | G166: 0 | H166: 0 | K166: 0
A167: State Charter Schools | B167: 3815 | C167: 0 | F167: 0
A168: Extended Learning Opportunities - Summer Bridges | B168: 3825 | C168: 0 | F168: 0
A169: Infrastructure Improvements - Planning/Construction | B169: 3920 | D169: 0 | H169: 0
A170: School Infrastructure - Maintenance Projects | B170: 3925 | D170: 0 | H170: 0 | K170: 0
A171: Other Restricted Revenue from State Sources (Describe & Itemize) | B171: 3999 | C171: 80639 | D171: 111918 | E171: 0 | F171: 0 | G171: 0 | H171: 0 | I171: 0 | J171: 0 | K171: 0
A172: Total Restricted Grants-In-Aid | C172: =SUM(C131,C140,C144,C145:C149,C154,C155:C170,C171) -> 2288492 | D172: 111918 | E172: 0 | F172: 2922699 | G172: 0 | H172: 0 | I172: 0 | J172: 0 | K172: 0
A173: Total Receipts from State Sources | B173: 3000 | C173: =SUM(C121,C172) -> 31591240 | D173: =SUM(D121,D172) -> 111918 | E173: =SUM(E121,E172) -> 0 | F173: =SUM(F121,F172) -> 2922699 | G173: 0 | H173: 0 | I173: 0 | J173: 0 | K173: 0
A174: RECEIPTS/REVENUES FROM FEDERAL SOURCES (4000)
A175: UNRESTRICTED GRANTS-IN-AID RECEIVED DIRECTLY FROM FEDERAL GOVT (4001-4009)
A176: Federal Impact Aid | B176: 4001 | C176: 0 | D176: 0 | E176: 0 | F176: 0 | G176: 0 | H176: 0 | I176: 0 | J176: 0 | K176: 0
A177: Other Unrestricted Grants-In-Aid Received Directly from the Fed Govt (Describe & Itemize) | B177: 4009 | C177: 0 | D177: 0 | E177: 0 | F177: 0 | G177: 0 | H177: 0 | I177: 0 | J177: 0 | K177: 0
A178: Total Unrestricted Grants-In-Aid Received Directly from the Federal Govt | C178: =SUM(C176:C177) -> 0 | D178: =SUM(D176:D177) -> 0 | E178: 0 | F178: 0 | G178: 0 | H178: 0 | I178: 0 | J178: 0 | K178: 0
A179: RESTRICTED GRANTS-IN-AID RECEIVED DIRECTLY FROM FEDERAL GOVT (4045-4090)
A180: Head Start | B180: 4045 | C180: 0
A181: Construction (Impact Aid) | B181: 4050 | C181: 0 | D181: 0 | H181: 0
A182: MAGNET | B182: 4060 | C182: 0 | D182: 0 | F182: 0 | G182: 0 | H182: 0
A183: Other Restricted Grants-In-Aid Received Directly from the Federal Govt (Describe & Itemize) | B183: 4090 | C183: 0 | D183: 0 | F183: 0 | G183: 0 | H183: 0 | K183: 0
A184: Total Restricted Grants-In-Aid Received Directly from Federal Govt | C184: =SUM(C180:C183) -> 0 | D184: =SUM(D180:D183) -> 0 | F184: =SUM(F180:F183) -> 0 | G184: =SUM(G180:G183) -> 0 | H184: =SUM(H180:H183) -> 0 | K184: =SUM(K180:K183) -> 0
A185: RESTRICTED GRANTS-IN-AID RECEIVED FROM FEDERAL GOVT THRU THE STATE (4100-4999)
A186: TITLE VI
A187: Title VI - Innovation and Flexibility Formula | B187: 4100 | C187: 0 | D187: 0 | F187: 0 | G187: 0
A188: Title VI - District Projects | B188: 4105 | C188: 0 | D188: 0 | F188: 0 | G188: 0
A189: Title VI - Rural Education Initiative (REI) | B189: 4107 | C189: 0 | D189: 0 | F189: 0 | G189: 0
A190: Title VI - Other (Describe & Itemize) | B190: 4199 | C190: 0 | D190: 0 | F190: 0 | G190: 0
A191: Total Title VI | C191: =SUM(C187:C190) -> 0 | D191: =SUM(D187:D190) -> 0 | F191: =SUM(F187:F190) -> 0 | G191: =SUM(G187:G190) -> 0
A192: FOOD SERVICE
A193: Breakfast Start-Up Expansion | B193: 4200 | C193: 0 | G193: 0
A194: National School Lunch Program | B194: 4210 | C194: 1266749 | G194: 0
A195: Special Milk Program | B195: 4215 | C195: 0 | G195: 0
A196: School Breakfast Program | B196: 4220 | C196: 252808 | G196: 0
A197: Summer Food Service Program | B197: 4225 | C197: 0 | G197: 0
A198: Child Adult Care Food Program | B198: 4226 | C198: 0 | G198: 0
A199: Fresh Fruits & Vegetables | B199: 4240 | C199: 0
A200: Food Service - Other (Describe & Itemize) | B200: 4299 | C200: 143995 | G200: 0
... 75 more rows

Sheet Expenditures 15-22
A1: Description (Enter Whole Dollars) | C1: (100) | D1: (200) | E1: (300) | F1: (400) | G1: (500) | H1: (600) | I1: (700) | J1: (800) | K1: (900)
B2: Funct # | C2: Salaries | D2: Employee Benefits | E2: Purchased Services | F2: Supplies & Materials | G2: Capital Outlay | H2: Other Objects | I2: Non-Capitalized Equipment | J2: Termination Benefits | K2: Total | L2: Budget
A3: 10 - EDUCATIONAL FUND (ED)
A4: INSTRUCTION (ED) | B4: 1000
A5: Regular Programs | B5: 1100 | C5: 30966639 | D5: 5183243 | E5: 272553 | F5: 1088747 | G5: 0 | H5: 50385 | I5: 60141 | J5: 0 | K5: =SUM(C5:J5) -> 37621708 | L5: 43107000
A6: Tuition Payment to Charter Schools | B6: 1115 | E6: 0 | K6: =SUM(C6,E6) -> 0 | L6: 0
A7: Pre-K Programs | B7: 1125 | C7: 0 | D7: 0 | E7: 0 | F7: 0 | G7: 0 | H7: 0 | I7: 0 | J7: 0 | K7: =SUM(C7:J7) -> 0 | L7: 0
A8: Special Education Programs (Functions 1200-1220) | B8: 1200 | C8: 5862361 | D8: 917273 | E8: 659375 | F8: 118529 | G8: 0 | H8: 198556 | I8: 6412 | J8: 0 | K8: 7762506 | L8: 7470000
A9: Special Education Programs Pre-K | B9: 1225 | C9: 0 | D9: 0 | E9: 0 | F9: 0 | G9: 0 | H9: 0 | I9: 0 | J9: 0 | K9: 0 | L9: 0
A10: Remedial and Supplemental Programs K-12 | B10: 1250 | C10: 26180 | D10: 3889 | E10: 0 | F10: 0 | G10: 0 | H10: 0 | I10: 0 | J10: 0 | K10: 30069 | L10: 184500
A11: Remedial and Supplemental Programs Pre-K | B11: 1275 | C11: 0 | D11: 0 | E11: 0 | F11: 0 | G11: 0 | H11: 0 | I11: 0 | J11: 0 | K11: 0 | L11: 0
A12: Adult/Continuing Education Programs | B12: 1300 | C12: 0 | D12: 0 | E12: 0 | F12: 0 | G12: 0 | H12: 0 | I12: 0 | J12: 0 | K12: 0 | L12: 0
A13: CTE Programs | B13: 1400 | C13: 33953 | D13: 842 | E13: 17622 | F13: 47034 | G13: 0 | H13: 3527 | I13: 0 | J13: 0 | K13: 102978 | L13: 92100
A14: Interscholastic Programs | B14: 1500 | C14: 1116403 | D14: 40662 | E14: 267984 | F14: 190201 | G14: 0 | H14: 70412 | I14: 11164 | J14: 0 | K14: 1696826 | L14: 1932200
A15: Summer School Programs | B15: 1600 | C15: 873651 | D15: 151542 | E15: 0 | F15: 4106 | G15: 0 | H15: 0 | I15: 0 | J15: 0 | K15: 1029299 | L15: 1365000
A16: Gifted Programs | B16: 1650 | C16: 0 | D16: 0 | E16: 0 | F16: 0 | G16: 0 | H16: 0 | I16: 0 | J16: 0 | K16: 0 | L16: 0
A17: Driver's Education Programs | B17: 1700 | C17: 139812 | D17: 21133 | E17: 0 | F17: 0 | G17: 0 | H17: 1193 | I17: 0 | J17: 0 | K17: 162138 | L17: 214000
A18: Bilingual Programs | B18: 1800 | C18: 12180 | D18: 235 | E18: 0 | F18: 0 | G18: 0 | H18: 0 | I18: 0 | J18: 0 | K18: 12415 | L18: 5100
A19: Truant Alternative & Optional Programs | B19: 1900 | C19: 0 | D19: 0 | E19: 0 | F19: 0 | G19: 0 | H19: 0 | I19: 0 | J19: 0 | K19: 0 | L19: 0
A20: Pre-K Programs - Private Tuition | B20: 1910 | H20: 0 | K20: 0 | L20: 0
A21: Regular K-12 Programs - Private Tuition | B21: 1911 | H21: 0 | K21: 0 | L21: 0
A22: Special Education Programs K-12 - Private Tuition | B22: 1912 | H22: 0 | K22: 0 | L22: 0
A23: Special Education Programs Pre-K - Tuition | B23: 1913 | H23: 0 | K23: 0 | L23: 0
A24: Remedial/Supplemental Programs K-12 - Private Tuition | B24: 1914 | H24: 0 | K24: 0 | L24: 0
A25: Remedial/Supplemental Programs Pre-K - Private Tuition | B25: 1915 | H25: 0 | K25: 0 | L25: 0
A26: Adult/Continuing Education Programs - Private Tuition | B26: 1916 | H26: 0 | K26: 0 | L26: 0
A27: CTE Programs - Private Tuition | B27: 1917 | H27: 0 | K27: 0 | L27: 0
A28: Interscholastic Programs - Private Tuition | B28: 1918 | H28: 0 | K28: 0 | L28: 0
A29: Summer School Programs - Private Tuition | B29: 1919 | H29: 0 | K29: 0 | L29: 0
A30: Gifted Programs - Private Tuition | B30: 1920 | H30: 0 | K30: 0 | L30: 0
A31: Bilingual Programs - Private Tuition | B31: 1921 | H31: 0 | K31: 0 | L31: 0
A32: Truants Alternative/Optional Ed Progms - Private Tuition | B32: 1922 | H32: 0 | K32: 0 | L32: 0
A33: Total Instruction 10 | B33: 1000 | C33: =SUM(C5:C32) -> 39031179 | D33: =SUM(D5:D32) -> 6318819 | E33: 1217534 | F33: 1448617 | G33: 0 | H33: 324073 | I33: 77717 | J33: 0 | K33: 48417939 | L33: 54369900
A34: SUPPORT SERVICES (ED) | B34: 2000
A35: SUPPORT SERVICES - PUPILS
A36: Attendance & Social Work Services | B36: 2110 | C36: 1368067 | D36: 182574 | E36: 5057 | F36: 0 | G36: 0 | H36: 0 | I36: 0 | J36: 0 | K36: =SUM(C36:J36) -> 1555698 | L36: 1874000
A37: Guidance Services | B37: 2120 | C37: 1956824 | D37: 324548 | E37: 0 | F37: 95 | G37: 0 | H37: 0 | I37: 0 | J37: 0 | K37: 2281467 | L37: 2513200
A38: Health Services | B38: 2130 | C38: 386181 | D38: 91880 | E38: 0 | F38: 2531 | G38: 0 | H38: 0 | I38: 0 | J38: 0 | K38: 480592 | L38: 452000
A39: Psychological Services | B39: 2140 | C39: 341546 | D39: 76406 | E39: 0 | F39: 0 | G39: 0 | H39: 0 | I39: 0 | J39: 0 | K39: 417952 | L39: 334000
A40: Speech Pathology & Audiology Services | B40: 2150 | C40: 226223 | D40: 30223 | E40: 0 | F40: 0 | G40: 0 | H40: 0 | I40: 0 | J40: 0 | K40: 256446 | L40: 241600
A41: Other Support Services - Pupils (Describe & Itemize) | B41: 2190 | C41: 0 | D41: 0 | E41: 0 | F41: 0 | G41: 0 | H41: 0 | I41: 0 | J41: 0 | K41: 0 | L41: 0
A42: Total Support Services - Pupils | B42: 2100 | C42: =SUM(C36:C41) -> 4278841 | D42: =SUM(D36:D41) -> 705631 | E42: 5057 | F42: 2626 | G42: 0 | H42: 0 | I42: 0 | J42: 0 | K42: 4992155 | L42: 5414800
A43: SUPPORT SERVICES - INSTRUCTIONAL STAFF
A44: Improvement of Instruction Services | B44: 2210 | C44: 1035820 | D44: 210713 | E44: 446394 | F44: 191903 | G44: 0 | H44: 153505 | I44: 4219 | J44: 0 | K44: =SUM(C44:J44) -> 2042554 | L44: 1840000
A45: Educational Media Services | B45: 2220 | C45: 0 | D45: 0 | E45: 185 | F45: 57636 | G45: 0 | H45: 2130 | I45: 0 | J45: 0 | K45: =SUM(C45:J45) -> 59951 | L45: 327000
A46: Assessment & Testing | B46: 2230 | C46: 3255 | D46: 0 | E46: 1926 | F46: 48235 | G46: 0 | H46: 0 | I46: 0 | J46: 0 | K46: =SUM(C46:J46) -> 53416 | L46: 110000
A47: Total Support Services - Instructional Staff | B47: 2200 | C47: =SUM(C44:C46) -> 1039075 | D47: =SUM(D44:D46) -> 210713 | E47: 448505 | F47: 297774 | G47: 0 | H47: 155635 | I47: 4219 | J47: 0 | K47: 2155921 | L47: =SUM(L44:L46) -> 2277000
A48: SUPPORT SERVICES - GENERAL ADMINISTRATION
A49: Board of Education Services | B49: 2310 | C49: 1826 | D49: 0 | E49: 746803 | F49: 21377 | G49: 0 | H49: 27721 | I49: 535 | J49: 0 | K49: =SUM(C49:J49) -> 798262 | L49: 806000
A50: Executive Administration Services | B50: 2320 | C50: 821030 | D50: 169272 | E50: 143204 | F50: 55551 | G50: 0 | H50: 75906 | I50: 0 | J50: 0 | K50: =SUM(C50:J50) -> 1264963 | L50: 1334000
A51: Special Area Administration Services | B51: 2330 | C51: 302065 | D51: 82533 | E51: 0 | F51: 0 | G51: 0 | H51: 0 | I51: 0 | J51: 0 | K51: =SUM(C51:J51) -> 384598 | L51: 473000
A52: Tort Immunity Services | B52: 2360 - 2370 | C52: 0 | D52: 377048 | E52: 1575 | F52: 0 | G52: 0 | H52: 0 | I52: 0 | J52: 0 | K52: =SUM(C52:J52) -> 378623 | L52: 725000
A53: Total Support Services - General Administration | B53: 2300 | C53: =SUM(C49:C52) -> 1124921 | D53: =SUM(D49:D52) -> 628853 | E53: 891582 | F53: 76928 | G53: 0 | H53: 103627 | I53: 535 | J53: 0 | K53: 2826446 | L53: 3338000
A54: SUPPORT SERVICES - SCHOOL ADMINISTRATION
A55: Office of the Principal Services | B55: 2410 | C55: 3205826 | D55: 937262 | E55: 60233 | F55: 180280 | G55: 0 | H55: 17049 | I55: 2526 | J55: 0 | K55: =SUM(C55:J55) -> 4403176 | L55: 3632000
A56: Other Support Services - School Admin (Describe & Itemize) | B56: 2490 | C56: 20769 | D56: 6303 | E56: 0 | F56: 58118 | G56: 0 | H56: 0 | I56: 0 | J56: 0 | K56: =SUM(C56:J56) -> 85190 | L56: 0
A57: Total Support Services - School Administration | B57: 2400 | C57: =SUM(C55:C56) -> 3226595 | D57: =SUM(D55:D56) -> 943565 | E57: 60233 | F57: 238398 | G57: 0 | H57: 17049 | I57: 2526 | J57: 0 | K57: 4488366 | L57: =SUM(L55:L56) -> 3632000
A58: SUPPORT SERVICES - BUSINESS
A59: Direction of Business Support Services | B59: 2510 | C59: 200802 | D59: 69785 | E59: 3182 | F59: 431 | G59: 0 | H59: 6030 | I59: 0 | J59: 0 | K59: =SUM(C59:J59) -> 280230 | L59: 312000
A60: Fiscal Services | B60: 2520 | C60: 339092 | D60: 56852 | E60: 570380 | F60: 0 | G60: 0 | H60: 386 | I60: 0 | J60: 0 | K60: 966710 | L60: 776000
A61: Operation & Maintenance of Plant Services | B61: 2540 | C61: 41939 | D61: 19430 | E61: 1234296 | F61: 0 | G61: 0 | H61: 0 | I61: 0 | J61: 0 | K61: 1295665 | L61: 5729000
A62: Pupil Transportation Services | B62: 2550 | C62: 0 | D62: 0 | E62: 0 | F62: 0 | G62: 0 | H62: 0 | I62: 0 | J62: 0 | K62: 0 | L62: 0
A63: Food Services | B63: 2560 | C63: 13600 | D63: 40 | E63: 1982710 | F63: 33573 | G63: 0 | H63: 2040 | I63: 0 | J63: 0 | K63: 2031963 | L63: 0
A64: Internal Services | B64: 2570 | C64: 0 | D64: 0 | E64: 335756 | F64: 0 | G64: 0 | H64: 0 | I64: 0 | J64: 0 | K64: 335756 | L64: 0
A65: Total Support Services - Business | B65: 2500 | C65: =SUM(C59:C64) -> 595433 | D65: =SUM(D59:D64) -> 146107 | E65: 4126324 | F65: 34004 | G65: 0 | H65: 8456 | I65: 0 | J65: 0 | K65: 4910324 | L65: 6817000
A66: SUPPORT SERVICES - CENTRAL
A67: Direction of Central Support Services | B67: 2610 | C67: 0 | D67: 0 | E67: 0 | F67: 0 | G67: 0 | H67: 0 | I67: 0 | J67: 0 | K67: =SUM(C67:J67) -> 0 | L67: 0
A68: Planning, Research, Development, & Evaluation Services | B68: 2620 | C68: 0 | D68: 0 | E68: 0 | F68: 0 | G68: 0 | H68: 0 | I68: 0 | J68: 0 | K68: =SUM(C68:J68) -> 0 | L68: 96000
A69: Information Services | B69: 2630 | C69: 0 | D69: 0 | E69: 0 | F69: 0 | G69: 0 | H69: 0 | I69: 0 | J69: 0 | K69: =SUM(C69:J69) -> 0 | L69: 0
A70: Staff Services | B70: 2640 | C70: 155356 | D70: 205913 | E70: 20324 | F70: 2741 | G70: 0 | H70: 0 | I70: 0 | J70: 0 | K70: =SUM(C70:J70) -> 384334 | L70: 238520
A71: Data Processing Services | B71: 2660 | C71: 450775 | D71: 107981 | E71: 691223 | F71: 249381 | G71: 55458 | H71: 35986 | I71: 244691 | J71: 0 | K71: =SUM(C71:J71) -> 1835495 | L71: 1686000
A72: Total Support Services - Central | B72: 2600 | C72: =SUM(C67:C71) -> 606131 | D72: =SUM(D67:D71) -> 313894 | E72: 711547 | F72: 252122 | G72: 55458 | H72: 35986 | I72: 244691 | J72: 0 | K72: 2219829 | L72: =SUM(L67:L71) -> 2020520
A73: Other Support Services (Describe & Itemize) | B73: 2900 | C73: 0 | D73: 0 | E73: 0 | F73: 0 | G73: 0 | H73: 0 | I73: 0 | J73: 0 | K73: =SUM(C73:J73) -> 0 | L73: 0
A74: Total Support Services | B74: 2000 | C74: =SUM(C42,C47,C53,C57,C65,C72,C73) -> 10870996 | D74: =SUM(D42,D47,D53,D57,D65,D72,D73) -> 2948763 | E74: 6243248 | F74: 901852 | G74: 55458 | H74: 320753 | I74: 251971 | J74: 0 | K74: 21593041 | L74: =SUM(L42,L47,L53,L57,L65,L72,L73) -> 23499320
A75: COMMUNITY SERVICES (ED) | B75: 3000 | C75: 317480 | D75: 56292 | E75: 212677 | F75: 80040 | G75: 0 | H75: 4364 | I75: 16869 | J75: 0 | K75: =SUM(C75:J75) -> 687722 | L75: 741000
A76: PAYMENTS TO OTHER DISTRICTS & GOVT UNITS (ED) | B76: 4000
A77: PAYMENTS TO OTHER GOVT UNITS (IN-STATE)
A78: Payments for Regular Programs | B78: 4110 | E78: 0 | H78: 307445 | K78: =SUM(C78:J78) -> 307445 | L78: 420000
A79: Payments for Special Education Programs | B79: 4120 | E79: 0 | H79: 9381744 | K79: 9381744 | L79: 9500000
A80: Payments for Adult/Continuing Education Programs | B80: 4130 | E80: 0 | H80: 0 | K80: 0 | L80: 0
A81: Payments for CTE Programs | B81: 4140 | E81: 0 | H81: 0 | K81: 0 | L81: 0
A82: Payments for Community College Programs | B82: 4170 | E82: 0 | H82: 0 | K82: 0 | L82: 0
A83: Other Payments to In-State Govt. Units (Describe & Itemize) | B83: 4190 | E83: 0 | H83: 0 | K83: 0 | L83: 0
A84: Total Payments to Other Govt Units (In-State) | B84: 4100 | E84: =SUM(E78:E83) -> 0 | H84: =SUM(H78:H83) -> 9689189 | K84: =SUM(K78:K83) -> 9689189 | L84: =SUM(L78:L83) -> 9920000
A85: Payments for Regular Programs - Tuition | B85: 4210 | H85: 0 | K85: =H85 -> 0 | L85: 0
A86: Payments for Special Education Programs - Tuition | B86: 4220 | H86: 0 | K86: =H86 -> 0 | L86: 0
A87: Payments for Adult/Continuing Education Programs - Tuition | B87: 4230 | H87: 0 | K87: 0 | L87: 0
A88: Payments for CTE Programs - Tuition | B88: 4240 | H88: 0 | K88: 0 | L88: 0
A89: Payments for Community College Programs - Tuition | B89: 4270 | H89: 0 | K89: 0 | L89: 0
A90: Payments for Other Programs - Tuition | B90: 4280 | H90: 0 | K90: 0 | L90: 0
A91: Other Payments to In-State Govt Units | B91: 4290 | H91: 0 | K91: 0 | L91: 0
A92: Total Payments to Other Govt Units -Tuition (In State) | B92: 4200 | H92: =SUM(H85:H91) -> 0 | K92: 0 | L92: =SUM(L85:L91) -> 0
A93: Payments for Regular Programs - Transfers | B93: 4310 | H93: 0 | K93: 0 | L93: 0
A94: Payments for Special Education Programs - Transfers | B94: 4320 | H94: 0 | K94: 0 | L94: 0
A95: Payments for Adult/Continuing Ed Programs-Transfers | B95: 4330 | H95: 0 | K95: 0 | L95: 0
A96: Payments for CTE Programs - Transfers | B96: 4340 | H96: 0 | K96: 0 | L96: 0
A97: Payments for Community College Program - Transfers | B97: 4370 | H97: 0 | K97: 0 | L97: 0
A98: Payments for Other Programs - Transfers | B98: 4380 | H98: 0 | K98: 0 | L98: 0
A99: Other Payments to In-State Govt Units - Transfers | B99: 4390 | E99: 0 | H99: 0 | K99: =SUM(E99,H99) -> 0 | L99: 0
A100: Total Payments to Other Govt Units -Transfers (In-State) | B100: 4300 | E100: =SUM(E93:E99) -> 0 | H100: =SUM(H93:H99) -> 0 | K100: =SUM(K93:K99) -> 0 | L100: =SUM(L93:L99) -> 0
A101: Payments to Other Govt Units (Out-of-State) | B101: 4400 | E101: 0 | H101: 0 | K101: =SUM(C101:J101) -> 0 | L101: 0
A102: Total Payments to Other Govt Units | B102: 4000 | E102: =SUM(E84,E92,E100,E101) -> 0 | H102: =SUM(H84,H92,H100,H101) -> 9689189 | K102: =SUM(K84,K92,K100,K101) -> 9689189 | L102: =SUM(L84,L92,L100,L101) -> 9920000
A103: DEBT SERVICES (ED) | B103: 5000
A104: DEBT SERVICES - INTEREST ON SHORT-TERM DEBT
A105: Tax Anticipation Warrants | B105: 5110 | H105: 0 | K105: =H105 -> 0 | L105: 0
A106: Tax Anticipation Notes | B106: 5120 | H106: 0 | K106: =H106 -> 0 | L106: 0
A107: Corporate Personal Prop. Repl. Tax Anticipation Notes | B107: 5130 | H107: 0 | K107: =H107 -> 0 | L107: 0
A108: State Aid Anticipation Certificates | B108: 5140 | H108: 0 | K108: =H108 -> 0 | L108: 0
A109: Other Interest on Short-Term Debt | B109: 5150 | H109: 0 | K109: =H109 -> 0 | L109: 0
A110: Total Interest on Short-Term Debt | B110: 5100 | H110: =SUM(H105:H109) -> 0 | K110: =SUM(K105:K109) -> 0 | L110: =SUM(L105:L109) -> 0
A111: Debt Services - Interest on Long-Term Debt | B111: 5200 | H111: 0 | K111: =H111 -> 0 | L111: 0
A112: Total Debt Services | B112: 5000 | H112: =SUM(H110:H111) -> 0 | K112: =SUM(K110:K111) -> 0 | L112: =SUM(L110,L111) -> 0
A113: PROVISIONS FOR CONTINGENCIES (ED) | B113: 6000 | L113: 0
A114: Total Direct Disbursements/Expenditures | C114: =SUM(C33,C74,C75,C102,C112,C113) -> 50219655 | D114: =SUM(D33,D74,D75,D102,D112,D113) -> 9323874 | E114: 7673459 | F114: 2430509 | G114: 55458 | H114: =SUM(H33,H74,H75,H102,H112,H113) -> 10338379 | I114: 346557 | J114: 0 | K114: 80387891 | L114: =SUM(L33,L74,L75,L102,L112,L113) -> 88530220
A115: Excess (Deficiency) of Receipts/Revenues Over Disbursements/Expenditures | K115: ='Revenues 9-14'!C275-'Expenditures 15-22'!K114 -> 2544797
A117: 20 - OPERATIONS & MAINTENANCE FUND (O&M)
A118: SUPPORT SERVICES (O&M) | B118: 2000
A119: SUPPORT SERVICES - PUPILS
A120: Other Support Services - Pupils (Describe & Itemize) | B120: 2190 | C120: 0 | D120: 0 | E120: 0 | F120: 0 | G120: 0 | H120: 0 | I120: 0 | J120: 0 | K120: =SUM(C120:J120) -> 0 | L120: 0
A121: SUPPORT SERVICES - BUSINESS
A122: Direction of Business Support Services | B122: 2510 | C122: 0 | D122: 0 | E122: 0 | F122: 0 | G122: 0 | H122: 0 | I122: 0 | J122: 0 | K122: =SUM(C122:J122) -> 0 | L122: 0
A123: Facilities Acquisition & Construction Services | B123: 2530 | C123: 0 | D123: 0 | E123: 0 | F123: 0 | G123: 142672 | H123: 0 | I123: 0 | J123: 0 | K123: =SUM(C123:J123) -> 142672 | L123: 0
A124: Operation & Maintenance of Plant Services | B124: 2540 | C124: 1448049 | D124: 283226 | E124: 6781691 | F124: 2498180 | G124: 353144 | H124: 13671 | I124: 6512 | J124: 0 | K124: =SUM(C124:J124) -> 11384473 | L124: 9392000
A125: Pupil Transportation Services | B125: 2550 | C125: 0 | D125: 0 | E125: 0 | F125: 0 | G125: 0 | H125: 0 | I125: 0 | J125: 0 | K125: =SUM(C125:J125) -> 0 | L125: 0
A126: Food Services | B126: 2560 | G126: 9598 | I126: 0 | K126: =SUM(C126:J126) -> 9598 | L126: 0
A127: Total Support Services - Business | B127: 2500 | C127: =SUM(C122:C126) -> 1448049 | D127: =SUM(D122:D126) -> 283226 | E127: 6781691 | F127: 2498180 | G127: 505414 | H127: 13671 | I127: 6512 | J127: 0 | K127: 11536743 | L127: 9392000
A128: Other Support Services (Describe & Itemize) | B128: 2900 | C128: 0 | D128: 6268 | E128: 0 | F128: 0 | G128: 0 | H128: 0 | I128: 0 | J128: 0 | K128: =SUM(C128:J128) -> 6268 | L128: 0
A129: Total Support Services | B129: 2000 | C129: =SUM(C120,C127,C128) -> 1448049 | D129: =SUM(D120,D127,D128) -> 289494 | E129: 6781691 | F129: 2498180 | G129: 505414 | H129: 13671 | I129: 6512 | J129: 0 | K129: 11543011 | L129: 9392000
A130: COMMUNITY SERVICES (O&M) | B130: 3000 | C130: 0 | D130: 0 | E130: 0 | F130: 0 | G130: 0 | H130: 0 | I130: 0 | J130: 0 | K130: =SUM(C130:J130) -> 0 | L130: 0
A131: PAYMENTS TO OTHER DIST & GOVT UNITS (O&M) | B131: 4000
A132: PAYMENTS TO OTHER GOVT UNITS (IN-STATE)
A133: Payments for Special Education Programs | B133: 4120 | E133: 0 | H133: 0 | K133: =SUM(E133,H133) -> 0 | L133: 0
A134: Payments for CTE Programs | B134: 4140 | E134: 0 | H134: 0 | K134: =SUM(E134,H134) -> 0 | L134: 0
A135: Other Payments to In-State Govt. Units (Describe & Itemize) | B135: 4190 | E135: 0 | H135: 0 | K135: =SUM(E135,H135) -> 0 | L135: 0
A136: Total Payments to Other Govt. Units (In-State) | B136: 4100 | E136: =SUM(E133:E135) -> 0 | H136: =SUM(H133:H135) -> 0 | K136: =SUM(K133:K135) -> 0 | L136: =SUM(L133:L135) -> 0
A137: Payments to Other Govt. Units (Out of State) | B137: 4400 | H137: 0 | K137: =SUM(E137,H137) -> 0 | L137: 0
A138: Total Payments to Other Govt Units | B138: 4000 | E138: =SUM(E136) -> 0 | H138: =SUM(H136:H137) -> 0 | K138: =SUM(K136,K137) -> 0 | L138: =SUM(L136,L137) -> 0
A139: DEBT SERVICES (O&M) | B139: 5000
A140: DEBT SERVICES - INTEREST ON SHORT-TERM DEBT
A141: Tax Anticipation Warrants | B141: 5110 | H141: 0 | K141: =SUM(H141) -> 0 | L141: 0
A142: Tax Anticipation Notes | B142: 5120 | H142: 0 | K142: =SUM(H142) -> 0 | L142: 0
A143: Corporate Personal Prop. Repl. Tax Anticipation Notes | B143: 5130 | H143: 0 | K143: =SUM(H143) -> 0 | L143: 0
A144: State Aid Anticipation Certificates | B144: 5140 | H144: 0 | K144: =SUM(H144) -> 0 | L144: 0
A145: Other Interest on Short-Term Debt (Describe & Itemize) | B145: 5150 | H145: 0 | K145: =SUM(H145) -> 0 | L145: 0
A146: Total Debt Service - Interest on Short-Term Debt | B146: 5100 | H146: =SUM(H141:H145) -> 0 | K146: =SUM(K141:K145) -> 0 | L146: =SUM(L141:L145) -> 0
A147: DEBT SERVICE - INTERST ON LONG-TERM DEBT | B147: 5200 | H147: 0 | K147: =SUM(H147) -> 0 | L147: 0
A148: Total Debt Services | B148: 5000 | H148: =SUM(H146,H147) -> 0 | K148: =SUM(K146:K147) -> 0 | L148: =SUM(L141:L145,L147) -> 0
A149: PROVISIONS FOR CONTINGENCIES (O&M) | B149: 6000 | L149: 0
A150: Total Direct Disbursements/Expenditures | C150: =SUM(C129,C130,C138,C148,C149) -> 1448049 | D150: =SUM(D129,D130,D138,D148,D149) -> 289494 | E150: 6781691 | F150: 2498180 | G150: 505414 | H150: 13671 | I150: 6512 | J150: 0 | K150: 11543011 | L150: =SUM(L129,L130,L138,L148,L149) -> 9392000
A151: Excess (Deficiency) of Receipts/Revenues/Over Disbursements/ Expenditures | K151: ='Revenues 9-14'!D275-'Expenditures 15-22'!K150 -> -5349661
A153: 30 - DEBT SERVICES (DS)
A154: PAYMENTS TO OTHER DIST & GOVT UNITS (DS) | B154: 4000 | H154: 0 | K154: =SUM(H154) -> 0 | L154: 0
A155: DEBT SERVICES (DS) | B155: 5000
A156: DEBT SERVICES - INTEREST ON SHORT-TERM DEBT
A157: Tax Anticipation Warrants | B157: 5110 | H157: 0 | K157: =SUM(C157:J157) -> 0 | L157: 0
A158: Tax Anticipation Notes | B158: 5120 | H158: 0 | K158: =SUM(C158:J158) -> 0 | L158: 0
A159: Corporate Personal Prop. Repl. Tax Anticipation Notes | B159: 5130 | H159: 0 | K159: =SUM(C159:J159) -> 0 | L159: 0
A160: State Aid Anticipation Certificates | B160: 5140 | H160: 0 | K160: =SUM(C160:J160) -> 0 | L160: 0
A161: Other Interest on Short-Term Debt (Describe & Itemize) | B161: 5150 | H161: 0 | K161: =SUM(C161:J161) -> 0 | L161: 0
A162: Total Debt Services - Interest On Short-Term Debt | B162: 5100 | H162: =SUM(H157:H161) -> 0 | K162: =SUM(K157:K161) -> 0 | L162: =SUM(L157:L161) -> 0
A163: DEBT SERVICES - INTEREST ON LONG-TERM DEBT | B163: 5200 | H163: 1747143 | K163: =SUM(C163:H163) -> 1747143 | L163: 1543000
A164: DEBT SERVICES - PAYMENTS OF PRINCIPAL ON LONG-TERM DEBT (Lease/Purchase Principal Retired) 11 | B164: 5300 | H164: 37705000 | K164: =SUM(C164:J164) -> 37705000 | L164: 7705000
A165: DEBT SERVICES - OTHER (Describe & Itemize) | B165: 5400 | E165: 755923 | H165: 0 | K165: =SUM(C165:J165) -> 755923 | L165: 0
A166: Total Debt Services | B166: 5000 | E166: =SUM(E162,E163,E164,E165) -> 755923 | H166: =SUM(H162,H163,H164,H165) -> 39452143 | K166: =SUM(K162,K163,K164,K165) -> 40208066 | L166: =SUM(L162,L163,L164,L165) -> 9248000
A167: PROVISION FOR CONTINGENCIES (DS) | B167: 6000
A168: Total Disbursements/ Expenditures | E168: =SUM(E154,E166,E167) -> 755923 | H168: =SUM(H154,H166,H167) -> 39452143 | K168: =SUM(K154,K166,K167) -> 40208066 | L168: =SUM(L154,L166,L167) -> 9248000
A169: Excess (Deficiency) of Receipts/Revenues Over Disbursements/Expenditures | K169: ='Revenues 9-14'!E275-'Expenditures 15-22'!K168 -> -31183639
A171: 40 - TRANSPORTATION FUND (TR)
A172: SUPPORT SERVICES (TR)
A173: SUPPORT SERVICES - PUPILS
A174: Other Support Services - Pupils (Describe & Itemize) | B174: 2190 | C174: 0 | D174: 0 | E174: 0 | F174: 0 | G174: 0 | H174: 0 | I174: 0 | J174: 0 | K174: =SUM(C174:J174) -> 0 | L174: 0
A175: SUPPORT SERVICES - BUSINESS
A176: Pupil Transportation Services | B176: 2550 | C176: 0 | D176: 0 | E176: 7428886 | F176: 1000 | G176: 0 | H176: 0 | I176: 0 | J176: 0 | K176: =SUM(C176:J176) -> 7429886 | L176: 8300000
A177: Other Support Services (Describe & Itemize) | B177: 2900 | C177: 0 | D177: 0 | E177: 0 | F177: 0 | G177: 0 | H177: 0 | I177: 0 | J177: 0 | K177: =SUM(C177:J177) -> 0 | L177: 0
A178: Total Support Services | B178: 2000 | C178: =SUM(C174,C176,C177) -> 0 | D178: =SUM(D174,D176,D177) -> 0 | E178: 7428886 | F178: 1000 | G178: 0 | H178: 0 | I178: 0 | J178: 0 | K178: =SUM(K174,K176,K177) -> 7429886 | L178: =SUM(L174, L176:L177) -> 8300000
A179: COMMUNITY SERVICES (TR) | B179: 3000 | C179: 0 | D179: 0 | E179: 0 | F179: 0 | G179: 0 | H179: 0 | I179: 0 | J179: 0 | K179: =SUM(C179:J179) -> 0 | L179: 0
A180: PAYMENTS TO OTHER DIST & GOVT UNITS (TR) | B180: 4000
A181: PAYMENTS TO OTHER GOVT UNITS (IN-STATE)
A182: Payments for Regular Programs | B182: 4110 | E182: 0 | H182: 0 | K182: =SUM(E182,H182) -> 0 | L182: 0
A183: Payments for Special Education Programs | B183: 4120 | E183: 0 | H183: 0 | K183: 0 | L183: 0
A184: Payments for Adult/Continuing Education Programs | B184: 4130 | E184: 0 | H184: 0 | K184: 0 | L184: 0
A185: Payments for CTE Programs | B185: 4140 | E185: 0 | H185: 0 | K185: 0 | L185: 0
A186: Payments for Community College Programs | B186: 4170 | E186: 0 | H186: 0 | K186: 0 | L186: 0
A187: Other Payments to In-State Govt. Units (Describe & Itemize) | B187: 4190 | E187: 0 | H187: 0 | K187: 0 | L187: 0
A188: Total Payments to Other Govt. Units (In-State) | B188: 4100 | E188: =SUM(E182:E187) -> 0 | H188: =SUM(H182:H187) -> 0 | K188: =SUM(K182:K187) -> 0 | L188: =SUM(L182:L187) -> 0
A189: PAYMENTS TO OTHER GOVT UNITS (OUT-OF-STATE) | B189: 4400 | E189: 0 | H189: 0 | K189: =SUM(E189,H189) -> 0 | L189: 0
A190: Total Payments to Other Govt Units | B190: 4000 | E190: =SUM(E188,E189) -> 0 | H190: =SUM(H188,H189) -> 0 | K190: =SUM(K188,K189) -> 0 | L190: =SUM(L188,L189) -> 0
A191: DEBT SERVICES (TR) | B191: 5000
A192: DEBT SERVICE - INTEREST ON SHORT-TERM DEBT
A193: Tax Anticipation Warrants | B193: 5110 | H193: 0 | K193: =SUM(H193) -> 0 | L193: 0
A194: Tax Anticipation Notes | B194: 5120 | H194: 0 | K194: =SUM(H194) -> 0 | L194: 0
A195: Corporate Personal Prop. Repl. Tax Anticipation Notes | B195: 5130 | H195: 0 | K195: =SUM(H195) -> 0 | L195: 0
A196: State Aid Anticipation Certificates | B196: 5140 | H196: 0 | K196: =SUM(H196) -> 0 | L196: 0
A197: Other Interest on Short-Term Debt (Describe & Itemize) | B197: 5150 | H197: 0 | K197: =SUM(H197) -> 0 | L197: 0
A198: Total Debt Services - Interest On Short-Term Debt | B198: 5100 | H198: =SUM(H193:H197) -> 0 | K198: =SUM(K193:K197) -> 0 | L198: =SUM(L193:L197) -> 0
A199: DEBT SERVICES - INTEREST ON LONG-TERM DEBT | B199: 5200 | H199: 0 | K199: =SUM(H199) -> 0 | L199: 0
A200: DEBT SERVICE - PAYMENTS OF PRINCIPAL ON LONG-TERM DEBT (Lease/Purchase Principal Retired) 11 | B200: 5300 | H200: 0 | K200: =SUM(H200) -> 0 | L200: 0
A201: DEBT SERVICES - OTHER (Describe & Itemize) | B201: 5400 | H201: 0 | K201: =H201 -> 0 | L201: 0
A202: Total Debt Services | B202: 5000 | H202: =SUM(H198,H199,H200,H201) -> 0 | K202: =SUM(K198,K199,K200,K201) -> 0 | L202: =SUM(L198,L199,L200,L201) -> 0
A203: PROVISION FOR CONTINGENCIES (TR) | B203: 6000 | L203: 0
... 147 more rows

Sheet ARRA Sched 23 (hidden)
A1: ="District's Accounting Basis is " &AUDITCHECK!D29 -> District's Accounting Basis is CASH | C1: ----RECEIPTS---- | D1: -------------------------------------------------------------------------------------------DISBURSEMENTS------------------------------------------------------------------------------------ | M1: -----------STAFFING------------
D2: (100) | E2: (200) | F2: (300) | G2: (400) | H2: (500) | I2: (600) | J2: (700) | K2: (800) | L2: (900)
A3: ARRA Revenue Source Code | B3: Acct # | C3: ARRA Receipts | D3: Salaries | E3: Employee Benefits | F3: Purchased Services | G3: Supplies & Materials | H3: Capital Outlay | I3: Other | J3: Non-Capitalized Equipment | K3: Termination Benefits | L3: Total Expenditures | M3: # of Staff Impacted by Salary & Benefits | N3: FTE Staff Impacted by Salary & Benefits
A4: Beginning Balance July 1, 2015
A5: ARRA - General State Aid | B5: 4850 | C5: =SUM('Revenues 9-14'!C230:K230) -> 0 | L5: =SUM(D5:K5) -> 0
A6: ARRA - Title I Low Income | B6: 4851 | C6: =SUM('Revenues 9-14'!C231:K231) -> 0 | L6: =SUM(D6:K6) -> 0
A7: ARRA - Title I Neglected - Private | B7: 4852 | C7: =SUM('Revenues 9-14'!C232:K232) -> 0 | L7: 0
A8: ARRA - Title I Delinquent - Private | B8: 4853 | C8: =SUM('Revenues 9-14'!C233:K233) -> 0 | L8: 0
A9: ARRA - Title I School Improvement (Part A) | B9: 4854 | C9: =SUM('Revenues 9-14'!C234:K234) -> 0 | L9: 0
A10: ARRA - Title I School Improvement (Section 1003g) | B10: 4855 | C10: =SUM('Revenues 9-14'!C235:K235) -> 0 | L10: 0
A11: ARRA - IDEA Part B Preschool | B11: 4856 | C11: =SUM('Revenues 9-14'!C236:K236) -> 0 | L11: 0
A12: ARRA - IDEA Part B Flow Through | B12: 4857 | C12: =SUM('Revenues 9-14'!C237:K237) -> 0 | L12: 0
A13: ARRA - Title II D Technology Formula | B13: 4860 | C13: =SUM('Revenues 9-14'!C238:K238) -> 0 | L13: 0
A14: ARRA - Title II D Technology Competitive | B14: 4861 | C14: =SUM('Revenues 9-14'!C239:K239) -> 0 | L14: 0
A15: ARRA - McKenney - Vento Homeless Education | B15: 4862 | C15: =SUM('Revenues 9-14'!C240:K240) -> 0 | L15: 0
A16: ARRA - Child Nutrition Equipment Assistance | B16: 4863 | C16: =SUM('Revenues 9-14'!C241:K241) -> 0 | L16: 0
A17: Impact Aid Construction Formula | B17: 4864 | C17: =SUM('Revenues 9-14'!C242:K242) -> 0 | L17: 0
A18: Impact Aid Construction Competitive | B18: 4865 | C18: =SUM('Revenues 9-14'!C243:K243) -> 0 | L18: 0
A19: QZAB Tax Credits | B19: 4866 | C19: =SUM('Revenues 9-14'!C244:K244) -> 0 | L19: 0
A20: QSCB Tax Credits | B20: 4867 | C20: =SUM('Revenues 9-14'!C245:K245) -> 0 | L20: 0
A21: Build America Bonds Tax Credits | B21: 4868 | C21: =SUM('Revenues 9-14'!C246:K246) -> 0 | L21: 0
A22: Build America Bonds Interest Reimbursement | B22: 4869 | C22: =SUM('Revenues 9-14'!C247:K247) -> 0 | L22: 0
A23: ARRA - General State Aid - Other Govt Services Stabilization | B23: 4870 | C23: =SUM('Revenues 9-14'!C248:K248) -> 0 | L23: 0
A24: ARRA - Other II | B24: 4871 | C24: =SUM('Revenues 9-14'!C249:K249) -> 0 | L24: 0
A25: ARRA - Other III | B25: 4872 | C25: =SUM('Revenues 9-14'!C250:K250) -> 0 | L25: 0
A26: ARRA - Other IV | B26: 4873 | C26: =SUM('Revenues 9-14'!C251:K251) -> 0 | L26: 0
A27: ARRA - Other V | B27: 4874 | C27: =SUM('Revenues 9-14'!C252:K252) -> 0 | L27: 0
A28: ARRA - Early Childhood | B28: 4875 | C28: =SUM('Revenues 9-14'!C253:K253) -> 0 | L28: 0
A29: ARRA - Other VII | B29: 4876 | C29: =SUM('Revenues 9-14'!C254:K254) -> 0 | L29: 0
A30: ARRA - Other VIII | B30: 4877 | C30: =SUM('Revenues 9-14'!C255:K255) -> 0 | L30: 0
A31: ARRA - Other IX | B31: 4878 | C31: =SUM('Revenues 9-14'!C256:K256) -> 0 | L31: 0
A32: ARRA - Other X | B32: 4879 | C32: =SUM('Revenues 9-14'!C257:K257) -> 0 | L32: 0
A33: ARRA - Other XI | B33: 4880 | C33: =SUM('Revenues 9-14'!C258:K258) -> 0 | L33: 0
A34: Total ARRA Programs | C34: =SUM(C5:C33) -> 0 | D34: =SUM(D5:D33) -> 0 | E34: =SUM(E5:E33) -> 0 | F34: 0 | G34: 0 | H34: 0 | I34: 0 | J34: 0 | L34: =SUM(L5:L33) -> 0 | M34: =SUM(M5:M32) -> 0 | N34: =SUM(N5:N32) -> 0
A35: Ending Balance June 30, 2016 | C35: =SUM(C4+C34)-L34 -> 0
A37: 1 | B37: Were any funds from the State Fiscal Stabilization Fund Program (SFSF) General State-Aid Accounts 4850, line 5 & 4870, line 23
B38: used for the following non-allowable purposes:
C39: Payments of maintenance costs;
C40: Stadiums or other facilities used for athletic contests, exhibitions or other events for which admission is charged to the general public;
C41: Purchase or upgrade of vehicles;
C42: Improvements of stand-alone facilities whose purpose is not the education of children such as central office administrative buildings;
C43: Financial assistance to students to attend private elementary or secondary schools unless the funds are used to provide special
C44: education and related services to children with disabilities as authorized by the IDEA Act;
C45: School modernization, renovation, or repair that is inconsistent with State Law.
A47: 2 | B47: If any above boxes are checked provide the total amount
B48: of questioned costs and provide an explanation below:

Sheet Tax Sched 24
A1: SCHEDULE OF AD VALOREM TAX RECEIPTS
A2: Description (Enter Whole Dollars) | B2: Taxes Received 7-1-16 Thru 6-30-17 (from 2015 Levy & Prior Levies) * | C2: Taxes Received (from the 2016 Levy) | D2: Taxes Received (from 2015 & Prior Levies) | E2: Total Estimated Taxes (from the 2016 Levy) | F2: Estimated Taxes Due (from the 2016 Levy)
D3: (Column B - C) | F3: (Column E - C)
A4: Educational | B4: ='Revenues 9-14'!C5 -> 34229124 | C4: 16102859 | D4: =B4-C4 -> 18126265 | E4: 41145628 | F4: =E4-C4 -> 25042769
A5: Operations & Maintenance | B5: ='Revenues 9-14'!D5 -> 5377622 | C5: 2530449 | D5: =B5-C5 -> 2847173 | E5: 6465741 | F5: =E5-C5 -> 3935292
A6: Debt Services ** | B6: ='Revenues 9-14'!E5 -> 9002885 | C6: 4256978 | D6: 4745907 | E6: 10877326 | F6: =E6-C6 -> 6620348
A7: Transportation | B7: ='Revenues 9-14'!F5 -> 6606947 | C7: 2833254 | D7: 3773693 | E7: 7239462 | F7: 4406208
A8: Municipal Retirement | B8: ='Revenues 9-14'!G5 -> 768917 | C8: 559648 | D8: 209269 | E8: 1430000 | F8: 870352
A9: Capital Improvements | B9: ='Revenues 9-14'!H5 -> 0 | C9: 0 | D9: 0 | E9: 0 | F9: 0
A10: Working Cash | B10: ='Revenues 9-14'!I5 -> 489594 | C10: 230041 | D10: 259553 | E10: 587795 | F10: 357754
A11: Tort Immunity | B11: ='Revenues 9-14'!J5 -> 2034637 | C11: 1076247 | D11: 958390 | E11: 2750000 | F11: 1673753
A12: Fire Prevention & Safety | B12: ='Revenues 9-14'!K5 -> 979189 | C12: 460082 | D12: 519107 | E12: 1175589 | F12: 715507
A13: Leasing Levy | B13: =SUM('Revenues 9-14'!C6:D6) -> 557680 | C13: 460082 | D13: 97598 | E13: 1175589 | F13: 715507
A14: Special Education | B14: =SUM('Revenues 9-14'!C7:D7,'Revenues 9-14'!F7:H7) -> 3912278 | C14: 1840327 | D14: 2071951 | E14: 4702357 | F14: 2862030
A15: Area Vocational Construction | B15: ='Revenues 9-14'!E9 -> 0 | C15: 0 | D15: 0 | E15: 0 | F15: 0
A16: Social Security/Medicare Only | B16: ='Revenues 9-14'!G8 -> 1521556 | C16: 559648 | D16: 961908 | E16: 1430000 | F16: 870352
A17: Summer School | B17: ='Revenues 9-14'!C10 -> 0 | C17: 0 | D17: 0 | E17: 0 | F17: 0
A18: Other (Describe & Itemize) | B18: =SUM('Revenues 9-14'!C11:K11) -> 0 | C18: 0 | D18: 0 | E18: 0 | F18: 0
A19: Totals | B19: =SUM(B4:B18) -> 65480429 | C19: =SUM(C4:C18) -> 30909615 | D19: =SUM(D4:D18) -> 34570814 | E19: =SUM(E4:E18) -> 78979487 | F19: =SUM(F4:F18) -> 48069872
A21: * The formulas in column B are unprotected to be overidden when reporting on a ACCRUAL basis.
A22: ** All tax receipts for debt service payments on bonds must be recorded on line 6 (Debt Services).

Sheet Short-Term Long-Term Debt 25
A1: SCHEDULE OF SHORT-TERM DEBT
A2: Description (Enter Whole Dollars) | C2: Outstanding Beginning 07/01/16 | D2: Issued 07/01/16 Through 06/30/17 | E2: Retired 07/01/16 Through 06/30/17 | F2: Outstanding Ending 06/30/17
A3: CORPORATE PERSONAL PROPERTY REPLACEMENT TAX ANTICIPATION NOTES (CPPRT)
A4: Total CPPRT Notes | F4: =SUM(C4+D4)-E4 -> 0
A5: TAX ANTICIPATION WARRANTS (TAW)
A6: Educational Fund | F6: =SUM(C6+D6)-E6 -> 0
A7: Operations & Maintenance Fund | F7: 0
A8: Debt Services - Construction | F8: 0
A9: Debt Services - Working Cash | F9: 0
A10: Debt Services - Refunding Bonds | F10: 0
A11: Transportation Fund | F11: 0
A12: Municipal Retirement/Social Security Fund | F12: 0
A13: Fire Prevention & Safety Fund | F13: 0
A14: Other - (Describe & Itemize) | F14: 0
A15: Total TAWs | C15: =SUM(C6:C14) -> 0 | D15: =SUM(D6:D14) -> 0 | E15: =SUM(E6:E14) -> 0 | F15: =SUM(F6:F14) -> 0
A16: TAX ANTICIPATION NOTES (TAN)
A17: Educational Fund | F17: =SUM(C17+D17)-E17 -> 0
A18: Operations & Maintenance Fund | F18: =SUM(C18+D18)-E18 -> 0
A19: Fire Prevention & Safety Fund | F19: =SUM(C19+D19)-E19 -> 0
A20: Other - (Describe & Itemize) | F20: =SUM(C20+D20)-E20 -> 0
A21: Total TANs | C21: =SUM(C17:C20) -> 0 | D21: =SUM(D17:D20) -> 0 | E21: =SUM(E17:E20) -> 0 | F21: =SUM(F17:F20) -> 0
A22: TEACHERS'/EMPLOYEES' ORDERS (T/EO)
A23: Total T/EOs (Educational, Operations & Maintenance, & Transportation Funds) | F23: =SUM(C23+D23)-E23 -> 0
A24: GENERAL STATE-AID ANTICIPATION CERTIFICATES (GSAAC)
A25: Total GSAACs (All Funds) | F25: =SUM(C25+D25)-E25 -> 0
A26: OTHER SHORT-TERM BORROWING
A27: Total Other Short-Term Borrowing (Describe & Itemize) | F27: =SUM(C27+D27)-E27 -> 0
A29: SCHEDULE OF LONG-TERM DEBT
A30: Identification or Name of Issue | B30: Date of Issue (mm/dd/yy) | C30: Amount of Original Issue | D30: Type of Issue * | E30: Outstanding Beginning 07/1/16 | F30: Issued 7/1/16 thru 6/30/17 | G30: Any differences described and itemized | H30: Retired 7/1/16 thru 6/30/17 | I30: Outstanding Ending 6/30/17 | J30: Amount to be Provided for Payment on Long-Term Debt
A31: G.O. School Bond, Series 2008 | B31: 2008-11-12 | C31: 50000000 | D31: 2 | E31: 31180000 | H31: 5340000 | I31: =((E31+F31)-H31)+G31 -> 25840000 | J31: =IF(I31=0,"",(I31/$I$49)*($I$49-'Acct Summary 7-8'!$E$81)) -> 23613637.87
A32: G.O. School Bond, Series 2016A | B32: 2016-03-08 | C32: 2365000 | D32: 1 | E32: 2365000 | H32: 2365000 | I32: =((E32+F32)-H32)+G32 -> 0 | J32: =IF(I32=0,"",(I32/$I$49)*($I$49-'Acct Summary 7-8'!$E$81)) -> 
A33: G.O. School Bond, Series 2017A | B33: 2017-02-22 | C33: 3400000 | D33: 1 | F33: 3400000 | I33: =((E33+F33)-H33)+G33 -> 3400000 | J33: =IF(I33=0,"",(I33/$I$49)*($I$49-'Acct Summary 7-8'!$E$81)) -> 3107057.614
A34: G.O. School Bond, Series 2017B | B34: 2017-03-01 | C34: 30000000 | D34: 2 | F34: 30000000 | H34: 30000000 | I34: 0 | J34: =IF(I34=0,"",(I34/$I$49)*($I$49-'Acct Summary 7-8'!$E$81)) -> 
A35: G.O. School Bond, Series 2017C | B35: 2017-04-20 | C35: 27215000 | D35: 2 | F35: 27215000 | I35: 27215000 | J35: =IF(I35=0,"",(I35/$I$49)*($I$49-'Acct Summary 7-8'!$E$81)) -> 24870168.52
I36: 0 | J36: =IF(I36=0,"",(I36/$I$49)*($I$49-'Acct Summary 7-8'!$E$81)) -> 
I37: 0 | J37: =IF(I37=0,"",(I37/$I$49)*($I$49-'Acct Summary 7-8'!$E$81)) -> 
I38: 0 | J38: =IF(I38=0,"",(I38/$I$49)*($I$49-'Acct Summary 7-8'!$E$81)) -> 
I39: 0 | J39: =IF(I38=0,"",(I39/$I$49)*($I$49-'Acct Summary 7-8'!$E$81)) -> 
I40: 0 | J40: =IF(I40=0,"",(I40/$I$49)*($I$49-'Acct Summary 7-8'!$E$81)) -> 
I41: 0 | J41: =IF(I41=0,"",(I41/$I$49)*($I$49-'Acct Summary 7-8'!$E$81)) -> 
I42: 0 | J42: =IF(I42=0,"",(I42/$I$49)*($I$49-'Acct Summary 7-8'!$E$81)) -> 
I43: 0 | J43: =IF(I43=0,"",(I43/$I$49)*($I$49-'Acct Summary 7-8'!$E$81)) -> 
I44: 0 | J44: =IF(I44=0,"",(I44/$I$49)*($I$49-'Acct Summary 7-8'!$E$81)) -> 
I45: 0 | J45: =IF(I45=0,"",(I45/$I$49)*($I$49-'Acct Summary 7-8'!$E$81)) -> 
I46: 0 | J46: =IF(I46=0,"",(I46/$I$49)*($I$49-'Acct Summary 7-8'!$E$81)) -> 
I47: 0 | J47: =IF(I47=0,"",(I47/$I$49)*($I$49-'Acct Summary 7-8'!$E$81)) -> 
I48: 0 | J48: =IF(I48=0,"",(I48/$I$49)*($I$49-'Acct Summary 7-8'!$E$81)) -> 
C49: =SUM(C31:C48) -> 112980000 | E49: =SUM(E31:E48) -> 33545000 | F49: 60615000 | G49: 0 | H49: 37705000 | I49: 56455000 | J49: 51590864
A51: * Each type of debt issued must be identified separately with the amount:
A52: 1. Working Cash Fund Bonds | B52: 4. Fire Prevent, Safety, Environmental and Energy Bonds | E52: 7. Other
A53: 2. Funding Bonds | B53: 5. Tort Judgment Bonds | E53: 8. Other
A54: 3. Refunding Bonds | B54: 6. Building Bonds | E54: 9. Other

Sheet Rest Tax Levies-Tort Im 26
A1: SCHEDULE OF RESTRICTED LOCAL TAX LEVIES AND SELECTED REVENUE SOURCES
A2: Description (Enter Whole Dollars) | F2: Account No | G2: Tort Immunity a | H2: Special Education | I2: Area Vocational Construction | J2: School Facility Occupation Taxes b | K2: Driver Education
A3: Cash Basis Fund Balance as of July 1, 2016
A4: RECEIPTS:
A5: Ad Valorem Taxes Received by District | F5: 10, 20, 40 or 50-1100 | H5: =SUM('Revenues 9-14'!C7:K7) -> 3912278
A6: Earnings on Investments | F6: 10, 20, 40, 50 or 60-1500
A7: Drivers' Education Fees | F7: 10-1970 | K7: ='Revenues 9-14'!C101 -> -250
A8: School Facility Occupation Tax Proceeds | F8: 30 or 60-1983
A9: Driver Education | F9: 10 or 20-3370 | K9: ='Revenues 9-14'!C147+'Revenues 9-14'!D147 -> 94214
A10: Other Receipts (Describe & Itemize on tab "Itemization 32") | F10: --
A11: Sale of Bonds | F11: 10, 20, 40 or 60-7200
A12: Total Receipts | G12: =SUM(G5:G11) -> 0 | H12: =SUM(H5:H11) -> 3912278 | I12: =SUM(I5:I11) -> 0 | J12: =SUM(J5:J11) -> 0 | K12: =SUM(K5:K11) -> 93964
A13: DISBURSEMENTS:
A14: Instruction | F14: 10 or 50-1000 | H14: =H5 -> 3912278 | K14: =K12 -> 93964
A15: Facilities Acquisition & Construction Services | F15: 20 or 60-2530
A16: Tort Immunity Services | F16: 10, 20, 40-2360-2370
A17: DEBT SERVICE
A18: Debt Services - Interest on Long-Term Debt | F18: 30-5200
A19: Debt Services - Principal Payments on Long-Term Debt (Lease/ Purchase Principal Retired) | F19: 30-5300
A20: Debt Services Other (Describe & Itemize on tab "Itemization 32") | F20: 30-5400
A21: Total Debt Services | J21: =SUM(J18:J20) -> 0
A22: Other Disbursements (Describe & Itemize on tab "Itemization 32") | F22: --
A23: Total Disbursements | G23: =SUM(G14:G16,G21,G22) -> 0 | H23: =SUM(H14:H16,H21,H22) -> 3912278 | I23: =SUM(I14:I16,I21,I22) -> 0 | J23: =SUM(J14:J16,J21,J22) -> 0 | K23: =SUM(K14:K16,K21,K22) -> 93964
A24: Ending Cash Basis Fund Balance as of June 30, 2017 | G24: =SUM(G3,G12)-G23 -> 0 | H24: =SUM(H3,H12)-H23 -> 0 | I24: =SUM(I3,I12)-I23 -> 0 | J24: =SUM(J3,J12)-J23 -> 0 | K24: =SUM(K3,K12)-K23 -> 0
A25: Reserved Fund Balance | F25: 714
A26: Unreserved Fund Balance | F26: 730 | G26: =G24-G25 -> 0 | H26: =H24-H25 -> 0 | I26: =I24-I25 -> 0 | J26: =J24-J25 -> 0 | K26: =K24-K25 -> 0
A28: SCHEDULE OF TORT IMMUNITY EXPENDITURES a
A30: Yes | C30: No | E30: Has the entity established an insurance reserve pursuant to 745 ILCS 10/9-103?
E31: If yes, list in the aggregate the following: | F31: Total Claims Payments:
F32: Total Reserve Remaining:
A33: Using the following categories, list all other Tort Immunity expenditures not
A34: included in line 30 above. Include the total dollar amount for each category.
A35: Expenditures:
A36: Workers' Compensation Act and/or Workers' Occupational Disease Act
A37: Unemployment Insurance Act
A38: Insurance (Regular or Self-Insurance)
A39: Risk Management and Claims Service
A40: Judgments/Settlements
A41: Educational, Inspectional, Supervisory Services Related to Loss Prevention and/or Reduction
A42: Reciprocal Insurance Payments (Insurance Code 72, 76, and 81)
A43: Legal Services
A44: Principal and Interest on Tort Bonds
A46: a | B46: Schedules for Tort Immunity are to be completed only if expenditures have been reported in any fund other than the Tort Immunity Fund (80) during the fiscal year as a result of existing (restricted) fund balances
B47: in those other funds that are being spent down. Cell G6 above should include interest earnings only from these restricted tort immunity monies and only if reported in a fund other than Tort Immunity Fund (80).
A48: b | B48: 55 ILCS 5/5-1006.7

Sheet Cap Outlay Deprec 27
A1: Schedule of Capital Outlay and Depreciation
A2: Description of Assets (Enter Whole Dollars) | B2: Acct # | C2: Cost Beginning 7/1/16 | D2: Add: Additions 2016-2017 | E2: Less: Deletions 2016-2017 | F2: Cost Ending 6/30/17 | G2: Life In Years | H2: Accumulated Depreciation Beginning 7/1/16 | I2: Add: Depreciation Allowable 2016-2017 | J2: Less: Depreciation Deletions 2016-2017 | K2: Accumulated Depreciation Ending 6/30/17 | L2: Ending Balance Undepreciated 6/30/17
A3: Works of Art & Historical Treasures | B3: 210 | F3: =(C3+D3)-E3 -> 0 | K3: =(H3+I3)-J3 -> 0 | L3: =F3-K3 -> 0
A4: Land | B4: 220
A5: Non-Depreciable Land | B5: 221 | C5: 2007357 | F5: =(C5+D5)-E5 -> 2007357 | L5: =F5-K5 -> 2007357
A6: Depreciable Land | B6: 222 | F6: =(C6+D6)-E6 -> 0 | G6: 50 | I6: =IF((C6+D6)-((ROUND(F6/G6,0))+H6)<0,(C6+D6)-H6,ROUND(F6/G6,0)) -> 0 | K6: =(H6+I6)-J6 -> 0 | L6: =F6-K6 -> 0
A7: Buildings | B7: 230
A8: Permanent Buildings | B8: 231 | C8: 98909869 | D8: 212526 | F8: =(C8+D8)-E8 -> 99122395 | G8: 50 | H8: 41149833 | I8: =IF((C8+D8)-((ROUND(F8/G8,0))+H8)<0,(C8+D8)-H8,ROUND(F8/G8,0)) -> 1982448 | K8: =(H8+I8)-J8 -> 43132281 | L8: =F8-K8 -> 55990114
A9: Temporary Buildings | B9: 232 | F9: =(C9+D9)-E9 -> 0 | G9: 20 | H9: 0 | I9: =IF((C9+D9)-((ROUND(F9/G9,0))+H9)<0,(C9+D9)-H9,ROUND(F9/G9,0)) -> 0 | K9: =(H9+I9)-J9 -> 0 | L9: =F9-K9 -> 0
A10: Improvements Other than Buildings (Infrastructure) | B10: 240 | C10: 4471739 | F10: =(C10+D10)-E10 -> 4471739 | G10: 20 | H10: 3987009 | I10: =IF((C10+D10)-((ROUND(F10/G10,0))+H10)<0,(C10+D10)-H10,ROUND(F10/G10,0)) -> 223587 | K10: =(H10+I10)-J10 -> 4210596 | L10: =F10-K10 -> 261143
A11: Capitalized Equipment | B11: 250
A12: 10 Yr Schedule | B12: 251 | C12: 11983523 | D12: 323068 | F12: =(C12+D12)-E12 -> 12306591 | G12: 10 | H12: 11983523 | I12: =IF((C12+D12)-((ROUND(F12/G12,0))+H12)<0,(C12+D12)-H12,ROUND(F12/G12,0)) -> 323068 | K12: =(H12+I12)-J12 -> 12306591 | L12: =F12-K12 -> 0
A13: 5 Yr Schedule | B13: 252 | F13: =(C13+D13)-E13 -> 0 | G13: 5 | H13: 0 | I13: =IF((C13+D13)-((ROUND(F13/G13,0))+H13)<0,(C13+D13)-H13,ROUND(F13/G13,0)) -> 0 | K13: =(H13+I13)-J13 -> 0 | L13: =F13-K13 -> 0
A14: 3 Yr Schedule | B14: 253 | F14: =(C14+D14)-E14 -> 0 | G14: 3 | H14: 0 | I14: =IF((C14+D14)-((ROUND(F14/G14,0))+H14)<0,(C14+D14)-H14,ROUND(F14/G14,0)) -> 0 | K14: =(H14+I14)-J14 -> 0 | L14: =F14-K14 -> 0
A15: Construction in Progress | B15: 260 | D15: 2862869 | F15: =(C15+D15)-E15 -> 2862869 | G15: -- | L15: =F15-K15 -> 2862869
A16: Total Capital Assets | B16: 200 | C16: =SUM(C3,C5:C6,C8:C10,C12:C15) -> 117372488 | D16: =SUM(D3,D5:D6,D8:D10,D12:D15) -> 3398463 | E16: =SUM(E3,E5:E6,E8:E10,E12:E15) -> 0 | F16: =SUM(F3,F5:F6,F8:F10,F12:F15) -> 120770951 | H16: =SUM(H3,H6,H8:H10,H12:H14,) -> 57120365 | I16: =SUM(I3,I6,I8:I10,I12:I14,) -> 2529103 | J16: =SUM(J3,J6,J8:J10,J12:J14,) -> 0 | K16: =(H16+I16)-J16 -> 59649468 | L16: =F16-K16 -> 61121483
A17: Non-Capitalized Equipment | B17: 700 | F17: =SUM('Expenditures 15-22'!I114,'Expenditures 15-22'!I150,'Expenditures 15-22'!I204,'Expenditures 15-22'!I305,'Expenditures 15-22'!I331,'Expenditures 15-22'!I354) -> 353069 | G17: 10 | I17: =F17/G17 -> 35306.9
A18: Allowable Depreciation | I18: =SUM(I16,I17) -> 2564409.9

Sheet PCTC-OEPP 28-29
A1: ESTIMATED OPERATING EXPENSE PER PUPIL (OEPP)/PER CAPITA TUITION CHARGE (PCTC) COMPUTATIONS (2016-2017)
A2: This schedule is completed for school districts only.
A4: Fund | B4: Sheet, Row | D4: ACCOUNT NO - TITLE | F4: Amount
A6: OPERATING EXPENSE PER PUPIL
A7: EXPENDITURES:
A8: ED | B8: Expenditures 15-22, L114 | D8: Total Expenditures | E8: $ | F8: ='Expenditures 15-22'!K114 -> 80387891
A9: O&M | B9: Expenditures 15-22, L150 | D9: Total Expenditures | F9: ='Expenditures 15-22'!K150 -> 11543011
A10: DS | B10: Expenditures 15-22, L168 | D10: Total Expenditures | F10: ='Expenditures 15-22'!K168 -> 40208066
A11: TR | B11: Expenditures 15-22, L204 | D11: Total Expenditures | F11: ='Expenditures 15-22'!K204 -> 7429886
A12: MR/SS | B12: Expenditures 15-22, L288 | D12: Total Expenditures | F12: ='Expenditures 15-22'!K288 -> 2005900
A13: TORT | B13: Expenditures 15-22, L331 | D13: Total Expenditures | F13: ='Expenditures 15-22'!K331 -> 197862
D14: Total Expenditures | E14: $ | F14: =SUM(F8:F13) -> 141772616
A16: LESS RECEIPTS/REVENUES OR DISBURSEMENTS/EXPENDITURES NOT APPLICABLE TO THE REGULAR K-12 PROGRAM:
A18: TR | B18: Revenues 9-14, L43, Col F | C18: ='Revenues 9-14'!B43 -> 1412 | D18: ='Revenues 9-14'!A43 -> Regular - Transp Fees from Other Districts (In State) | E18: $ | F18: ='Revenues 9-14'!F43 -> 0
A19: TR | B19: Revenues 9-14, L47, Col F | C19: ='Revenues 9-14'!B47 -> 1421 | D19: ='Revenues 9-14'!A47 -> Summer Sch - Transp. Fees from Pupils or Parents (In State) | F19: ='Revenues 9-14'!F47 -> 0
A20: TR | B20: Revenues 9-14, L48, Col F | C20: ='Revenues 9-14'!B48 -> 1422 | D20: ='Revenues 9-14'!A48 -> Summer Sch - Transp. Fees from Other Districts (In State) | F20: ='Revenues 9-14'!F48 -> 0
A21: TR | B21: Revenues 9-14, L49, Col F | C21: ='Revenues 9-14'!B49 -> 1423 | D21: ='Revenues 9-14'!A49 -> Summer Sch - Transp. Fees from Other Sources (In State) | F21: ='Revenues 9-14'!F49 -> 0
A22: TR | B22: Revenues 9-14, L50 Col F | C22: ='Revenues 9-14'!B50 -> 1424 | D22: ='Revenues 9-14'!A50 -> Summer Sch - Transp. Fees from Other Sources (Out of State) | F22: ='Revenues 9-14'!F50 -> 0
A23: TR | B23: Revenues 9-14, L52, Col F | C23: ='Revenues 9-14'!B52 -> 1432 | D23: ='Revenues 9-14'!A52 -> CTE - Transp Fees from Other Districts (In State) | F23: ='Revenues 9-14'!F52 -> 0
A24: TR | B24: Revenues 9-14, L56, Col F | C24: ='Revenues 9-14'!B56 -> 1442 | D24: ='Revenues 9-14'!A56 -> Special Ed - Transp Fees from Other Districts (In State) | F24: ='Revenues 9-14'!F56 -> 0
A25: TR | B25: Revenues 9-14, L59, Col F | C25: ='Revenues 9-14'!B59 -> 1451 | D25: ='Revenues 9-14'!A59 -> Adult - Transp Fees from Pupils or Parents (In State) | F25: ='Revenues 9-14'!F59 -> 0
A26: TR | B26: Revenues 9-14, L60, Col F | C26: ='Revenues 9-14'!B60 -> 1452 | D26: ='Revenues 9-14'!A60 -> Adult - Transp Fees from Other Districts (In State) | F26: ='Revenues 9-14'!F60 -> 0
A27: TR | B27: Revenues 9-14, L61, Col F | C27: ='Revenues 9-14'!B61 -> 1453 | D27: ='Revenues 9-14'!A61 -> Adult - Transp Fees from Other Sources (In State) | F27: ='Revenues 9-14'!F61 -> 0
A28: TR | B28: Revenues 9-14, L62, Col F | C28: ='Revenues 9-14'!B62 -> 1454 | D28: ='Revenues 9-14'!A62 -> Adult - Transp Fees from Other Sources (Out of State) | F28: ='Revenues 9-14'!F62 -> 0
A29: O&M | B29: Revenues 9-14, L148, Col D | C29: ='Revenues 9-14'!B148 -> 3410 | D29: ='Revenues 9-14'!A148 -> Adult Ed (from ICCB) | F29: ='Revenues 9-14'!D148 -> 0
A30: O&M-TR | B30: Revenues 9-14, L149, Col D & F | C30: ='Revenues 9-14'!B149 -> 3499 | D30: ='Revenues 9-14'!A149 -> Adult Ed - Other (Describe & Itemize) | F30: =('Revenues 9-14'!D149+'Revenues 9-14'!F149) -> 0
A31: O&M-TR | B31: Revenues 9-14, L218, Col D,F | C31: ='Revenues 9-14'!B218 -> 4600 | D31: ='Revenues 9-14'!A218 -> Fed - Spec Education - Preschool Flow-Through | F31: =SUM('Revenues 9-14'!D218,'Revenues 9-14'!F218) -> 0
A32: O&M-TR | B32: Revenues 9-14, L219, Col D,F | C32: ='Revenues 9-14'!B219 -> 4605 | D32: ='Revenues 9-14'!A219 -> Fed - Spec Education - Preschool Discretionary | F32: =SUM('Revenues 9-14'!D219,'Revenues 9-14'!F219) -> 0
A33: O&M | B33: Revenues 9-14, L229, Col D | C33: ='Revenues 9-14'!B229 -> 4810 | D33: ='Revenues 9-14'!A229 -> Federal - Adult Education | F33: ='Revenues 9-14'!D229 -> 0
A34: ED | B34: Expenditures 15-22, L7, Col K - (G+I) | C34: ='Expenditures 15-22'!B7 -> 1125 | D34: ='Expenditures 15-22'!A7 -> Pre-K Programs | F34: ='Expenditures 15-22'!K7-SUM('Expenditures 15-22'!G7,'Expenditures 15-22'!I7) -> 0
A35: ED | B35: Expenditures 15-22, L9, Col K - (G+I) | C35: ='Expenditures 15-22'!B9 -> 1225 | D35: ='Expenditures 15-22'!A9 -> Special Education Programs Pre-K | F35: ='Expenditures 15-22'!K9-SUM('Expenditures 15-22'!G9+'Expenditures 15-22'!I9) -> 0
A36: ED | B36: Expenditures 15-22, L11, Col K - (G+I) | C36: ='Expenditures 15-22'!B11 -> 1275 | D36: ='Expenditures 15-22'!A11 -> Remedial and Supplemental Programs Pre-K | F36: ='Expenditures 15-22'!K11-SUM('Expenditures 15-22'!G11,'Expenditures 15-22'!I11) -> 0
A37: ED | B37: Expenditures 15-22, L12, Col K - (G+I) | C37: ='Expenditures 15-22'!B12 -> 1300 | D37: ='Expenditures 15-22'!A12 -> Adult/Continuing Education Programs | F37: ='Expenditures 15-22'!K12-SUM('Expenditures 15-22'!G12+'Expenditures 15-22'!I12) -> 0
A38: ED | B38: Expenditures 15-22, L15, Col K - (G+I) | C38: ='Expenditures 15-22'!B15 -> 1600 | D38: ='Expenditures 15-22'!A15 -> Summer School Programs | F38: ='Expenditures 15-22'!K15-SUM('Expenditures 15-22'!G15,'Expenditures 15-22'!I15) -> 1029299
A39: ED | B39: Expenditures 15-22, L20, Col K | C39: ='Expenditures 15-22'!B20 -> 1910 | D39: ='Expenditures 15-22'!A20 -> Pre-K Programs - Private Tuition | F39: ='Expenditures 15-22'!K20 -> 0
A40: ED | B40: Expenditures 15-22, L21, Col K | C40: ='Expenditures 15-22'!B21 -> 1911 | D40: ='Expenditures 15-22'!A21 -> Regular K-12 Programs - Private Tuition | F40: ='Expenditures 15-22'!K21 -> 0
A41: ED | B41: Expenditures 15-22, L22, Col K | C41: ='Expenditures 15-22'!B22 -> 1912 | D41: ='Expenditures 15-22'!A22 -> Special Education Programs K-12 - Private Tuition | F41: ='Expenditures 15-22'!K22 -> 0
A42: ED | B42: Expenditures 15-22, L23, Col K | C42: ='Expenditures 15-22'!B23 -> 1913 | D42: ='Expenditures 15-22'!A23 -> Special Education Programs Pre-K - Tuition | F42: ='Expenditures 15-22'!K23 -> 0
A43: ED | B43: Expenditures 15-22, L24, Col K | C43: ='Expenditures 15-22'!B24 -> 1914 | D43: ='Expenditures 15-22'!A24 -> Remedial/Supplemental Programs K-12 - Private Tuition | F43: ='Expenditures 15-22'!K24 -> 0
A44: ED | B44: Expenditures 15-22, L25, Col K | C44: ='Expenditures 15-22'!B25 -> 1915 | D44: ='Expenditures 15-22'!A25 -> Remedial/Supplemental Programs Pre-K - Private Tuition | F44: ='Expenditures 15-22'!K25 -> 0
A45: ED | B45: Expenditures 15-22, L26, Col K | C45: ='Expenditures 15-22'!B26 -> 1916 | D45: ='Expenditures 15-22'!A26 -> Adult/Continuing Education Programs - Private Tuition | F45: ='Expenditures 15-22'!K26 -> 0
A46: ED | B46: Expenditures 15-22, L27, Col K | C46: ='Expenditures 15-22'!B27 -> 1917 | D46: ='Expenditures 15-22'!A27 -> CTE Programs - Private Tuition | F46: ='Expenditures 15-22'!K27 -> 0
A47: ED | B47: Expenditures 15-22, L28, Col K | C47: ='Expenditures 15-22'!B28 -> 1918 | D47: ='Expenditures 15-22'!A28 -> Interscholastic Programs - Private Tuition | F47: ='Expenditures 15-22'!K28 -> 0
A48: ED | B48: Expenditures 15-22, L29, Col K | C48: ='Expenditures 15-22'!B29 -> 1919 | D48: ='Expenditures 15-22'!A29 -> Summer School Programs - Private Tuition | F48: ='Expenditures 15-22'!K29 -> 0
A49: ED | B49: Expenditures 15-22, L30, Col K | C49: ='Expenditures 15-22'!B30 -> 1920 | D49: ='Expenditures 15-22'!A30 -> Gifted Programs - Private Tuition | F49: ='Expenditures 15-22'!K30 -> 0
A50: ED | B50: Expenditures 15-22, L31, Col K | C50: ='Expenditures 15-22'!B31 -> 1921 | D50: ='Expenditures 15-22'!A31 -> Bilingual Programs - Private Tuition | F50: ='Expenditures 15-22'!K31 -> 0
A51: ED | B51: Expenditures 15-22, L32, Col K | C51: ='Expenditures 15-22'!B32 -> 1922 | D51: ='Expenditures 15-22'!A32 -> Truants Alternative/Optional Ed Progms - Private Tuition | F51: ='Expenditures 15-22'!K32 -> 0
A52: ED | B52: Expenditures 15-22, L75, Col K - (G+I) | C52: ='Expenditures 15-22'!B75 -> 3000 | D52: Community Services | F52: ='Expenditures 15-22'!K75-SUM('Expenditures 15-22'!G75,'Expenditures 15-22'!I75) -> 670853
A53: ED | B53: Expenditures 15-22, L102, Col K | C53: ='Expenditures 15-22'!B102 -> 4000 | D53: ='Expenditures 15-22'!A102 -> Total Payments to Other Govt Units | F53: ='Expenditures 15-22'!K102 -> 9689189
A54: ED | B54: Expenditures 15-22, L114, Col G | C54: - | D54: Capital Outlay | F54: ='Expenditures 15-22'!G114 -> 55458
A55: ED | B55: Expenditures 15-22, L114, Col I | C55: - | D55: Non-Capitalized Equipment | F55: ='Expenditures 15-22'!I114 -> 346557
A56: O&M | B56: Expenditures 15-22, L130, Col K - (G+I) | C56: ='Expenditures 15-22'!B130 -> 3000 | D56: Community Services | F56: ='Expenditures 15-22'!K130-SUM('Expenditures 15-22'!G130+'Expenditures 15-22'!I130) -> 0
A57: O&M | B57: Expenditures 15-22, L138, Col K | C57: ='Expenditures 15-22'!B138 -> 4000 | D57: ='Expenditures 15-22'!A138 -> Total Payments to Other Govt Units | F57: ='Expenditures 15-22'!K138-'Expenditures 15-22'!I138 -> 0
A58: O&M | B58: Expenditures 15-22, L150, Col G | C58: - | D58: Capital Outlay | F58: ='Expenditures 15-22'!G150 -> 505414
A59: O&M | B59: Expenditures 15-22, L150, Col I | C59: - | D59: Non-Capitalized Equipment | F59: ='Expenditures 15-22'!I150 -> 6512
A60: DS | B60: Expenditures 15-22, L154, Col K | C60: 4000 | D60: Payments to Other Dist & Govt Units | F60: ='Expenditures 15-22'!K154 -> 0
A61: DS | B61: Expenditures 15-22, L164, Col K | C61: ='Expenditures 15-22'!B164 -> 5300 | D61: Debt Service - Payments of Principal on Long-Term Debt | F61: ='Expenditures 15-22'!K164 -> 37705000
A62: TR | B62: Expenditures 15-22, L179, Col K - (G+I) | C62: ='Expenditures 15-22'!B179 -> 3000 | D62: Community Services | F62: ='Expenditures 15-22'!K179-SUM('Expenditures 15-22'!G179,'Expenditures 15-22'!I179) -> 0
A63: TR | B63: Expenditures 15-22, L190, Col K | C63: ='Expenditures 15-22'!B190 -> 4000 | D63: ='Expenditures 15-22'!A190 -> Total Payments to Other Govt Units | F63: ='Expenditures 15-22'!K190 -> 0
A64: TR | B64: Expenditures 15-22, L200, Col K | C64: ='Expenditures 15-22'!B200 -> 5300 | D64: Debt Service - Payments of Principal on Long-Term Debt | F64: ='Expenditures 15-22'!K200 -> 0
A65: TR | B65: Expenditures 15-22, L204, Col G | C65: - | D65: Capital Outlay | F65: ='Expenditures 15-22'!G204 -> 0
A66: TR | B66: Expenditures 15-22, L204, Col I | C66: - | D66: Non-Capitalized Equipment | F66: ='Expenditures 15-22'!I204 -> 0
A67: MR/SS | B67: Expenditures 15-22, L210, Col K | C67: ='Expenditures 15-22'!B210 -> 1125 | D67: ='Expenditures 15-22'!A210 -> Pre-K Programs | F67: ='Expenditures 15-22'!K210 -> 0
A68: MR/SS | B68: Expenditures 15-22, L212, Col K | C68: ='Expenditures 15-22'!B212 -> 1225 | D68: ='Expenditures 15-22'!A212 -> Special Education Programs - Pre-K | F68: ='Expenditures 15-22'!K212 -> 0
A69: MR/SS | B69: Expenditures 15-22, L214, Col K | C69: ='Expenditures 15-22'!B214 -> 1275 | D69: ='Expenditures 15-22'!A214 -> Remedial and Supplemental Programs - Pre-K | F69: ='Expenditures 15-22'!K214 -> 0
A70: MR/SS | B70: Expenditures 15-22, L215, Col K | C70: ='Expenditures 15-22'!B215 -> 1300 | D70: ='Expenditures 15-22'!A215 -> Adult/Continuing Education Programs | F70: ='Expenditures 15-22'!K215 -> 0
A71: MR/SS | B71: Expenditures 15-22, L218, Col K | C71: ='Expenditures 15-22'!B218 -> 1600 | D71: ='Expenditures 15-22'!A218 -> Summer School Programs | F71: ='Expenditures 15-22'!K218 -> 39265
A72: MR/SS | B72: Expenditures 15-22, L274, Col K | C72: ='Expenditures 15-22'!B274 -> 3000 | D72: Community Services | F72: ='Expenditures 15-22'!K274 -> 20708
A73: MR/SS | B73: Expenditures 15-22, L278, Col K | C73: ='Expenditures 15-22'!B278 -> 4000 | D73: ='Expenditures 15-22'!A278 -> Total Payments to Other Govt Units | F73: ='Expenditures 15-22'!K278 -> 0
D75: Total Deductions for OEPP Computation (Sum of Lines 18 - 73) | E75: $ | F75: =SUM(F18:F73) -> 50068255
D76: Total Operating Expenses Regular K-12 (Line 14 minus Line 75) | F76: =(F14-F75) -> 91704361
D77: 9 Mo ADA from the General State Aid Claimable for 2016-2017 and Payable in 2017-2018 (ISBE 54-33), L12 | F77: 4256.64
D78: Estimated OEPP (Line 76 divided by Line 77) | E78: $ | F78: =IF(F77>0,F76/F77," Complete Line 77") -> 21543.83763
A80: PER CAPITA TUITION CHARGE
A82: LESS OFFSETTING RECEIPTS/REVENUES:
A83: TR | B83: Revenues 9-14, L42, Col F | C83: ='Revenues 9-14'!B42 -> 1411 | D83: ='Revenues 9-14'!A42 -> Regular -Transp Fees from Pupils or Parents (In State) | E83: $ | F83: ='Revenues 9-14'!F42 -> 0
A84: TR | B84: Revenues 9-14, L44, Col F | C84: ='Revenues 9-14'!B44 -> 1413 | D84: ='Revenues 9-14'!A44 -> Regular - Transp Fees from Other Sources (In State) | F84: ='Revenues 9-14'!F44 -> 0
A85: TR | B85: Revenues 9-14, L45, Col F | C85: ='Revenues 9-14'!B45 -> 1415 | D85: ='Revenues 9-14'!A45 -> Regular - Transp Fees from Co-curricular Activities (In State) | F85: ='Revenues 9-14'!F45 -> 0
A86: TR | B86: Revenues 9-14, L46, Col F | C86: 1416 | D86: ='Revenues 9-14'!A46 -> Regular Transp Fees from Other Sources (Out of State) | F86: ='Revenues 9-14'!F46 -> 0
A87: TR | B87: Revenues 9-14, L51, Col F | C87: ='Revenues 9-14'!B51 -> 1431 | D87: ='Revenues 9-14'!A51 -> CTE - Transp Fees from Pupils or Parents (In State) | F87: ='Revenues 9-14'!F51 -> 0
A88: TR | B88: Revenues 9-14, L53, Col F | C88: ='Revenues 9-14'!B53 -> 1433 | D88: ='Revenues 9-14'!A53 -> CTE - Transp Fees from Other Sources (In State) | F88: ='Revenues 9-14'!F53 -> 0
A89: TR | B89: Revenues 9-14, L54, Col F | C89: ='Revenues 9-14'!B54 -> 1434 | D89: ='Revenues 9-14'!A54 -> CTE - Transp Fees from Other Sources (Out of State) | F89: ='Revenues 9-14'!F54 -> 0
A90: TR | B90: Revenues 9-14, L55, Col F | C90: ='Revenues 9-14'!B55 -> 1441 | D90: ='Revenues 9-14'!A55 -> Special Ed - Transp Fees from Pupils or Parents (In State) | F90: ='Revenues 9-14'!F55 -> 0
A91: TR | B91: Revenues 9-14, L57, Col F | C91: ='Revenues 9-14'!B57 -> 1443 | D91: ='Revenues 9-14'!A57 -> Special Ed - Transp Fees from Other Sources (In State) | F91: ='Revenues 9-14'!F57 -> 0
A92: TR | B92: Revenues 9-14, L58, Col F | C92: ='Revenues 9-14'!B58 -> 1444 | D92: ='Revenues 9-14'!A58 -> Special Ed - Transp Fees from Other Sources (Out of State) | F92: ='Revenues 9-14'!F58 -> 0
A93: ED | B93: Revenues 9-14, L75, Col C | C93: 1600 | D93: ='Revenues 9-14'!A75 -> Total Food Service | F93: ='Revenues 9-14'!C75 -> 7284
A94: ED-O&M | B94: Revenues 9-14, L82, Col C,D | C94: 1700 | D94: ='Revenues 9-14'!A82 -> Total District/School Activity Income | F94: =SUM('Revenues 9-14'!C82,'Revenues 9-14'!D82) -> -500
A95: ED | B95: Revenues 9-14, L84, Col C | C95: ='Revenues 9-14'!B84 -> 1811 | D95: ='Revenues 9-14'!A84 -> Rentals - Regular Textbooks | F95: ='Revenues 9-14'!C84 -> -50
A96: ED | B96: Revenues 9-14, L87, Col C | C96: ='Revenues 9-14'!B87 -> 1819 | D96: ='Revenues 9-14'!A87 -> Rentals - Other (Describe & Itemize) | F96: ='Revenues 9-14'!C87 -> 0
A97: ED | B97: Revenues 9-14, L88, Col C | C97: ='Revenues 9-14'!B88 -> 1821 | D97: ='Revenues 9-14'!A88 -> Sales - Regular Textbooks | F97: ='Revenues 9-14'!C88 -> 0
A98: ED | B98: Revenues 9-14, L91, Col C | C98: ='Revenues 9-14'!B91 -> 1829 | D98: ='Revenues 9-14'!A91 -> Sales - Other (Describe & Itemize) | F98: ='Revenues 9-14'!C91 -> 0
A99: ED | B99: Revenues 9-14, L92, Col C | C99: ='Revenues 9-14'!B92 -> 1890 | D99: ='Revenues 9-14'!A92 -> Other (Describe & Itemize) | F99: ='Revenues 9-14'!C92 -> 0
A100: ED-O&M | B100: Revenues 9-14, L95, Col C,D | C100: ='Revenues 9-14'!B95 -> 1910 | D100: ='Revenues 9-14'!A95 -> Rentals | F100: =SUM('Revenues 9-14'!C95:D95) -> 96093
A101: ED-O&M-TR | B101: Revenues 9-14, L98, Col C,D,F | C101: ='Revenues 9-14'!B98 -> 1940 | D101: ='Revenues 9-14'!A98 -> Services Provided Other Districts | F101: =SUM('Revenues 9-14'!C98,'Revenues 9-14'!D98,'Revenues 9-14'!F98) -> 0
A102: ED-O&M-DS-TR-MR/SS | B102: Revenues 9-14, L104, Col C,D,E,F,G | C102: ='Revenues 9-14'!B104 -> 1991 | D102: ='Revenues 9-14'!A104 -> Payment from Other Districts | F102: =SUM('Revenues 9-14'!C104,'Revenues 9-14'!D104,'Revenues 9-14'!E104,'Revenues 9-14'!F104,'Revenues 9-14'!G104) -> 0
A103: ED | B103: Revenues 9-14, L106, Col C | C103: ='Revenues 9-14'!B106 -> 1993 | D103: ='Revenues 9-14'!A106 -> Other Local Fees (Describe & Itemize) | F103: =('Revenues 9-14'!C106) -> 0
A104: ED-O&M-TR | B104: Revenues 9-14, L131, Col C,D,F | C104: 3100 | D104: ='Revenues 9-14'!A131 -> Total Special Education | F104: =SUM('Revenues 9-14'!C131:D131,'Revenues 9-14'!F131) -> 1997362
A105: ED-O&M-MR/SS | B105: Revenues 9-14, L140, Col C,D,G | C105: 3200 | D105: ='Revenues 9-14'!A140 -> Total Career and Technical Education | F105: =SUM('Revenues 9-14'!C140,'Revenues 9-14'!D140,'Revenues 9-14'!G140) -> 91819
A106: ED-MR/SS | B106: Revenues 9-14, L144, Col C,G | C106: 3300 | D106: ='Revenues 9-14'!A144 -> Total Bilingual Ed | F106: =SUM('Revenues 9-14'!C144,'Revenues 9-14'!G144) -> 2701
A107: ED | B107: Revenues 9-14, L145, Col C | C107: ='Revenues 9-14'!B145 -> 3360 | D107: ='Revenues 9-14'!A145 -> State Free Lunch & Breakfast | F107: ='Revenues 9-14'!C145 -> 9027
A108: ED-O&M-MR/SS | B108: Revenues 9-14, L146, Col C,D,G | C108: ='Revenues 9-14'!B146 -> 3365 | D108: ='Revenues 9-14'!A146 -> School Breakfast Initiative | F108: =SUM('Revenues 9-14'!C146,'Revenues 9-14'!D146,'Revenues 9-14'!G146) -> 0
A109: ED-O&M | B109: Revenues 9-14, L147,Col C,D | C109: ='Revenues 9-14'!B147 -> 3370 | D109: ='Revenues 9-14'!A147 -> Driver Education | F109: =SUM('Revenues 9-14'!C147,'Revenues 9-14'!D147) -> 94214
A110: ED-O&M-TR-MR/SS | B110: Revenues 9-14, L154, Col C,D,F,G | C110: 3500 | D110: ='Revenues 9-14'!A154 -> Total Transportation | F110: =SUM('Revenues 9-14'!C154,'Revenues 9-14'!D154,'Revenues 9-14'!F154,'Revenues 9-14'!G154) -> 2922699
A111: ED | B111: Revenues 9-14, L155, Col C | C111: ='Revenues 9-14'!B155 -> 3610 | D111: ='Revenues 9-14'!A155 -> Learning Improvement - Change Grants | F111: ='Revenues 9-14'!C155 -> 0
A112: ED-O&M-TR-MR/SS | B112: Revenues 9-14, L156, Col C,D,F,G | C112: ='Revenues 9-14'!B156 -> 3660 | D112: ='Revenues 9-14'!A156 -> Scientific Literacy | F112: =SUM('Revenues 9-14'!C156,'Revenues 9-14'!D156,'Revenues 9-14'!F156,'Revenues 9-14'!G156) -> 0
A113: ED-TR-MR/SS | B113: Revenues 9-14, L157, Col C,F,G | C113: ='Revenues 9-14'!B157 -> 3695 | D113: ='Revenues 9-14'!A157 -> Truant Alternative/Optional Education | F113: =SUM('Revenues 9-14'!C157,'Revenues 9-14'!F157,'Revenues 9-14'!G157) -> 12730
A114: ED-TR-MR/SS | B114: Revenues 9-14, L159, Col C,F,G | C114: ='Revenues 9-14'!B159 -> 3715 | D114: ='Revenues 9-14'!A159 -> Reading Improvement Block Grant | F114: =SUM('Revenues 9-14'!C159,'Revenues 9-14'!F159,'Revenues 9-14'!G159) -> 0
A115: ED-TR-MR/SS | B115: Revenues 9-14, L160, Col C,F,G | C115: ='Revenues 9-14'!B160 -> 3720 | D115: ='Revenues 9-14'!A160 -> Reading Improvement Block Grant - Reading Recovery | F115: =SUM('Revenues 9-14'!C160,'Revenues 9-14'!F160,'Revenues 9-14'!G160) -> 0
A116: ED-TR-MR/SS | B116: Revenues 9-14, L161, Col C,F,G | C116: ='Revenues 9-14'!B161 -> 3725 | D116: ='Revenues 9-14'!A161 -> Continued Reading Improvement Block Grant | F116: =SUM('Revenues 9-14'!C161,'Revenues 9-14'!F161,'Revenues 9-14'!G161) -> 0
A117: ED-TR-MR/SS | B117: Revenues 9-14, L162, Col C,F,G | C117: ='Revenues 9-14'!B162 -> 3726 | D117: ='Revenues 9-14'!A162 -> Continued Reading Improvement Block Grant (2% Set Aside) | F117: =SUM('Revenues 9-14'!C162,'Revenues 9-14'!F162,'Revenues 9-14'!G162) -> 0
A118: ED-O&M-TR-MR/SS | B118: Revenues 9-14, L163, Col C,D,F,G | C118: ='Revenues 9-14'!B163 -> 3766 | D118: ='Revenues 9-14'!A163 -> Chicago General Education Block Grant | F118: =SUM('Revenues 9-14'!C163,'Revenues 9-14'!D163,'Revenues 9-14'!F163,'Revenues 9-14'!G163) -> 0
A119: ED-O&M-TR-MR/SS | B119: Revenues 9-14, L164, Col C,D,F,G | C119: ='Revenues 9-14'!B164 -> 3767 | D119: ='Revenues 9-14'!A164 -> Chicago Educational Services Block Grant | F119: =SUM('Revenues 9-14'!C164,'Revenues 9-14'!D164,'Revenues 9-14'!F164,'Revenues 9-14'!G164) -> 0
A120: ED-O&M-DS-TR-MR/SS | B120: Revenues 9-14, L165, Col C,D,E,F,G | C120: ='Revenues 9-14'!B165 -> 3775 | D120: ='Revenues 9-14'!A165 -> School Safety & Educational Improvement Block Grant | F120: =SUM('Revenues 9-14'!C165,'Revenues 9-14'!D165,'Revenues 9-14'!E165,'Revenues 9-14'!F165,'Revenues 9-14'!G165) -> 0
A121: ED-O&M-DS-TR-MR/SS | B121: Revenues 9-14, L166, Col C,D,E,F,G | C121: ='Revenues 9-14'!B166 -> 3780 | D121: ='Revenues 9-14'!A166 -> Technology - Technology for Success | F121: =SUM('Revenues 9-14'!C166:G166) -> 0
A122: ED-TR | B122: Revenues 9-14, L167, Col C,F | C122: ='Revenues 9-14'!B167 -> 3815 | D122: ='Revenues 9-14'!A167 -> State Charter Schools | F122: =SUM('Revenues 9-14'!C167,'Revenues 9-14'!F167) -> 0
A123: O&M | B123: Revenues 9-14, L170, Col D | C123: ='Revenues 9-14'!B170 -> 3925 | D123: ='Revenues 9-14'!A170 -> School Infrastructure - Maintenance Projects | F123: ='Revenues 9-14'!D170 -> 0
A124: ED-O&M-DS-TR-MR/SS-Tort | B124: Revenues 9-14, L171, Col C-G,J | C124: ='Revenues 9-14'!B171 -> 3999 | D124: Other Restricted Revenue from State Sources | F124: =SUM('Revenues 9-14'!C171:G171,'Revenues 9-14'!J171) -> 192557
A125: ED | B125: Revenues 9-14, L180, Col C | C125: ='Revenues 9-14'!B180 -> 4045 | D125: ='Revenues 9-14'!A180 & " (Subtract)" -> Head Start (Subtract) | F125: =SUM(-'Revenues 9-14'!C180) -> 0
A126: ED-O&M-TR-MR/SS | B126: Revenues 9-14, L184, Col C,D,F,G | C126: - | D126: =('Revenues 9-14'!A184) -> Total Restricted Grants-In-Aid Received Directly from Federal Govt | F126: =SUM('Revenues 9-14'!C184,'Revenues 9-14'!D184,'Revenues 9-14'!F184,'Revenues 9-14'!G184) -> 0
A127: ED-O&M-TR-MR/SS | B127: Revenues 9-14, L191, Col C,D,F,G | C127: - | D127: ='Revenues 9-14'!A191 -> Total Title VI | F127: =SUM('Revenues 9-14'!C191,'Revenues 9-14'!D191,'Revenues 9-14'!F191,'Revenues 9-14'!G191) -> 0
A128: ED-MR/SS | B128: Revenues 9-14, L201, Col C,G | C128: - | D128: ='Revenues 9-14'!A201 -> Total Food Service | F128: =SUM('Revenues 9-14'!C201,'Revenues 9-14'!G201) -> 1663552
A129: ED-O&M-TR-MR/SS | B129: Revenues 9-14, L211, Col C,D,F,G | C129: - | D129: ='Revenues 9-14'!A211 -> Total Title I | F129: =SUM('Revenues 9-14'!C211,'Revenues 9-14'!D211,'Revenues 9-14'!F211,'Revenues 9-14'!G211) -> 3955168
A130: ED-O&M-TR-MR/SS | B130: Revenues 9-14, L216, Col C,D,F,G | C130: - | D130: ='Revenues 9-14'!A216 -> Total Title IV | F130: =SUM('Revenues 9-14'!C216,'Revenues 9-14'!D216,'Revenues 9-14'!F216,'Revenues 9-14'!G216) -> 0
A131: ED-O&M-TR-MR/SS | B131: Revenues 9-14, L220, Col C,D,F,G | C131: ='Revenues 9-14'!B220 -> 4620 | D131: ='Revenues 9-14'!A220 -> Fed - Spec Education - IDEA - Flow Through | F131: =SUM('Revenues 9-14'!C220:D220,'Revenues 9-14'!F220:G220) -> 638087
A132: ED-O&M-TR-MR/SS | B132: Revenues 9-14, L221, Col C,D,F,G | C132: ='Revenues 9-14'!B221 -> 4625 | D132: ='Revenues 9-14'!A221 -> Fed - Spec Education - IDEA - Room & Board | F132: =SUM('Revenues 9-14'!C221,'Revenues 9-14'!D221,'Revenues 9-14'!F221,'Revenues 9-14'!G221) -> 67198
A133: ED-O&M-TR-MR/SS | B133: Revenues 9-14, L222, Col C,D,F,G | C133: ='Revenues 9-14'!B222 -> 4630 | D133: ='Revenues 9-14'!A222 -> Fed - Spec Education - IDEA - Discretionary | F133: =SUM('Revenues 9-14'!C222:D222,'Revenues 9-14'!F222:G222) -> 0 | G133: 6297
A134: ED-O&M-TR-MR/SS | B134: Revenues 9-14, L223, Col C,D,F,G | C134: ='Revenues 9-14'!B223 -> 4699 | D134: ='Revenues 9-14'!A223 -> Fed - Spec Education - IDEA - Other (Describe & Itemize) | F134: =SUM('Revenues 9-14'!C223:D223,'Revenues 9-14'!F223:G223) -> 0
A135: ED-O&M-MR/SS | B135: Revenues 9-14, L228, Col C,D,G | C135: 4700 | D135: ='Revenues 9-14'!A228 -> Total CTE - Perkins | F135: =SUM('Revenues 9-14'!C228,'Revenues 9-14'!D228,'Revenues 9-14'!G228) -> 182973 | G135: 6303
A136: ED-O&M-TR-MR/SS-Tort | B136: Revenue-L231, Col C,D,F,G | C136: 4851 | D136: ='Revenues 9-14'!A231 -> ARRA - Title I - Low Income | F136: =SUM('Revenues 9-14'!$C$231:$D$231,'Revenues 9-14'!$F$231:$G$231) -> 0
A137: ED-O&M-TR-MR/SS-Tort | B137: Revenue-L232, Col C,D,E,F,G,J | C137: 4852 | D137: ='Revenues 9-14'!A232 -> ARRA - Title I - Neglected, Private | F137: =SUM('Revenues 9-14'!C232:G232,'Revenues 9-14'!J232) -> 0
A138: ED-O&M-TR-MR/SS-Tort | B138: Revenue L233, Col C,D,E,F,G,J | C138: 4853 | D138: ='Revenues 9-14'!A233 -> ARRA - Title I - Delinquent, Private | F138: =SUM('Revenues 9-14'!C233:G233,'Revenues 9-14'!J233) -> 0
A139: ED-O&M-TR-MR/SS-Tort | B139: Revenue L234, Col C,D,E,F,G,J | C139: 4854 | D139: ='Revenues 9-14'!A234 -> ARRA - Title I - School Improvement (Part A) | F139: =SUM('Revenues 9-14'!C234:G234,'Revenues 9-14'!J234) -> 0
A140: ED-O&M-TR-MR/SS-Tort | B140: Revenue L235, Col C,D,E,F,G,J | C140: 4855 | D140: ='Revenues 9-14'!A235 -> ARRA - Title I - School Improvement (Section 1003g) | F140: =SUM('Revenues 9-14'!C235:G235,'Revenues 9-14'!J235) -> 0
A141: ED-O&M-TR-MR/SS-Tort | B141: Revenue L236, Col C,D,E,F,G,J | C141: 4856 | D141: ='Revenues 9-14'!A236 -> ARRA - IDEA - Part B - Preschool | F141: 0
A142: ED-O&M-TR-MR/SS-Tort | B142: Revenue L237, Col C,D,E,F,G,J | C142: 4857 | D142: ='Revenues 9-14'!A237 -> ARRA - IDEA - Part B - Flow-Through | F142: =SUM('Revenues 9-14'!C237:G237,'Revenues 9-14'!J237) -> 0
A143: ED-O&M-TR-MR/SS-Tort | B143: Revenue L238, Col C,D,E,F,G,J | C143: 4860 | D143: ='Revenues 9-14'!A238 -> ARRA - Title IID - Technology-Formula | F143: =SUM('Revenues 9-14'!C238:G238,'Revenues 9-14'!J238) -> 0
A144: ED-O&M-TR-MR/SS-Tort | B144: Revenue L239, Col C,D,E,F,G,J | C144: 4861 | D144: ='Revenues 9-14'!A239 -> ARRA - Title IID - Technology-Competitive | F144: =SUM('Revenues 9-14'!C239:G239,'Revenues 9-14'!J239) -> 0
A145: ED-O&M-TR-MR/SS | B145: Revenue L240, Col C, D,F,G | C145: 4862 | D145: ='Revenues 9-14'!A240 -> ARRA - McKinney - Vento Homeless Education | F145: =SUM('Revenues 9-14'!C240:G240,'Revenues 9-14'!J240) -> 0
A146: ED-O&M-TR-MR/SS-Tort | B146: Revenue L244, Col C,D,E,F,G,J | C146: 4866 | D146: ='Revenues 9-14'!A244 -> Qualified Zone Academy Bond Tax Credits | F146: =SUM('Revenues 9-14'!C244:G244,'Revenues 9-14'!J244) -> 0
A147: ED-O&M-TR-MR/SS-Tort | B147: Revenue L245, Col C,D,E,F,G,J | C147: 4867 | D147: ='Revenues 9-14'!A245 -> Qualified School Construction Bond Credits | F147: =SUM('Revenues 9-14'!C245:G245,'Revenues 9-14'!J245) -> 0
A148: ED-O&M-TR-MR/SS-Tort | B148: Revenue L246, Col C,D,E,F,G,J | C148: 4868 | D148: ='Revenues 9-14'!A246 -> Build America Bond Tax Credits | F148: =SUM('Revenues 9-14'!C246:G246,'Revenues 9-14'!J246) -> 0
A149: ED-O&M-TR-MR/SS-Tort | B149: Revenue L247, Col C,D,E,F,G,J | C149: 4869 | D149: ='Revenues 9-14'!A247 -> Build America Bond Interest Reimbursement | F149: =SUM('Revenues 9-14'!C247:G247,'Revenues 9-14'!J247) -> 0
A150: ED-O&M-TR-MR/SS-Tort | B150: Revenue L249, Col C,D,E,F,G,J | C150: 4871 | D150: ='Revenues 9-14'!A249 -> Other ARRA Funds - II | F150: =SUM('Revenues 9-14'!C249:G249,'Revenues 9-14'!J249) -> 0
A151: ED-O&M-TR-MR/SS-Tort | B151: Revenue L250, Col C,D,E,F,G,J | C151: 4872 | D151: ='Revenues 9-14'!A250 -> Other ARRA Funds - III | F151: =SUM('Revenues 9-14'!C250:G250,'Revenues 9-14'!J250) -> 0
A152: ED-O&M-TR-MR/SS-Tort | B152: Revenue L251, Col C,D,E,F,G,J | C152: 4873 | D152: ='Revenues 9-14'!A251 -> Other ARRA Funds - IV | F152: =SUM('Revenues 9-14'!C251:G251,'Revenues 9-14'!J251) -> 0
A153: ED-O&M-TR-MR/SS-Tort | B153: Revenue L252, Col C,D,E,F,G,J | C153: 4874 | D153: ='Revenues 9-14'!A252 -> Other ARRA Funds - V | F153: =SUM('Revenues 9-14'!C252:G252,'Revenues 9-14'!J252) -> 0
A154: ED-O&M-TR-MR/SS-Tort | B154: Revenue L253, Col C,D,E,F,G,J | C154: 4875 | D154: ='Revenues 9-14'!A253 -> ARRA - Early Childhood | F154: 0
A155: ED-O&M-TR-MR/SS-Tort | B155: Revenue L254, Col C,D,E,F,G,J | C155: 4876 | D155: ='Revenues 9-14'!A254 -> Other ARRA Funds VII | F155: =SUM('Revenues 9-14'!C254:G254,'Revenues 9-14'!J254) -> 0
A156: ED-O&M-TR-MR/SS-Tort | B156: Revenue L255, Col C,D,E,F,G,J | C156: 4877 | D156: ='Revenues 9-14'!A255 -> Other ARRA Funds VIII | F156: =SUM('Revenues 9-14'!C255:G255,'Revenues 9-14'!J255) -> 0
A157: ED-O&M-TR-MR/SS-Tort | B157: Revenue L256, Col C,D,E,F,G,J | C157: 4878 | D157: ='Revenues 9-14'!A256 -> Other ARRA Funds IX | F157: =SUM('Revenues 9-14'!C256:G256,'Revenues 9-14'!J256) -> 0
A158: ED-O&M-TR-MR/SS-Tort | B158: Revenue L257, Col C,D,E,F,G,J | C158: 4879 | D158: ='Revenues 9-14'!A257 -> Other ARRA Funds X | F158: =SUM('Revenues 9-14'!C257:G257,'Revenues 9-14'!J257) -> 0
A159: ED-O&M-TR-MR/SS-Tort | B159: Revenue L258, Col C,D,E,F,G,J | C159: 4880 | D159: ='Revenues 9-14'!A258 -> Other ARRA Funds Ed Job Fund Program | F159: =SUM('Revenues 9-14'!C258:G258,'Revenues 9-14'!J258) -> 0
A160: ED-O&M-DS-TR-MR/SS-Tort | B160: Revenue Adjustments (C231 thru J258) | C160: 4800 | D160: Total ARRA Program Adjustments | F160: =SUM(F136:F159) -> 0
A161: ED | B161: Revenues 9-14, L260, Col C | C161: 4901 | D161: Race to the Top | F161: =SUM('Revenues 9-14'!C260) -> 0
A162: ED-O&M-DS-TR-MR/SS-Tort | B162: Revenues 9-14, L261, Col C-G,J | C162: 4902 | D162: Race to the Top-Preschool Expansion Grant | F162: =SUM('Revenues 9-14'!C261:H261,'Revenues 9-14'!J261:K261) -> 0
A163: ED,O&M,MR/SS | B163: Revenues 9-14, L262, Col C,D,G | C163: ='Revenues 9-14'!B262 -> 4904 | D163: ='Revenues 9-14'!A262 -> Advanced Placement Fee/International Baccalaureate | F163: =SUM('Revenues 9-14'!C262,'Revenues 9-14'!D262,'Revenues 9-14'!G262) -> 0
A164: ED-TR-MR/SS | B164: Revenues 9-14, L263, Col C,F,G | C164: ='Revenues 9-14'!B263 -> 4905 | D164: ='Revenues 9-14'!A263 -> Title III - Immigrant Education Program (IEP) | F164: =SUM('Revenues 9-14'!C263,'Revenues 9-14'!F263,'Revenues 9-14'!G263) -> 0 | G164: 6306
A165: ED-TR-MR/SS | B165: Revenues 9-14, L264, Col C,F,G | C165: ='Revenues 9-14'!B264 -> 4909 | D165: ='Revenues 9-14'!A264 -> Title III - Language Inst Program - Limited Eng (LIPLEP) | F165: =SUM('Revenues 9-14'!C264,'Revenues 9-14'!F264,'Revenues 9-14'!G264) -> 17628
A166: ED-TR-MR/SS | B166: Revenues 9-14, L265, Col C,F,G | C166: ='Revenues 9-14'!B265 -> 4910 | D166: ='Revenues 9-14'!A265 -> Learn & Serve America | F166: =SUM('Revenues 9-14'!C265,'Revenues 9-14'!F265,'Revenues 9-14'!G265) -> 0
A167: ED-O&M-TR-MR/SS | B167: Revenues 9-14, L266, Col C,D,F,G | C167: ='Revenues 9-14'!B266 -> 4920 | D167: ='Revenues 9-14'!A266 -> McKinney Education for Homeless Children | F167: =SUM('Revenues 9-14'!C266,'Revenues 9-14'!D266,'Revenues 9-14'!F266,'Revenues 9-14'!G266) -> 0
A168: ED-O&M-TR-MR/SS | B168: Revenues 9-14, L267, Col C,D,F,G | C168: ='Revenues 9-14'!B267 -> 4930 | D168: ='Revenues 9-14'!A267 -> Title II - Eisenhower Professional Development Formula | F168: =SUM('Revenues 9-14'!C267:D267,'Revenues 9-14'!F267,'Revenues 9-14'!G267) -> 0
A169: ED-O&M-TR-MR/SS | B169: Revenues 9-14, L268, Col C,D,F,G | C169: ='Revenues 9-14'!B268 -> 4932 | D169: ='Revenues 9-14'!A268 -> Title II - Teacher Quality | F169: =SUM('Revenues 9-14'!C268,'Revenues 9-14'!D268,'Revenues 9-14'!F268,'Revenues 9-14'!G268) -> 413128
A170: ED-O&M-TR-MR/SS | B170: Revenues 9-14, L269, Col C,D,F,G | C170: ='Revenues 9-14'!B269 -> 4960 | D170: ='Revenues 9-14'!A269 -> Federal Charter Schools | F170: =SUM('Revenues 9-14'!C269:D269,'Revenues 9-14'!F269:G269) -> 0
A171: ED-O&M-TR-MR/SS | B171: Revenues 9-14, L270, Col C,D,F,G | C171: ='Revenues 9-14'!B270 -> 4991 | D171: ='Revenues 9-14'!A270 -> Medicaid Matching Funds - Administrative Outreach | F171: =SUM('Revenues 9-14'!C270:D270,'Revenues 9-14'!F270:G270) -> 0 | G171: 6320
A172: ED-O&M-TR-MR/SS | B172: Revenues 9-14, L271, Col C,D,F,G | C172: ='Revenues 9-14'!B271 -> 4992 | D172: ='Revenues 9-14'!A271 -> Medicaid Matching Funds - Fee-for-Service Program | F172: =SUM('Revenues 9-14'!C271:D271,'Revenues 9-14'!F271:G271) -> 48949
A173: ED-O&M-TR-MR/SS | B173: Revenues 9-14, L272, Col C,D,F,G | C173: ='Revenues 9-14'!B272 -> 4999 | D173: ='Revenues 9-14'!A272 -> Other Restricted Revenue from Federal Sources (Describe & Itemize) | F173: =SUM('Revenues 9-14'!C272:D272,'Revenues 9-14'!F272:G272) -> 112000
D175: Total Deductions for PCTC Computation Line 83 through Line 173 | E175: $ | F175: =SUM(F83:F135,F160:F173) -> 12524619
D176: Net Operating Expense for Tuition Computation (Line 76 minus Line 175) | F176: ='PCTC-OEPP 28-29'!F76-F175 -> 79179742
D177: Total Depreciation Allowance (from page 27, Line 18, Col I) | F177: ='Cap Outlay Deprec 27'!I18 -> 2564409.9
D178: Total Allowance for PCTC Computation (Line 176 minus Line 177) | F178: =F176+F177 -> 81744151.9
D179: 9 Month ADA (from the GSA Claimable for 2016-2017 Payable in 2017-2018 (ISBE form 54-33, Line 12)) | F179: ='PCTC-OEPP 28-29'!F77 -> 4256.64
D180: Total Estimated PCTC (Line 178 divided by Line 179) | E180: * $ | F180: =F178/F179 -> 19203.9148 | G180: 6323
G181: 6326
A182: * The total OEPP/PCTC may change based on the data provided. The final amounts will be calculated by ISBE

Sheet ICR Computation 30
A1: ESTIMATED INDIRECT COST RATE DATA
A2: SECTION I
A3: Financial Data To Assist Indirect Cost Rate Determination
A4: (Source document for the computation of the Indirect Cost Rate is found in the "Expenditures 15-22" tab.)
A5: ALL OBJECTS EXCLUDE CAPITAL OUTLAY. With the exception of line 11, enter the disbursements/expenditures included within the following functions charged directly to and reimbursed from federal grant programs. Also, include all amounts paid to or for other employees within each function that work with specific federal grant programs in the same capacity as those charged to and reimbursed from the same federal grant programs. For example, if a district received funding for a Title I clerk, all other salaries for Title I clerks performing like duties in that function must be included. Include any benefits and/or purchased services paid on or to persons whose salaries are classified as direct costs in the function listed.
A6: Support Services - Direct Costs (1-2000) and (5-2000)
A7: Direction of Business Support Services (1-2510) and (5-2510)
A8: Fiscal Services (1-2520) and (5-2520)
A9: Operation and Maintenance of Plant Services (1, 2, and 5-2540)
A10: Food Services (1-2560) Must be less than (P16, Col E-F, L62) | E10: 2029923
A11: Value of Commodities Received for Fiscal Year 2017 (Include the value of commodities when determining if a Single Audit is required). | E11: 143995
A12: Internal Services (1-2570) and (5-2570)
A13: Staff Services (1-2640) and (5-2640)
A14: Data Processing Services (1-2660) and (5-2660)
A15: SECTION II
A16: Estimated Indirect Cost Rate for Federal Programs
D17: Restricted Program | F17: Unrestricted Program
C18: Function | D18: Indirect Costs | E18: Direct Costs | F18: Indirect Costs | G18: Direct Costs
A19: Instruction | C19: 1000 | E19: ='Expenditures 15-22'!K33-SUM('Expenditures 15-22'!G33,'Expenditures 15-22'!I33)+'Expenditures 15-22'!D223 -> 49352564 | G19: ='Expenditures 15-22'!K33-SUM('Expenditures 15-22'!G33,'Expenditures 15-22'!I33)+'Expenditures 15-22'!D223 -> 49352564
A20: Support Services:
A21: Pupil | C21: 2100 | E21: ='Expenditures 15-22'!K42-SUM('Expenditures 15-22'!G42,'Expenditures 15-22'!I42)+'Expenditures 15-22'!K120-SUM('Expenditures 15-22'!G120,'Expenditures 15-22'!I120)+'Expenditures 15-22'!K174-SUM('Expenditures 15-22'!G174,'Expenditures 15-22'!I174)+'Expenditures 15-22'!D232 -> 5112322 | G21: ='Expenditures 15-22'!K42-SUM('Expenditures 15-22'!G42,'Expenditures 15-22'!I42)+'Expenditures 15-22'!K120-SUM('Expenditures 15-22'!G120,'Expenditures 15-22'!I120)+'Expenditures 15-22'!K174-SUM('Expenditures 15-22'!G174,'Expenditures 15-22'!I174)+'Expenditures 15-22'!D232 -> 5112322
A22: Instructional Staff | C22: 2200 | E22: ='Expenditures 15-22'!K47-SUM('Expenditures 15-22'!G47,'Expenditures 15-22'!I47)+'Expenditures 15-22'!D237 -> 2168961 | G22: ='Expenditures 15-22'!K47-SUM('Expenditures 15-22'!G47,'Expenditures 15-22'!I47)+'Expenditures 15-22'!D237 -> 2168961
A23: General Admin. | C23: 2300 | E23: ='Expenditures 15-22'!K53-SUM('Expenditures 15-22'!G53,'Expenditures 15-22'!I53)+'Expenditures 15-22'!D251+'Expenditures 15-22'!K323-SUM('Expenditures 15-22'!G323,'Expenditures 15-22'!I323) -> 3129816 | G23: ='Expenditures 15-22'!K53-SUM('Expenditures 15-22'!G53,'Expenditures 15-22'!I53)+'Expenditures 15-22'!D251+'Expenditures 15-22'!K323-SUM('Expenditures 15-22'!G323,'Expenditures 15-22'!I323) -> 3129816
A24: School Admin | C24: 2400 | E24: ='Expenditures 15-22'!K57-SUM('Expenditures 15-22'!G57,'Expenditures 15-22'!I57)+'Expenditures 15-22'!D255 -> 4819034 | G24: ='Expenditures 15-22'!K57-SUM('Expenditures 15-22'!G57,'Expenditures 15-22'!I57)+'Expenditures 15-22'!D255 -> 4819034
A25: Business:
A26: Direction of Business Spt. Srv. | C26: 2510 | D26: ='Expenditures 15-22'!K59-SUM('Expenditures 15-22'!G59,'Expenditures 15-22'!I59)+'Expenditures 15-22'!D257-E7 -> 295737 | E26: ='Expenditures 15-22'!K122-SUM('Expenditures 15-22'!G122,'Expenditures 15-22'!I122)+E7 -> 0 | F26: ='Expenditures 15-22'!K59-SUM('Expenditures 15-22'!G59,'Expenditures 15-22'!I59)+'Expenditures 15-22'!D257-E7 -> 295737 | G26: ='Expenditures 15-22'!K122-SUM('Expenditures 15-22'!G122,'Expenditures 15-22'!I122)+E7 -> 0
A27: Fiscal Services | C27: 2520 | D27: ='Expenditures 15-22'!K60-SUM('Expenditures 15-22'!G60,'Expenditures 15-22'!I60)+'Expenditures 15-22'!D258-E8 -> 1034921 | E27: =E8 -> 0 | F27: ='Expenditures 15-22'!K60-SUM('Expenditures 15-22'!G60,'Expenditures 15-22'!I60)+'Expenditures 15-22'!D258-E8 -> 1034921 | G27: =E8 -> 0
A28: Oper. & Maint. Plant Services | C28: 2540 | E28: ='Expenditures 15-22'!K61-SUM('Expenditures 15-22'!G61,'Expenditures 15-22'!I61)+'Expenditures 15-22'!K124-SUM('Expenditures 15-22'!G124,'Expenditures 15-22'!I124)+'Expenditures 15-22'!D260 -> 12560347 | F28: ='Expenditures 15-22'!K61-SUM('Expenditures 15-22'!G61,'Expenditures 15-22'!I61)+'Expenditures 15-22'!K124-SUM('Expenditures 15-22'!G124,'Expenditures 15-22'!I124)+'Expenditures 15-22'!D260-E9 -> 12560347 | G28: =E9 -> 0
A29: Pupil Transportation | C29: 2550 | E29: ='Expenditures 15-22'!K62-SUM('Expenditures 15-22'!G62,'Expenditures 15-22'!I62)+'Expenditures 15-22'!K125-SUM('Expenditures 15-22'!G125,'Expenditures 15-22'!I125)+'Expenditures 15-22'!K176-SUM('Expenditures 15-22'!G176,'Expenditures 15-22'!I176)+'Expenditures 15-22'!D261 -> 7429886 | G29: ='Expenditures 15-22'!K62-SUM('Expenditures 15-22'!G62,'Expenditures 15-22'!I62)+'Expenditures 15-22'!K125-SUM('Expenditures 15-22'!G125,'Expenditures 15-22'!I125)+'Expenditures 15-22'!K176-SUM('Expenditures 15-22'!G176,'Expenditures 15-22'!I176)+'Expenditures 15-22'!D261 -> 7429886
A30: Food Services | C30: 2560 | E30: ='Expenditures 15-22'!K63-SUM('Expenditures 15-22'!G63,'Expenditures 15-22'!I63)+'Expenditures 15-22'!D262-E10 -> 3875 | G30: ='Expenditures 15-22'!K63-SUM('Expenditures 15-22'!G63,'Expenditures 15-22'!I63)+'Expenditures 15-22'!D262-E10 -> 3875
A31: Internal Services | C31: 2570 | D31: ='Expenditures 15-22'!K64-SUM('Expenditures 15-22'!G64,'Expenditures 15-22'!I64)+'Expenditures 15-22'!D263-E12 -> 335756 | E31: =E12 -> 0 | F31: ='Expenditures 15-22'!K64-SUM('Expenditures 15-22'!G64,'Expenditures 15-22'!I64)+'Expenditures 15-22'!D263-E12 -> 335756 | G31: =E12 -> 0
A32: Central:
A33: Direction of Central Spt. Srv. | C33: 2610 | E33: ='Expenditures 15-22'!K67-SUM('Expenditures 15-22'!G67,'Expenditures 15-22'!I67)+'Expenditures 15-22'!D266 -> 0 | G33: ='Expenditures 15-22'!K67-SUM('Expenditures 15-22'!G67,'Expenditures 15-22'!I67)+'Expenditures 15-22'!D266 -> 0
A34: Plan, Rsrch, Dvlp, Eval. Srv. | C34: 2620 | E34: ='Expenditures 15-22'!K68-SUM('Expenditures 15-22'!G68,'Expenditures 15-22'!I68)+'Expenditures 15-22'!D267 -> 0 | G34: ='Expenditures 15-22'!K68-SUM('Expenditures 15-22'!G68,'Expenditures 15-22'!I68)+'Expenditures 15-22'!D267 -> 0
A35: Information Services | C35: 2630 | E35: ='Expenditures 15-22'!K69-SUM('Expenditures 15-22'!G69,'Expenditures 15-22'!I69)+'Expenditures 15-22'!D268 -> 0 | G35: ='Expenditures 15-22'!K69-SUM('Expenditures 15-22'!G69,'Expenditures 15-22'!I69)+'Expenditures 15-22'!D268 -> 0
A36: Staff Services | C36: 2640 | D36: ='Expenditures 15-22'!K70-SUM('Expenditures 15-22'!G70,'Expenditures 15-22'!I70)+'Expenditures 15-22'!D269-E13 -> 389405 | E36: =E13 -> 0 | F36: ='Expenditures 15-22'!K70-SUM('Expenditures 15-22'!G70,'Expenditures 15-22'!I70)+'Expenditures 15-22'!D269-E13 -> 389405 | G36: =E13 -> 0
A37: Data Processing Services | C37: 2660 | D37: ='Expenditures 15-22'!K71-SUM('Expenditures 15-22'!G71,'Expenditures 15-22'!I71)+'Expenditures 15-22'!D270-E14 -> 1601044 | E37: =E14 -> 0 | F37: ='Expenditures 15-22'!K71-SUM('Expenditures 15-22'!G71,'Expenditures 15-22'!I71)+'Expenditures 15-22'!D270-E14 -> 1601044 | G37: =E14 -> 0
A38: Other: | C38: 2900 | E38: ='Expenditures 15-22'!K73-SUM('Expenditures 15-22'!G73,'Expenditures 15-22'!I73)+'Expenditures 15-22'!K128-SUM('Expenditures 15-22'!G128,'Expenditures 15-22'!I128)+'Expenditures 15-22'!K177-SUM('Expenditures 15-22'!G177,'Expenditures 15-22'!I177)+'Expenditures 15-22'!D272 -> 6268 | G38: ='Expenditures 15-22'!K73-SUM('Expenditures 15-22'!G73,'Expenditures 15-22'!I73)+'Expenditures 15-22'!K128-SUM('Expenditures 15-22'!G128,'Expenditures 15-22'!I128)+'Expenditures 15-22'!K177-SUM('Expenditures 15-22'!G177,'Expenditures 15-22'!I177)+'Expenditures 15-22'!D272 -> 6268
A39: Community Services | C39: 3000 | E39: ='Expenditures 15-22'!K75-SUM('Expenditures 15-22'!G75,'Expenditures 15-22'!I75)+'Expenditures 15-22'!K130-SUM('Expenditures 15-22'!G130,'Expenditures 15-22'!I130)+'Expenditures 15-22'!K179-SUM('Expenditures 15-22'!G179,'Expenditures 15-22'!I179)+'Expenditures 15-22'!D274 -> 691561 | G39: ='Expenditures 15-22'!K75-SUM('Expenditures 15-22'!G75,'Expenditures 15-22'!I75)+'Expenditures 15-22'!K130-SUM('Expenditures 15-22'!G130,'Expenditures 15-22'!I130)+'Expenditures 15-22'!K179-SUM('Expenditures 15-22'!G179,'Expenditures 15-22'!I179)+'Expenditures 15-22'!D274 -> 691561
A40: Total | D40: =SUM(D19:D39) -> 3656863 | E40: =SUM(E19:E39) -> 85274634 | F40: =SUM(F19:F39) -> 16217210 | G40: =SUM(G19:G39) -> 72714287
D41: Restricted Rate | F41: Unrestricted Rate
D42: Total Indirect Costs: | E42: =D40 -> 3656863 | F42: Total Indirect costs: | G42: =F40 -> 16217210
D43: Total Direct Costs: | E43: =E40 -> 85274634 | F43: Total Direct Costs: | G43: =G40 -> 72714287
D44: = | E44: =(E42/E43) -> 0.04288336201 | F44: = | G44: =(G42/G43) -> 0.2230264597

Sheet Shared Outsourced Services 31
A1: REPORT ON SHARED SERVICES OR OUTSOURCING
A2: School Code, Section 17-1.1 (Public Act 97-0357)
A3: Fiscal Year Ending June 30, 2017
A5: Complete the following for attempts to improve fiscal efficiency through shared services or outsourcing in the prior, current and next fiscal years.
B6: =COVER!A17 -> Thornton Township High School District 205
B7: =COVER!A13 -> 7016205017
A8: Check if the schedule is not applicable. | B8: Prior Fiscal Year | C8: Current Fiscal Year | D8: Next Fiscal Year | E8: Name of the Local Education Agency (LEA) Participating in the Joint Agreement, Cooperative or Shared Service. | G8: FALSE
A9: Indicate with an (X) If Deficit Reduction Plan Is Required in the Budget
A10: Service or Function (Check all that apply) | D10: Barriers to Implementation | E10: (Limit text to 200 characters, for additional space use line 33 and 38)
A11: Curriculum Planning
A12: Custodial Services
A13: Educational Shared Programs | B13: X | C13: X | D13: N/A | E13: 1 of 2 participants. As part of the ECHO Joint Agreement, the District participated in the Academy for Learning (AFL) program for regular education students.
A14: Employee Benefits
A15: Energy Purchasing
A16: Food Services
A17: Grant Writing
A18: Grounds Maintenance Services
A19: Insurance | B19: X | C19: X | D19: N/A | E19: Educational Benefit Cooperative - Medical Insurance, 1 of 72 participants - Collective Liability Insurance
A20: Investment Pools | B20: X | C20: X | D20: N/A | E20: 1 of 11 participants - Thornton Township Treasurer
A21: Legal Services
A22: Maintenance Services
A23: Personnel Recruitment
A24: Professional Development
A25: Shared Personnel
A26: Special Education Cooperatives | B26: X | C26: X | D26: N/A | E26: 1 of 17 participants - ECHO Joint Agreement
A27: STEM (science, technology, engineering and math) Program Offerings
A28: Supply & Equipment Purchasing
A29: Technology Services
A30: Transportation
A31: Vocational Education Cooperatives
A32: All Other Joint/Cooperative Agreements
A33: Other
A35: Additional space for Column (D) - Barriers to Implementation:
A40: Additional space for Column (E) - Name of LEA :
A49: FALSE

Sheet AC32
F1: ILLINOIS STATE BOARD OF EDUCATION
F2: School Business Services Division (N-330)
F3: 100 North First Street
F4: Springfield, IL 62777-0001
A6: LIMITATION OF ADMINISTRATIVE COSTS WORKSHEET | H6: School District Name: | I6: =COVER!A17 -> Thornton Township High School District 205
A7: (Section 17-1.5 of the School Code) | H7: RCDT Number: | I7: =COVER!A13 -> 7016205017
E9: Actual Expenditures, Fiscal Year 2017 | H9: Budgeted Expenditures, Fiscal Year 2018
E10: (10) | F10: (20) | H10: (10) | I10: (20)
A11: Description | D11: Funct. No. | E11: Educational Fund | F11: Operations & Maintenance Fund | G11: Total | H11: Educational Fund | I11: Operations & Maintenance Fund | J11: Total
A12: 1 | B12: Executive Administration Services | D12: 2320 | E12: ='Expenditures 15-22'!K50 -> 1264963 | G12: =SUM(E12:F12) -> 1264963 | H12: 1334000 | J12: =SUM(H12:I12) -> 1334000
A13: 2 | B13: Special Area Administration Services | D13: 2330 | E13: ='Expenditures 15-22'!K51 -> 384598 | G13: 384598 | H13: 473000 | J13: 473000
A14: 3 | B14: Other Support Services - School Administration | D14: 2490 | E14: ='Expenditures 15-22'!K56 -> 85190 | G14: 85190 | H14: 0 | J14: 0
A15: 4 | B15: Direction of Business Support Services | D15: 2510 | E15: ='Expenditures 15-22'!K59 -> 280230 | F15: ='Expenditures 15-22'!K122 -> 0 | G15: 280230 | H15: 312000 | I15: 0 | J15: 312000
A16: 5 | B16: Internal Services | D16: 2570 | E16: ='Expenditures 15-22'!K64 -> 335756 | G16: 335756 | H16: 0 | J16: 0
A17: 6 | B17: Direction of Central Support Services | D17: 2610 | E17: ='Expenditures 15-22'!K67 -> 0 | G17: 0 | H17: 0 | J17: 0
A18: 7 | B18: Deduct - Early Retirement or other pension obligations required by state law and included above. | G18: 0 | J18: 0
A19: 8 | B19: Totals | E19: =SUM(E12:E17)-E18 -> 2350737 | F19: 0 | G19: 2350737 | H19: 2119000 | I19: 0 | J19: 2119000
A20: 9 | B20: Percent Increase (Decrease) for FY2018 (Budgeted) over FY2017 (Actual) | J20: =IF(AND(G19>0,J19>0),(((J19-G19)/G19)),"Enter Budget Data") -> -0.09858057282
A22: CERTIFICATION
A23: I certify that the amounts shown above as "Actual Expenditures, Fiscal Year 2017" agree with the amounts on the district's Annual Financial Report for Fiscal Year 2017.
A24: I also certify that the amounts shown above as "Budgeted Expenditures, Fiscal Year 2018" agree with the amounts on the budget adopted by the Board of Education.
C27: Signature of Superintendent | F27: Date
C29: Contact Name (for questions) | F29: Contact Telephone Number
B31: If line 9 is greater than 5% please check one box below.
C33: The District is ranked by ISBE in the lowest 25th percentile of like districts in administrative expenditures per student (4th quartile) and will waive the limitation by board action, subsequent to a public hearing. Waiver resolution must be adopted no later than June 30.
C36: The district is unable to waive the limitation by board action and will be requesting a waiver from the General Assembly pursuant to the procedures in Chapter 105 ILCS 5/2-3.25g. Waiver applications must be postmarked by August 11, 2017 to ensure inclusion in the Fall 2017 report or postmarked by January 12, 2018 to ensure inclusion in the Spring 2018 report. Information on the waiver process can be found at https://www.isbe.net/Pages/Waivers.aspx
C39: The district will amend their budget to become in compliance with the limitation. Budget amendments must be adopted no later than June 30.

Sheet Itemization 33
A2: This page is provided for detailed itemizations as requested within the body of the report.
A3: Type Below.
A5: 1 | B5: Page 10, Row 74 Other Food Service | C5: Misc. other local food revenue
A6: 2 | B6: Page 11, Row 107 Other Local Revenues | C6: E-rate revenue and Vending Maching Income
A7: 3 | B7: Page 12, Row 171 Other Restricted Revenue from State Sources | C7: Site Adm. Child Care
A8: 4 | B8: Page 13, Row 200 Food Service - Other | C8: Other Food Commodities
A9: 5 | B9: Page 14, Row 272 Other Restricted Revenue from Federal Sources | C9: Childcare Development Block Grant, DORS Grant
A10: 6 | B10: Ed Fund - Page 16, Row 56 Other Support Services - School Admin | C10: Title I Certified Stipends Summer School
A11: 7 | B11: O&M Fund - Page 17, Row 128 Other Support Services | C11: Misc. employee benefits
A12: 8 | B12: DS Fund - Page 18, Row 165 Debt Services - Other | C12: Debt issuance costs
A13: 9 | B13: IMRF Fund - Page 20, Row 254 Other Support Services - School Admin | C13: Misc. employee benefits
B14: =COVER!A17 -> Thornton Township High School District 205
B15: =COVER!A13 -> 7016205017

Sheet REF 34
A1: Reference Pages.
B3: 1 | C3: Do not enter negative numbers. Reports with negative numbers will be returned for correction.
B4: 2 | C4: GASB Statement No. 24; Accounting and Financial Reporting for Certain Grants and Other Financial Assistance. The "On Behalf of" Payments should only be reflected on this page.
B5: 3 | C5: Equals Line 8 minus Line 17
B6: 4 | C6: May require notification to the county clerk to abate an equal amount from taxes next extended. Refer to Section 17-2.11 for the applicable provisions and other "limited" transfer
C7: authority to O&M through June 30, 2013
B8: 5 | C8: Requires notification to the county clerk to abate an equal amount from taxes next extended. See Section 10-22.14
B9: 6 | C9: Use of proceeds from the sale of school sites buildings, or other real estate is limited. See Sections 5-22 and 10-22.8 of the School Code.
B10: 7 | C10: Include revenue accounts 1110 through 1115, 1117, 1118 & 1120. Include taxes for bonds sold that are in addition to those identified separately.
B11: 8 | C11: Educational Fund (10) - Computer Technology only.
B12: 9 | C12: Corporate personal property replacement tax revenue must be first applied to the Municipal Retirement/Social Security Fund to replace tax revenue lost due to the abolition of the corporate personal property tax (30 ILCS 115/12). This provision does not apply to taxes levied for Medicare-Only purposes.
B13: 10 | C13: Include only tuition payments made to private facilities. See Function 4200 or 4400 for public facility disbursements/expenditures.
B14: 11 | C14: Payment towards the retirement of lease/purchase agreements or bonded/other indebtedness (principal only) otherwise reported within the fund―e.g. alternate revenue bonds( Describe & Itemize).
B15: 12 | C15: Only abolishment of Working Cash Fund must transfer its funds directly to the Educational Fund upon adoption of a resolution and at the close of the
C16: current school Year (see 105 ILCS 5/20-8 for further explanation)
C17: Only abatement of working cash fund can transfer its funds to any fund in most need of money (see 105 ILCS 5/20-10 for further explanation)

Sheet Opinion-Notes 35
A13: [Please insert files above]
A15: Instructions to insert word doc or pdf files:
A16: Choose: Insert - Select: Object - Select Create New tab - Select file type Adobe Acrobat or Microsoft Word Document - Select Create from File tab - Select Browse - Select file that you want to embed - Check Display as icon - Select OK.
A18: If you have trouble inserting pdf files it is because you do not have
A19: the Adobe program.

Sheet DeficitAFRSum Calc 36
A1: DEFICIT ANNUAL FINANCIAL REPORT (AFR) SUMMARY INFORMATION New Provisions in the School Code, Section 17-1 (105 ILCS 5/17-1)
A2: Instructions: If the Annual Financial Report (AFR) reflects that a "deficit reduction plan" is required as calculated below, then the school district is to complete the "deficit reduction plan" in the annual budget and submit the plan to Illinois State Board of Education (ISBE) within 30 days after accepting the audit report. This may require the FY2018 annual budget to be amended to include a "deficit reduction plan" and narrative.
A3: The "deficit reduction plan" is developed using ISBE guidelines and format in the School District Budget Form 50-36. A plan is required when the operating funds listed below result in direct revenues (line 7) being less than direct expenditures (line 8) by an amount equal to or greater than one-third (1/3) of the ending fund balance (line 10). That is, if the ending fund balance is less than three times the deficit spending, the district must adopt and submit an original budget/amended budget with ISBE that provides a "deficit reduction plan" to balance the shortfall within the next three years.
A4: DEFICIT AFR SUMMARY INFORMATION - Operating Funds Only (All AFR pages must be completed to generate the following calculation)
A5: Description | B5: EDUCATIONAL FUND (10) | C5: OPERATIONS & MAINTENANCE FUND (20) | D5: TRANSPORTATION FUND (40) | E5: WORKING CASH FUND (70) | F5: TOTAL
A6: Direct Revenues | B6: ='Acct Summary 7-8'!C8 -> 82932688 | C6: ='Acct Summary 7-8'!D8 -> 6193350 | D6: ='Acct Summary 7-8'!F8 -> 9663539 | E6: ='Acct Summary 7-8'!I8 -> 549818 | F6: =SUM(B6:E6) -> 99339395
A7: Direct Expenditures | B7: ='Acct Summary 7-8'!C17 -> 80387891 | C7: ='Acct Summary 7-8'!D17 -> 11543011 | D7: ='Acct Summary 7-8'!F17 -> 7429886 | F7: =SUM(B7:E7) -> 99360788
A8: Difference | B8: =(B6-B7) -> 2544797 | C8: =(C6-C7) -> -5349661 | D8: =(D6-D7) -> 2233653 | E8: =(E6-E7) -> 549818 | F8: =SUM(F6-F7) -> -21393
A9: Fund Balance - June 30, 2017 | B9: ='Acct Summary 7-8'!C81 -> -3067182 | C9: ='Acct Summary 7-8'!D81 -> -591423 | D9: ='Acct Summary 7-8'!F81 -> 17479505 | E9: ='Acct Summary 7-8'!I81 -> 12038951 | F9: =SUM(B9:E9) -> 25859851
C10: =IF(AND(F8<0,F9>=0,ABS(F8*3)>ABS(F9)),A14,IF(AND(F8<0,F9>0,ABS(F8*3)<=ABS(F9)),A15,IF(AND(F8<0,F9<0),A14,IF(F9=0,A17,A16)))) -> Unbalanced - however, a deficit reduction plan is not required at this time.
A14: Unbalanced - a "deficit reduction plan" and narrative must be adopted and submitted to ISBE with the most current fiscal year School District Budget Form 50-36. This plan must result in a balanced operating budget within three years as adopted by the local board of education. (See the School District Budget Form 50-36 -Tab: Deficit BudgetSum Calc 20) | F14: Deficit reduction plan is required.
A15: Unbalanced - however, a deficit reduction plan is not required at this time. | F15: Deficit reduction plan is not required.
A16: Balanced - no deficit reduction plan is required. | F16: Congratulations! You have a balanced AFR.
A17: To determine if the AFR is balanced, complete all pages of the AFR first. | F17: AFR form Incomplete.

Sheet AUDITCHECK
A3: Audit Checklist
A6: All entries must balance within the individual fund statements and schedules as instructed below.
A7: Any error messages left unresolved below, will be returned to the school district/joint agreement.
B9: 1 | C9: The auditor's Opinion and Notes to the Financial Statements are embedded in the "Opinion-Notes 34" tab.
B10: =B9+1 -> 2 | C10: Student Activity Funds, Convenience Accounts, and other agency funds are included, if applicable.
B11: 3 | C11: All audit questions on page 2 are answered appropriatly by checking all that apply. This page must also be certified with the signature of the CPA firm. Comments and
C12: explanations are included for all checked items at the bottom of page 2.
B13: =B11+1 -> 4 | C13: All Other accounts and functions labeled "(describe & itemize) are properly noted on the "Itemization 32" tab.
B14: 5 | C14: In all funds, Function No. 2900 does not include Worker's Compensation or Unemployment Insurance.
B15: 6 | C15: Tuition paid to another school district or to a joint agreement (in state) is coded to Function 4200, and Other Objects (600).
B16: 7 | C16: Business Manager/Bookkeeper Costs are charged to the proper Function (No. 2510/2520).
B17: 8 | C17: If district is subject to PTELL on tab "Aud Quest 2", line 21 be sure to check the box and enter the effective date.
B18: 9 | C18: All entries were entered to the nearest whole dollar amount.
A20: Balancing Schedule
A21: Check this Section for Error Messages
A22: The following assures that various entries are in balance. Any out of balance condition is followed by an error message in RED and must be resolved before submitting
A23: to ISBE. One or more errors detected may cause this AFR to be returned for corrections and resubmission. If impossible for entries to balance please explain on the
A24: itemization page.
C26: Description: | D26: Error Message
B27: 1 | C27: Cover Page: The Accounting Basis must be Cash or Accrual.
B28: 2 | C28: The Single Audit related documents must be completed and attached.
C29: What Basis of Accounting is used? | D29: =IF(COVER!O11="X","CASH",IF(COVER!O12="X","ACCRUAL ","PLEASE CHECK AN ACCOUNTING BASIS.")) -> CASH
C30: Accounting for late payments (Audit Questionnaire Section D) | D30: =IF(COVER!O11="X","OK",IF(AND('Aud Quest 2'!J90=0,'Aud Quest 2'!H77<DATE(2017,12,31)),"ENTER ACCOUNTING INFO",IF(AND('Aud Quest 2'!J90>0,'Aud Quest 2'!H77<DATE(2017,12,31)),"OK"))) -> OK
C31: Are Federal Expenditures greater than $750,000? | D31: =IF(AND(COVER!J29="X",COVER!J30="X",COVER!L30<>"X"),"OK",IF(AND(COVER!J29="X",COVER!J30<>"X",COVER!L30="X"),"OK",IF(AND(COVER!L29="X",COVER!J30<>"X"),"OK","PLEASE CHECK YES or NO."))) -> OK
C32: Is all Single Audit information completed and enclosed? | D32: =IF(AND(COVER!J29="X",COVER!J30="X",COVER!L29<>"X"),"OK",IF(AND(COVER!J29="X",COVER!J30<>"X",COVER!L30="X"),"SENDING AN A-133 SEPERATELY!",IF(AND(COVER!L29="X",COVER!J30<>"X"),"OK","PLEASE CHECK YES or NO."))) -> OK
C33: Were any findings issued? | D33: =IF(AND(COVER!J29="X",COVER!J31="X",COVER!L29<>"X"),"OK",IF(AND(COVER!J29="X",COVER!J31<>"X",COVER!L31="X"),"NO FINDINGS WERE ISSUED",IF(AND(COVER!L29="X",COVER!J31<>"X"),"OK","PLEASE CHECK YES or NO."))) -> OK
C34: Page 2: Auditor's Questionnaire, Part C, Question 21: Check box if a tax district and enter date | D34: =IF('Aud Quest 2'!B53="X",IF('Aud Quest 2'!F53>"00/00/00 ","Enter Effective Date","ok")) -> ok
C35: Is Budget Deficit Reduction Plan Required? | D35: =IF(AND('DeficitAFRSum Calc 36'!F8<0,'DeficitAFRSum Calc 36'!F9>=0,ABS('DeficitAFRSum Calc 36'!F8*3)>ABS('DeficitAFRSum Calc 36'!F9)),'DeficitAFRSum Calc 36'!F14,IF(AND('DeficitAFRSum Calc 36'!F8<0,'DeficitAFRSum Calc 36'!F9>0,ABS('DeficitAFRSum Calc 36'!F8*3)<=ABS('DeficitAFRSum Calc 36'!F9)),'DeficitAFRSum Calc 36'!F15,IF(AND('DeficitAFRSum Calc 36'!F8<0,'DeficitAFRSum Calc 36'!F9<0),'DeficitAFRSum Calc 36'!F14,IF('DeficitAFRSum Calc 36'!F9=0,'DeficitAFRSum Calc 36'!F17,'DeficitAFRSum Calc 36'!F16)))) -> Deficit reduction plan is not required.
B36: =B28+1 -> 3 | C36: Page 3: Financial Information must be completed.
C37: Section A: Tax rates are not entered in the following format: [1.50 should be .0150]. Please enter with the correct decimal point. | D37: =IF(SUM('FP Info 3'!J10:L10)<=0.0999999,"OK","CORRECT THE TAX RATES BY MOVING THE DECIMAL TWO PLACES TO THE LEFT.") -> OK
C38: Section D: Check a or b that agrees with the school district type. | D38: =IF(OR(COVER!B6="x",'FP Info 3'!B31="X",'FP Info 3'!B32="X"),"OK","ENTRY IS REQUIRED!") -> OK
B39: =B36+1 -> 4 | C39: Page 5: Cells C4:L4 Acct 111-115 - Cash Balances cannot be negative.
C40: Fund (10) ED: Cash balances cannot be negative. | D40: =IF('Assets-Liab 5-6'!C4<-0.49, "ERROR!","OK") -> OK
C41: Fund (20) O&M: Cash balances cannot be negative. | D41: =IF('Assets-Liab 5-6'!D4<-0.49, "ERROR!","OK") -> OK
C42: Fund (30) DS: Cash balances cannot be negative. | D42: =IF('Assets-Liab 5-6'!E4<-0.49, "ERROR!","OK") -> OK
C43: Fund (40) TR: Cash balances cannot be negative. | D43: =IF('Assets-Liab 5-6'!F4<-0.49, "ERROR!","OK") -> OK
C44: Fund (50) MR/SS: Cash balances cannot be negative. | D44: =IF('Assets-Liab 5-6'!G4<-0.49, "ERROR!","OK") -> OK
C45: Fund (60) CP: Cash balances cannot be negative. | D45: =IF('Assets-Liab 5-6'!H4<-0.49, "ERROR!","OK") -> OK
C46: Fund (70) WC: Cash balances cannot be negative. | D46: =IF('Assets-Liab 5-6'!I4<-0.49, "ERROR!","OK") -> OK
C47: Fund (80) Tort: Cash balances cannot be negative. | D47: =IF('Assets-Liab 5-6'!J4<-0.49, "ERROR!","OK") -> OK
C48: Fund (90) FP&S: Cash balances cannot be negative. | D48: =IF('Assets-Liab 5-6'!K4<-0.49, "ERROR!","OK") -> OK
B49: =B39+1 -> 5 | C49: Page 5 & 6: Total Current & Capital Assets must = Total Liabilities & Fund Balance.
C50: Fund 10, Cell C13 must = Cell C41. | D50: =IF(SUM('Assets-Liab 5-6'!C13)<>SUM('Assets-Liab 5-6'!C41),"ERROR!","OK") -> OK
C51: Fund 20, Cell D13 must = Cell D41. | D51: =IF(SUM('Assets-Liab 5-6'!D13)<>SUM('Assets-Liab 5-6'!D41),"ERROR!","OK") -> OK
C52: Fund 30, Cell E13 must = Cell E41. | D52: =IF(SUM('Assets-Liab 5-6'!E13)<>SUM('Assets-Liab 5-6'!E41),"ERROR!","OK") -> OK
C53: Fund 40, Cell F13 must = Cell F41. | D53: =IF(SUM('Assets-Liab 5-6'!F13)<>SUM('Assets-Liab 5-6'!F41),"ERROR!","OK") -> OK
C54: Fund 50, Cell G13 must = Cell G41. | D54: =IF(SUM('Assets-Liab 5-6'!G13)<>SUM('Assets-Liab 5-6'!G41),"ERROR!","OK") -> OK
C55: Fund 60, Cell H13 must = Cell H41. | D55: =IF(SUM('Assets-Liab 5-6'!H13)<>SUM('Assets-Liab 5-6'!H41),"ERROR!","OK") -> OK
C56: Fund 70, Cell I13 must = Cell I41. | D56: =IF(SUM('Assets-Liab 5-6'!I13)<>SUM('Assets-Liab 5-6'!I41),"ERROR!","OK") -> OK
C57: Fund 80, Cell J13 must = Cell J41. | D57: =IF(SUM('Assets-Liab 5-6'!J13)<>SUM('Assets-Liab 5-6'!J41),"ERROR!","OK") -> OK
C58: Fund 90, Cell K13 must = Cell K41. | D58: =IF(SUM('Assets-Liab 5-6'!K13)<>SUM('Assets-Liab 5-6'!K41),"ERROR!","OK") -> OK
C59: Agency Fund, Cell L13 must = Cell L41. | D59: =IF(SUM('Assets-Liab 5-6'!L13)<>('Assets-Liab 5-6'!L41),"ERROR!","OK") -> OK
C60: General Fixed Assets, Cell M23 must = Cell M41. | D60: =IF(SUM('Assets-Liab 5-6'!M23)<>('Assets-Liab 5-6'!M41),"ERROR!","OK") -> OK
C61: General Long-Term Debt, Cell N23 must = Cell N41. | D61: =IF(SUM('Assets-Liab 5-6'!N23)<>('Assets-Liab 5-6'!N41),"ERROR!","OK") -> OK
B62: =B49+1 -> 6 | C62: Page 5: Sum of Reserved & Unreserved Fund Balance must = Page 8, Ending Fund Balance.
C63: Fund 10, Cells C38+C39 must = Cell C81. | D63: =IF('Assets-Liab 5-6'!C38+'Assets-Liab 5-6'!C39='Acct Summary 7-8'!C81,"OK","ERROR!") -> OK
C64: Fund 20, Cells D38+D39 must = Cell D81. | D64: =IF((('Assets-Liab 5-6'!D38+'Assets-Liab 5-6'!D39) ='Acct Summary 7-8'!D81), "OK", "ERROR!" ) -> OK
C65: Fund 30, Cells E38+E39 must = Cell E81 | D65: =IF((('Assets-Liab 5-6'!E38 + 'Assets-Liab 5-6'!E39) ='Acct Summary 7-8'!E81), "OK", "ERROR!" ) -> OK
C66: Fund 40, Cells F38+F39 must = Cell F81. | D66: =IF((('Assets-Liab 5-6'!F38 + 'Assets-Liab 5-6'!F39) ='Acct Summary 7-8'!F81), "OK", "ERROR!" ) -> OK
C67: Fund 50, Cells G38+G39 must = Cell G81. | D67: =IF((('Assets-Liab 5-6'!G38 + 'Assets-Liab 5-6'!G39) ='Acct Summary 7-8'!G81), "OK", "ERROR!" ) -> OK
C68: Fund 60, Cells H38+H39 must = Cell H81. | D68: =IF((('Assets-Liab 5-6'!H38 + 'Assets-Liab 5-6'!H39) ='Acct Summary 7-8'!H81), "OK", "ERROR!" ) -> OK
C69: Fund 70, Cells I38+I39 must = Cell I81. | D69: =IF((('Assets-Liab 5-6'!I38 + 'Assets-Liab 5-6'!I39) ='Acct Summary 7-8'!I81), "OK", "ERROR!" ) -> OK
C70: Fund 80, Cells J38+J39 must = Cell J81. | D70: =IF((('Assets-Liab 5-6'!J38 + 'Assets-Liab 5-6'!J39) ='Acct Summary 7-8'!J81), "OK", "ERROR!" ) -> OK
C71: Fund 90, Cells K38+K39 must = Cell K81. | D71: =IF((('Assets-Liab 5-6'!K38 + 'Assets-Liab 5-6'!K39) ='Acct Summary 7-8'!K81), "OK", "ERROR!" ) -> OK
B72: =B62+1+1 -> 8 | C72: Page 25: Schedule of Bonds Payable must = Pages 5, 8 & 18: Basic Financial Statements.
C73: Note: Explain any unreconcilable differences in the Itemization sheet.
C74: Total Long-Term Debt Issued (P25, Cell F49) must = Principal on Long-Term Debt Sold (P8, Cells C33:F33, H33:K33). | D74: =IF('Short-Term Long-Term Debt 25'!F49=SUM(,'Acct Summary 7-8'!C33:K33),"OK","ERROR!") -> OK
C75: Total Long-Term Debt (Principal) Retired (P18, Cells H163) must = Debt Service - Long-Term Debt (Principal) Retired (P25, Cells H49). | D75: =IF('Expenditures 15-22'!H164<>'Short-Term Long-Term Debt 25'!H49,"ERROR!","OK") -> OK
B76: =B72+1 -> 9 | C76: Page 7 & 8: Other Sources of Funds (L 24:42) must = Other Uses of Funds (P8, L46:59).
C77: Acct 7130 - Transfer Among Funds, Cells C27:K27 must = Acct 8130 Transfer Among Funds, Cells C49:K49 | D77: =IF(SUM('Acct Summary 7-8'!C27:K27) =SUM( 'Acct Summary 7-8'!C49:K49),"OK", "ERROR") -> OK
C78: Acct 7140 - Transfer of Interest, Cells C28:K28 must = Acct 8140 Transfer of Interest, Cells C50:K50. | D78: =IF(SUM('Acct Summary 7-8'!C28:K28)=SUM('Acct Summary 7-8'!C50:K50),"OK","ERROR!") -> OK
C79: Acct 7900 - ISBE Loan Proceeds (Cells C42:K42) must = Acct 8910 - Transfers to Debt Service Fund to Pay Principal on ISBE Loans (Cells C74:K74) | D79: =IF(SUM('Acct Summary 7-8'!C42:K42)>=SUM( 'Acct Summary 7-8'!C74:K74),"OK", "ERROR") -> OK
B80: =B76+1 -> 10 | C80: Restricted Local Tax Levies Page 26, Line 25 must = Reserved Fund Balance, Pages 5 & 6, Line 38.
C81: Reserved Fund Balance, Page 5, Cells C38:H38 must be => Reserve Fund Balance Cell G25:K25. | D81: =IF(SUM('Assets-Liab 5-6'!C38:H38)>=SUM('Rest Tax Levies-Tort Im 26'!G25:K25),"OK","ERROR") -> OK
C82: Unreserved Fund Balance, Page 5, Cells C39:H39 must be > 0 | D82: =IF(SUM('Assets-Liab 5-6'!C39:K39)>0,"OK","ENTRY IS REQUIRED!") -> OK
B83: =B80+1 -> 11 | C83: Page 5: "On behalf" payments to the Educational Fund
C84: Fund (10) ED: Account 3998 must be entered | D84: =IF(ISNUMBER('Acct Summary 7-8'!C9),"OK","ENTRY IS REQUIRED!") -> OK
B85: =B80+1+1 -> 12 | C85: Page 28: The 9 Month ADA must be entered on Line 77. | D85: =IF(OR(COVER!$B$6="X",'PCTC-OEPP 28-29'!F77>0),"OK","PLEASE ENTER 9 MO ADA.") -> OK
B86: =B85+1 -> 13 | C86: Page 32: LIMITATION OF ADMINISTRATIVE COST, Budget Information must be completed and submitted to ISBE. | D86: =IF(COVER!B5="X",IF('AC32'!J19=0,"ENTER BUDGET DATA!","OK"),"OK") -> OK
B87: =B86+1 -> 14 | C87: Page 31: SHARED OUTSOURCED SERVICES, Completed. | D87: =IF('Shared Outsourced Services 31'!G8=TRUE,"OK",IF(COUNTIF('Shared Outsourced Services 31'!$B$11:$D$33,"X"),"OK","ENTRY REQUIRED!")) -> OK

Sheet Single Audit Cover
A2: ANNUAL FEDERAL FINANCIAL COMPLIANCE REPORT (COVER SHEET)
A3: DISTRICT/JOINT AGREEMENT
A4: Year Ending June 30, 2017
A6: DISTRICT/JOINT AGREEMENT NAME | E6: RCDT NUMBER | G6: CPA FIRM 9-DIGIT STATE REGISTRATION NUMBER
A7: =COVER!A17 -> Thornton Township High School District 205 | E7: =COVER!A13 -> 7016205017 | G7: =COVER!T23 -> 066-004260
A8: ADMINISTRATIVE AGENT IF JOINT AGREEMENT (as applicable) | G8: NAME AND ADDRESS OF AUDIT FIRM
G9: =COVER!T13 -> Baker Tilly Virchow Krause, LLP
A10: =COVER!A38 -> Dr. Leotis Swopes | G10: =COVER!T17 -> 1301 West 22nd Street, Suite 400
A11: ADDRESS OF AUDITED ENTITY | G11: =COVER!T19 -> Oak Brook | J11: =COVER!X19 -> IL | K11: =COVER!Z19 -> 60523
A12: (Street and/or P.O. Box, City, State, Zip Code)
G13: E-MAIL ADDRESS: | I13: carl.thomas@bakertilly.com
A14: =COVER!A19 -> 465 East 170th Street | E14: 0 | G14: NAME OF AUDIT SUPERVISOR
A15: =COVER!A21 -> South Holland | G15: Carl Thomas, CPA
C16: =COVER!A25 -> 0
G17: CPA FIRM TELEPHONE NUMBER | K17: FAX NUMBER
G18: =COVER!T21 -> (630) 990-3131 | K18: =COVER!X21 -> (630) 990-0039
A21: THE FOLLOWING INFORMATION MUST BE INCLUDED IN THE SINGLE AUDIT REPORT:
B23: X | C23: A copy of the CPA firm's most recent peer review report and acceptance letter has been submitted to
C24: ISBE (either with the audit or under separate cover).
B26: X | C26: Financial Statements including footnotes (Title 2 CFR §200.510 (a))
B28: X | C28: Schedule of Expenditures of Federal Awards including footnotes (Title 2 CFR §200.510 (b))
B30: X | C30: Independent Auditor's Report on the Financial Statements (Title 2 CFR §200.515 (a))
B32: X | C32: Independent Auditor's Report on Internal Control Over Financial Reporting and Compliance Based on an Audit of
C33: Financial Statements Performed in Accordance with Government Auditing Standards (Title 2 CFR §200.515 (b))
B35: X | C35: Independent Auditor's Report on Compliance for Each Major Federal Program and on Internal Control Over
C36: Compliance Required by Uniform Guidance (Title 2 CFR §200.515 (c))
B38: X | C38: Schedule of Findings and Questioned Costs (Title 2 CFR §200.515 (d))
B40: X | C40: Summary Schedule of Prior Audit Findings (Title 2 CFR §200.511 (b))
B42: X | C42: Corrective Action Plan (Title 2 CFR §200.511 (c))
A44: THE FOLLOWING INFORMATION IS HIGHLY RECOMMENDED TO BE INCLUDED:
B46: X | C46: A Copy of the Federal Data Collection Form (Title 2 CFR §200.512 (b))
B48: X | C48: A Copy of each Management Letter
A51: IF THE PAPER COPY OF THE AFR IS NOT THE SAME AS THE ELECTRONIC VERSION, PLEASE NOTIFY
A52: LESLIE CLAY AT LCLAY@ISBE.NET.

Sheet Single Audit Checklist
A1: ='Single Audit Cover'!A7 -> Thornton Township High School District 205
A2: ='Single Audit Cover'!E7 -> 7016205017
A3: SINGLE AUDIT INFORMATION CHECKLIST
B5: The following checklist is OPTIONAL; it is not a required form for completion of Single Audit information. The purpose of the
B6: checklist is to assist in determining if appropriate information has been correctly completed within the Annual Financial Report (AFR).
B7: This is not a complete listing of all Single Audit requirements, but highlights some of the more common errors found during ISBE reviews.
B9: GENERAL INFORMATION
B11: X | C11: 1 | D11: Signed and dated copies of audit opinion letters have been included with audit package submitted to ISBE.
B13: X | C13: =C11+1 -> 2 | D13: All opinion letters use the most current audit language and formatting as mandated in SAS 115/SAS 117 and other pronouncements.
B15: X | C15: =C13+1 -> 3 | D15: ALL Single Audit forms within the AFR Excel workbook have been completed, where appropriate.
D16: - For those forms that are not applicable, "N/A" or similar language has been indicated.
B18: X | C18: =C15+1 -> 4 | D18: ALL Federal revenues reported in FRIS Report 0053 (Summary of Payments) are accounted for in the Schedule of Expenditures of
D19: Federal Awards (SEFA).
B21: X | C21: =C18+1 -> 5 | D21: Federal revenues reported on the AFR reconcile to Federal revenues reported on the SEFA.
D22: - Verify or reconcile on reconciliation worksheet.
B24: X | C24: =C21+1 -> 6 | D24: The total value of non-cash COMMODITIES has been included within the AFR on the INDIRECT COSTS page (ICR Computation 30) on Line 11.
D25: It should not be included in the Statement of Revenues Received (REVENUES 9-14) within the AFR Accounts 4210 - 4299.
D26: Those accounts are specific cash programs, not non-cash assistance such as COMMODITIES.
B28: X | C28: =C24+1 -> 7 | D28: Complete audit package (Data Collection Form, audit reports, etc.) has been submitted electronically to the Federal Audit Clearinghouse
D29: https://harvester.census.gov/facweb/Default.aspx
B31: SCHEDULE OF EXPENDITURES OF FEDERAL AWARDS
B33: X | C33: 8 | D33: All prior year's projects are included and reconciled to final FRIS report amounts.
D34: - Including receipt/revenue and expenditure/disbursement amounts.
B36: X | C36: =C33+1 -> 9 | D36: All current year's projects are included and reconciled to most recent FRIS report filed.
D37: - Including receipt/revenue and expenditure/disbursement amounts.
B39: X | C39: =C36+1 -> 10 | D39: Differences in reported spending amounts on the SEFA and the final FRIS reports should be detailed and/or documented in a finding,
D40: - discrepancies should be reported as Questioned Costs.
B42: N/A | C42: 11 | D42: The total amount provided to subrecipients from each Federal program is included.
B44: X | C44: =C42+1 -> 12 | D44: Prior-year and Current-year Child Nutrition Programs (CNP) are included on the SEFA (with prior-year program showing total cash received):
D45: Project year runs from October 1 to September 30, so projects will cross fiscal year;
D46: This means that audited year revenues will include funds from both the prior year and current year projects.
B48: X | C48: =C44+1 -> 13 | D48: Each CNP project should be reported on a separate line (one line per project year per program).
B50: X | C50: =C48+1 -> 14 | D50: Total CNP Revenue amounts are consistent with grant amounts awarded by ISBE for each program by project year.
B52: X | C52: =C50+1 -> 15 | D52: Total CNP Expenditure amounts are consistent with grant amounts awarded by ISBE for each program by project year.
B54: N/A | C54: =C52+1 -> 16 | D54: Exceptions should result in a finding with Questioned Costs.
B56: X | C56: =C54+1 -> 17 | D56: The total value of non-cash COMMODITIES has been reported on the SEFA (CFDA 10.555).
D57: - The value is determined from the following, with each item on a separate line:
C58: X | D58: * Non-Cash Commodities: Monthly Commodities Bulletin for April (From the Illinois Commodities System accessed through ISBE web site)
D59: Total commodities = A PAL Allocated + B PAL Allocated + Processing Deductions + Total Bonus Allocated
D60: Verify Non-Cash Commodities amount on ISBE web site: https://www.isbe.net/Pages/School-Nutrition-Programs-Food-Distribution.aspx
C61: N/A | D61: * Non-Cash Commodities: Commodities information for non-cash items received through Other Food Services
D62: Districts should track separately through year; no specific report available from ISBE
D63: Verify Non-Cash Commodities amount through Other Food Services on ISBE web site:
D64: https://www.isbe.net/Pages/School-Nutrition-Programs-Food-Distribution.aspx
C65: N/A | D65: * Department of Defense Fresh Fruits and Vegetables (District should track through year)
D66: - The two commodity programs should be reported on separate lines on the SEFA.
D67: Verify Non-Cash Commodities amount through DoD Fresh Fruits and Vegetables on ISBE web site:
D68: https://www.isbe.net/Pages/School-Nutrition-Programs-Food-Distribution.aspx
C69: N/A | D69: * Amounts verified for Fresh Fruits and Vegetables cash grant program (ISBE code 4240)
D70: CFDA number: 10.582
B72: X | C72: =C56+1 -> 18 | D72: TOTALS have been calculated for Federal revenue and expenditure amounts (Column totals).
B74: X | C74: =C72+1 -> 19 | D74: Obligations and Encumbrances are included where appropriate.
B76: X | C76: =C74+1 -> 20 | D76: FINAL STATUS amounts are calculated, where appropriate.
B78: X | C78: =C76+1 -> 21 | D78: Medicaid Fee-for-Service funds, E-Rate reimbursements and Build America Bond interest subsidies have not been included on the SEFA.
B80: X | C80: =C78+1 -> 22 | D80: All programs tested (not just Type A programs) are indicated by either an * or (M) on the SEFA.
B82: X | C82: =C80+1 -> 23 | D82: NOTES TO THE SEFA within the AFR Excel workbook (SEFA NOTES) have been completed.
D83: Including, but not limited to:
B85: X | C85: =C82+1 -> 24 | D85: Basis of Accounting
B87: X | C87: =C85+1 -> 25 | D87: Name of Entity
B89: X | C89: =C87+1 -> 26 | D89: Type of Financial Statements
B91: X | C91: =C89+1 -> 27 | D91: Subrecipient information (Mark "N/A" if not applicable)
C92: X | D92: * ARRA funds are listed separately from "regular" Federal awards
B94: SUMMARY OF AUDITOR'S RESULTS/FINDINGS/CORRECTIVE ACTION PLAN
B96: X | C96: =C91+1 -> 28 | D96: Audit opinions expressed in opinion letters match opinions reported in Summary.
B98: X | C98: =C96+1 -> 29 | D98: All Summary of Auditor Results questions have been answered.
B100: X | C100: =C98+1 -> 30 | D100: All tested programs and amounts are listed.
B102: X | C102: =C100+1 -> 31 | D102: Correct testing threshold has been entered. (Title 2 CFR §200.518)
B104: Findings have been filled out completely and correctly (if none, mark "N/A").
B106: X | C106: =C102+1 -> 32 | D106: Financial Statement and/or Federal Award Findings information has been completely filled out for each finding, with finding numbers in correct format.
B108: X | C108: 33 | D108: Finding completed for each Significant Deficiency and for each Material Weakness noted in opinion letters.
B110: X | C110: =C108+1 -> 34 | D110: Separate finding for each Federal program (i.e., don't report same finding for multiple programs on one sheet).
B112: X | C112: =C110+1 -> 35 | D112: Separate finding sheet for each finding on programs (e.g., excess interest earned and unallowable expenditures are two findings
D113: and should be reported separately, even if both are on same program).
B115: N/A | C115: =C112+1 -> 36 | D115: Questioned Costs have been calculated where there are questioned costs.
B117: N/A | C117: =C115+1 -> 37 | D117: Questioned Costs are separated by project year and by program (and sub-project, if necessary).
B119: N/A | C119: =C117+1 -> 38 | D119: Questioned Costs have been calculated for Interest Earned on Excess Cash on Hand.
D120: - Should be based on actual amount of interest earned
D121: - Questioned Cost amounts are broken out between programs if multiple programs are listed on the finding
B123: X | C123: =C119+1 -> 39 | D123: A CORRECTIVE ACTION PLAN has been completed for each finding.
D124: - Including Finding number, action plan details, projected date of completion, name and title of contact person

Sheet SEFA Reconcile
A1: ='Single Audit Cover'!A7 -> Thornton Township High School District 205
A2: ='Single Audit Cover'!E7 -> 7016205017
A4: RECONCILIATION OF FEDERAL REVENUES
B5: ='Single Audit Cover'!A4 -> Year Ending June 30, 2017
A6: Annual Financial Report to Schedule of Expenditures of Federal Awards
A8: TOTAL FEDERAL REVENUE IN AFR
A10: Account Summary 7-8, Line 7 | B10: Account 4000 | D10: =SUM('Acct Summary 7-8'!C7:K7) -> 7098683
A11: Flow-through Federal Revenues
A12: Revenues 9-14, Line 112 | B12: Account 2200 | D12: =SUM('Revenues 9-14'!C112:D112,'Revenues 9-14'!F112:G112) -> 0
A13: Value of Commodities
A14: Indirect Cost Info 30, Line 11 | D14: ='ICR Computation 30'!E11 -> 143995
A16: Less: Medicaid Fee-for-Service
A17: Revenues 9-14, Line 271 | B17: Account 4992 | D17: =-SUM('Revenues 9-14'!C271:D271,'Revenues 9-14'!F271:G271) -> -48949
A19: AFR TOTAL FEDERAL REVENUES: | D19: =SUM(D10:D17) -> 7193729
A21: ADJUSTMENTS TO AFR FEDERAL REVENUE AMOUNTS:
A23: Reason for Adjustment:
A24: Commodities counted twice above | D24: -143995
A32: ADJUSTED AFR FEDERAL REVENUES | D32: =SUM(D19:D30) -> 7049734
A34: Total Current Year Federal Revenues Reported on SEFA:
A35: Federal Revenues | B35: Column D | D35: 7049734
A37: Adjustments to SEFA Federal Revenues:
A39: Reason for Adjustment:
B47: ADJUSTED SEFA FEDERAL REVENUE: | D47: =SUM(D35:D45) -> 7049734
B49: DIFFERENCE: | D49: =D32-D47 -> 0

Sheet SEFA
B1: Thornton Township High School District 205
B2: 07-016-2050-17
B3: SCHEDULE OF EXPENDITURES OF FEDERAL AWARDS
B4: Year Ending June 30, 2017
D6: ISBE Project # | E6: Receipts/Revenues | G6: Expenditure/Disbursements4
B7: Federal Grantor/Pass-Through Grantor/ | I7: Year
B8: Subrecipients* | C8: CFDA | D8: (1st 8 digits) | E8: Year | F8: Year | G8: Year | H8: Year | I8: 7/1/16 - 6/30/17 | J8: Obligations/ | K8: Final | L8: Budget
B9: Program or Cluster Title and | C9: Number2 | D9: or Contract #3 | E9: 7/1/15-6/30/16 | F9: 7/1/16-6/30/17 | G9: 7/1/15-6/30/16 | H9: 7/1/16-6/30/17 | I9: Pass through to | J9: Encumb. | K9: Status
B10: Major Program Designation | C10: (A) | D10: (B) | E10: (C) | F10: (D) | G10: (E) | H10: (F) | I10: Subrecipients | J10: (G) | K10: (H) | L10: (I)
B11: U.S. Department of Education - Passed through Career Development System:
B13: CAREER AND TECHNICAL EDUCATION - BASIC GRANTS TO STATES
B14: Vocational Education - Perkins - Title IIC Secondary PY 16 | C14: 84.048 | D14: 16-4745-00 | E14: 235371 | F14: 95528 | G14: 330899 | H14: 0 | I14: 0 | J14: 0 | K14: =G14+H14+J14 -> 330899 | L14: 330899
B15: Vocational Education - Perkins - Title IIC Secondary PY 17 | C15: 84.048 | D15: 17-4745-00 | E15: 0 | F15: 87445 | G15: 0 | H15: 169698 | I15: 0 | J15: 0 | K15: =G15+H15+J15 -> 169698 | L15: 373017
B16: Subtotal - 84.048 - CAREER AND TECHNICAL EDUCATION -- BASIC GRANTS TO STATES | E16: =SUM(E14:E15) -> 235371 | F16: 182973 | G16: 330899 | H16: 169698 | I16: 0 | J16: 0 | K16: 500597 | L16: 703916
B18: U.S. Department of Education - Passed Through Illinois State Board of Education (ISBE):
B20: TITLE I GRANTS TO LOCAL EDUCATIONAL AGENCIES
B21: Title I Low Income PY 16 (M) | C21: 84.01 | D21: 16-4300-00 | E21: 981502 | F21: 2614908 | G21: 2449578 | H21: =3596410-G21 -> 1146832 | I21: 0 | J21: 0 | K21: =G21+H21+J21 -> 3596410 | L21: 4150929
B22: Title I Low Income PY 17 (M) | C22: 84.01 | D22: 17-4300-00 | E22: 152304 | F22: 1340260 | G22: 0 | H22: 2246915 | I22: 0 | J22: 0 | K22: =G22+H22+J22 -> 2246915 | L22: 4171582
B23: Subtotal - 84.010 - TITLE I GRANTS TO LOCAL EDUCATIONAL AGENCIES | E23: =SUM(E21:E22) -> 1133806 | F23: 3955168 | G23: 2449578 | H23: 3393747 | I23: 0 | J23: 0 | K23: 5843325 | L23: 8322511
B25: ENGLISH LANGUAGE ACQUISITION STATE GRANTS
B26: Title III - Lang Inst Prog - Limited Eng LIPLEP - PY 16 | C26: 84.365 | D26: 16-4909-00 | E26: 8940 | F26: 14379 | G26: 23319 | H26: 0 | I26: 0 | J26: 0 | K26: =G26+H26+J26 -> 23319 | L26: 37715
B27: Title III - Lang Inst Prog - Limited Eng LIPLEP - PY 17 | C27: 84.365 | D27: 17-4909-00 | E27: 0 | F27: 3249 | G27: 0 | H27: 20929 | I27: 0 | J27: 0 | K27: =G27+H27+J27 -> 20929 | L27: 43365
B28: Subtotal - 84.365 - ENGLISH LANGUAGE ACQUISITION STATE GRANTS | E28: =SUM(E26:E27) -> 8940 | F28: 17628 | G28: 23319 | H28: 20929 | I28: 0 | J28: 0 | K28: 44248 | L28: 81080
B30: IMPROVING TEACHER QUALITY STATE GRANTS
B31: Title II - Teacher Quality - PY 16 | C31: 84.367 | D31: 16-4932-00 | E31: 122813 | F31: 284601 | G31: 265169 | H31: =407414-G31 -> 142245 | I31: 0 | J31: 0 | K31: =G31+H31+J31 -> 407414 | L31: 464948
B32: Title II - Teacher Quality - PY 17 | C32: 84.367 | D32: 17-4932-00 | E32: 0 | F32: 128527 | G32: 0 | H32: 151231 | I32: 0 | J32: 0 | K32: =G32+H32+J32 -> 151231 | L32: 286661
B33: Subtotal - 84.367 - IMPROVING TEACHER QUALITY STATE GRANTS | E33: =SUM(E31:E32) -> 122813 | F33: 413128 | G33: 265169 | H33: 293476 | I33: 0 | J33: 0 | K33: 558645 | L33: 751609
B35: U.S. Department of Education - Passed through ECHO (Exceptional Children Have Opportunities):
B37: SPECIAL EDUCATION CLUSTER (IDEA)
B38: SPECIAL EDUCATION GRANTS TO STATES
B39: Special Education IDEA Flow-Through - PY 16 (M) | C39: 84.027 | D39: 16-4620-00 | E39: 361885 | F39: 638087 | G39: 930158 | H39: 69814 | I39: 0 | J39: 0 | K39: =G39+H39+J39 -> 999972 | L39: 1050752
B40: Special Education IDEA Flow-Through - PY 17 (M) | C40: 84.027 | D40: 17-4620-00 | E40: 0 | F40: 0 | G40: 0 | H40: 1161064 | I40: 0 | J40: 0 | K40: =G40+H40+J40 -> 1161064 | L40: 1512635
B42: U.S. Department of Education - Passed through Illinois State Board of Education
B43: Special Education IDEA Room & Board - PY 16 (M) | C43: 84.027 | D43: 16-4625-00 | E43: 55485 | F43: 26865 | G43: 55485 | H43: =+F43 -> 26865 | I43: 0 | J43: 0 | K43: =G43+H43+J43 -> 82350 | L43: N/A
B44: Special Education IDEA Room & Board - PY 17 (M) | C44: 84.027 | D44: 17-4625-00 | E44: 0 | F44: 40333 | G44: 0 | H44: =F44 -> 40333 | I44: 0 | J44: 0 | K44: =G44+H44+J44 -> 40333 | L44: N/A
B45: Subtotal - 84.027 - SPECIAL EDUCATION GRANTS TO STATES | E45: =SUM(E39:E44) -> 417370 | F45: =SUM(F39:F44) -> 705285 | G45: =SUM(G39:G44) -> 985643 | H45: =SUM(H39:H44) -> 1298076 | I45: 0 | J45: =SUM(J39:J44) -> 0 | K45: =SUM(K39:K44) -> 2283719 | L45: =L40+L39 -> 2563387
B47: Subtotal - SPECIAL EDUCATION CLUSTER (IDEA) | E47: =E45 -> 417370 | F47: =F45 -> 705285 | G47: 985643 | H47: 1298076 | I47: =I45 -> 0 | J47: 0 | K47: 2283719 | L47: 2563387
B49: U.S. Department of Education - Passed through Illinois Department of Healthcare and Family Services:
B51: REHABILITATION SERVICES VOCATIONAL REHABILITATION GRANTS TO STATES
B52: Department of Rehabilitation Services PY 16 | C52: 84.126 | D52: 16-4950-00 | E52: 57545 | F52: 27552 | G52: 57545 | H52: =F52 -> 27552 | I52: 0 | J52: 0 | K52: =H52+J52+G52 -> 85097 | L52: N/A
B53: Department of Rehabilitation Services PY 17 | C53: 84.126 | D53: 17-4950-00 | E53: 0 | F53: 75909 | G53: 0 | H53: =F53 -> 75909 | I53: 0 | J53: 0 | K53: =H53+J53+G53 -> 75909 | L53: N/A
B54: Subtotal - 84.126 - REHABILITATION SERVICES VOCATIONAL REHABILITATION GRANTS TO STATES | E54: =SUM(E52:E53) -> 57545 | F54: =SUM(F52:F53) -> 103461 | G54: =SUM(G52:G53) -> 57545 | H54: =SUM(H52:H53) -> 103461 | I54: 0 | J54: =SUM(J52:J53) -> 0 | K54: =SUM(K52:K53) -> 161006
B56: U.S. Department of Agriculture - Passed through Illinois State Board of Education (ISBE):
B58: CHILD NUTRITION CLUSTER
B59: NATIONAL SCHOOL LUNCH PROGRAM
B60: National School Lunch Program - PY 16 (M) | C60: 10.555 | D60: 16-4210-00 | E60: 1496131 | F60: 352338 | G60: 1496131 | H60: =F60 -> 352338 | I60: 0 | J60: 0 | K60: =G60+H60+J60 -> 1848469 | L60: N/A
B61: National School Lunch Program - PY 17 (M) | C61: 10.555 | D61: 17-4210-00 | E61: 0 | F61: 914411 | G61: 0 | H61: =+F61 -> 914411 | I61: 0 | J61: 0 | K61: =G61+H61+J61 -> 914411 | L61: N/A
B62: National School Lunch Program - Commodities - PY 16 (M) | C62: 10.555 | D62: 16-4299-00 | E62: 157154 | F62: 0 | G62: 157154 | H62: 0 | I62: 0 | J62: 0 | K62: =G62+H62+J62 -> 157154 | L62: N/A
B63: National School Lunch Program - Commodities - PY 17 (M) | C63: 10.555 | D63: 17-4299-00 | E63: 0 | F63: 143995 | G63: 0 | H63: =+F63 -> 143995 | I63: 0 | J63: 0 | K63: =G63+H63+J63 -> 143995 | L63: N/A
B64: Subtotal - 10.555 - NATIONAL SCHOOL LUNCH PROGRAM | E64: =SUM(E60:E63) -> 1653285 | F64: 1410744 | G64: 1653285 | H64: 1410744 | I64: 0 | J64: 0 | K64: 3064029
B66: SCHOOL BREAKFAST PROGRAM
B67: School Breakfast Program - PY 16 (M) | C67: 10.553 | D67: 16-4220-00 | E67: 290160 | F67: 64483 | G67: 290160 | H67: =F67 -> 64483 | I67: 0 | J67: 0 | K67: =G67+H67+J67 -> 354643 | L67: N/A
B68: School Breakfast Program - PY 17 (M) | C68: 10.553 | D68: 17-4220-00 | E68: 0 | F68: 188325 | G68: 0 | H68: =+F68 -> 188325 | I68: 0 | J68: 0 | K68: =G68+H68+J68 -> 188325 | L68: N/A
B69: Subtotal - 10.553 - SCHOOL BREAKFAST PROGRAM | E69: =SUM(E67:E68) -> 290160 | F69: 252808 | G69: 290160 | H69: 252808 | I69: 0 | J69: 0 | K69: 542968
B71: Subtotal - CHILD NUTRITION CLUSTER | E71: =E69+E64 -> 1943445 | F71: =F69+F64 -> 1663552 | G71: 1943445 | H71: 1663552 | I71: 0 | J71: 0 | K71: 3606997
B73: U.S. Department of Health & Human Services - Passed through State of Illinois Department of Healthcare and Family Services:
B75: MEDICAID CLUSTER
B76: MEDICAL ASSISTANCE PROGRAM
B77: Medicaid Matching Funds - Administrative Outreach - PY 16 | C77: 93.778 | D77: 16-4991-00 | E77: 233951 | F77: 0 | G77: 233951 | H77: 0 | I77: 0 | J77: 0 | K77: =G77+H77+J77 -> 233951 | L77: N/A
B78: Medicaid Matching Funds - Administrative Outreach - PY 17 | C78: 93.778 | D78: 17-4991-00 | E78: 0 | F78: 0 | G78: 0 | H78: 0 | I78: 0 | J78: 0 | K78: =G78+H78+J78 -> 0 | L78: N/A
B79: Subtotal - 93.778 - MEDICAL ASSISTANCE PROGRAM | E79: =SUM(E77:E78) -> 233951 | F79: 0 | G79: 233951 | H79: 0 | I79: 0 | J79: 0 | K79: 233951
B81: Subtotal - MEDICAID CLUSTER | E81: =E79 -> 233951 | F81: =F79 -> 0 | G81: 233951 | H81: 0 | I81: =I79 -> 0 | J81: 0 | K81: 233951
B83: U.S. Department of Health and Human Services Passed through Illinois Department of Human Services:
B85: CHILD CARE MANDATORY AND MATCHING FUNDS OF THE CHILD CARE AND DEVELOPMENT FUND
B86: Childcare Development Block Grant - PY 16 | C86: 93.596 | D86: 10CM001727 | E86: 56229 | F86: 0 | G86: 56229 | H86: =F86 -> 0 | I86: 0 | J86: 0 | K86: =G86+H86+J86 -> 56229 | L86: N/A
B87: Childcare Development Block Grant - PY 17 | C87: 93.596 | D87: 10CM001727 | E87: 0 | F87: 8539 | G87: 0 | H87: 8539 | I87: 0 | J87: 0 | K87: =G87+H87+J87 -> 8539 | L87: N/A
B88: Subtotal - 93.596 - CHILD CARE MANDATORY AND MATCHING FUNDS OF THE CHILD CARE AND DEVELOPMENT FUND | E88: =SUM(E86:E87) -> 56229 | F88: 8539 | G88: 56229 | H88: 8539 | I88: =SUM(I86:I87) -> 0 | J88: 0 | K88: 64768
B90: Total Federal Awards | E90: =E88+E81+E71+E54+E47+E33+E28+E23+E16 -> 4209470 | F90: =F88+F81+F71+F54+F47+F33+F28+F23+F16 -> 7049734 | G90: 6345778 | H90: 6951478 | I90: =I88+I81+I71+I54+I47+I33+I28+I23+I16 -> 0 | J90: 0 | K90: 13297256 | L90: 12422503
B92: • (M) Program was audited as a major program as defined by §200.518.
B94: * NEW - Also include the total amount provided to subrecipients from each Federal program. §200.510 (b)(4).
B96: The accompanying notes are an integral part of this schedule.
B99: 1 To meet state or other requirements, auditees may decide to include certain nonfederal awards (for example, state awards) in this schedule. If such nonfederal data are presented,
B100: they should be segregated and clearly designated as nonfederal. The title of the schedule should also be modified to indicate that nonfederal awards are included.
B102: 2 When the CFDA number is not available, the auditee should indicate that the CFDA number is not available and include in the schedule the program's name and, if applicable,
B103: other identifying number.
B105: 3 When awards are received as a subrecipient, the name of the pass-through entity and identifying number assigned by the pass-through entity must be included in the schedule. §200.510 (b)(2)
B107: 4 The Uniform Guidance requires that the value of federal awards expended in the form of non-cash assistance, the amount of insurance in effect during the year, and loans or loan guarantees
B108: outstanding at year end be included in the schedule and suggests to include the amounts in the SEFA notes.

Sheet SEFA NOTES
A1: ='Single Audit Cover'!A7 -> Thornton Township High School District 205
A2: ='Single Audit Cover'!E7 -> 7016205017
A3: NOTES TO THE SCHEDULE OF EXPENDITURES OF FEDERAL AWARDS (SEFA)
A4: ='Single Audit Cover'!A4 -> Year Ending June 30, 2017
A6: Note 1: Basis of Presentation5
A7: The accompanying Schedule of Expenditures of Federal Awards includes the federal grant activity of Thornton Township High School District 205 and is presented on the Modified Cash Basis. The information in this schedule is presented in accordance with the requirements of the Office of Management and Budget Uniform Administrative Requirements, Cost Principles, and Audit Requirements for Federal Awards. Therefore, some amounts presented in this schedule may differ from amounts presented in, or used in the preparation of, the Basic financial statements.
A9: Note 2: Indirect Facilities & Administration costs6
A10: Auditee elected to use 10% de minimis cost rate? | D10: YES | E10: X | F10: NO
A12: Note 3: Subrecipients
A13: Of the federal expenditures presented in the schedule, Thornton Township High School District 205 provided federal awards to subrecipients as follows:
C15: Federal | D15: Amount Provided to
B16: Program Title/Subrecipient Name | C16: CFDA Number | D16: Subrecipient
B17: N/A
A31: Note 4: Non-Cash Assistance
A32: The following amounts were expended in the form of non-cash assistance by Thornton Township High School District 205 and are included in the Schedule of Expenditures of Federal Awards:
A33: NON-CASH COMMODITIES (CFDA 10.555)**: | C33: 143995
A34: OTHER NON-CASH ASSISTANCE | C34: 0 | D34: Total Non-Cash | E34: =+C33+C34 -> 143995
A36: Note 5: Other Information
A37: Insurance coverage in effect paid with Federal funds during the fiscal year:
B38: Property | C38: 0
B39: Auto | C39: 0
B40: General Liability | C40: 0
B41: Workers Compensation | C41: 0
A42: Loans/Loan Guarantees Outstanding at June 30: | C42: 0
A43: District had Federal grants requiring matching expenditures | C43: No
C44: (Yes/No)
A46: ** The amount reported here should match the value reported for non-cash Commodities on the Indirect Cost Rate Computation page.
A49: 5 | B49: This note is included to meet the Uniform Guidance requirement that the schedule include notes that describe the significant accounting policies used in preparing the schedule. (§200.510 (b)(6))
A51: 6 | B51: The Uniform Guidance requires the Schedule of Expenditures of Federal Awards to note whether or not the auditee elected to use the 10% de minimis cost rate as covered in §200.414 Indirect (F&A) costs. §200.510 (b)(6)

Sheet SF&QC Sec-1
B1: ='Single Audit Cover'!A7 -> Thornton Township High School District 205
B2: ='Single Audit Cover'!E7 -> 7016205017
B3: SCHEDULE OF FINDINGS AND QUESTIONED COSTS
B4: ='Single Audit Cover'!A4 -> Year Ending June 30, 2017
B7: SECTION I - SUMMARY OF AUDITOR'S RESULTS
B10: FINANCIAL STATEMENTS
B11: Type of auditor's report issued: | C11: Disclaimer on aggregate remaining funds, Unmodified on Other Opinion Units
C12: (Unmodified, Qualified, Adverse, Disclaimer)
B14: INTERNAL CONTROL OVER FINANCIAL REPORTING:
B15: • Material weakness(es) identified? | E15: X | F15: YES | H15: None Reported
B17: • Significant Deficiency(s) identified that are not considered to
B18: be material weakness(es)? | F18: YES | G18: X | H18: None Reported
B20: • Noncompliance material to the financial statements noted? | F20: YES | G20: X | H20: NO
B22: FEDERAL AWARDS
B23: INTERNAL CONTROL OVER MAJOR PROGRAMS:
B24: • Material weakness(es) identified? | E24: X | F24: YES | H24: None Reported
B26: • Significant Deficiency(s) identified that are not considered to
B27: be material weakness(es)? | E27: X | F27: YES | H27: None Reported
B29: Type of auditor's report issued on compliance for major programs: | D29: Qualified for Child Nutrition Cluster, Unmodified for Other Major Programs
D30: (Unmodified, Qualified, Adverse, Disclaimer7)
B32: Any audit findings disclosed that are required to be reported in
B33: accordance with §200.516 (a)? | E33: X | F33: YES | H33: NO
B35: IDENTIFICATION OF MAJOR PROGRAMS:8
B37: CFDA NUMBER(S)9 | C37: NAME OF FEDERAL PROGRAM or CLUSTER10 | G37: AMOUNT OF FEDERAL PROGRAM
B38: 10.553, 10.555 | C38: Child Nutrition Cluster | G38: 1663552
B39: 84.01 | C39: Title I Grants to Local Educational Agencies | G39: 3393747
B40: 84.027 | C40: Special Education Cluster (IDEA) | G40: 1298076
C43: Total Amount Tested as Major | G43: =SUM(G38:I42) -> 6355375
B45: Total Federal Expenditures for 7/1/16-6/30/17 | D45: 6951478
B47: % tested as Major | D47: =+G43/D45 -> 0.9142480203
B49: Dollar threshold used to distinguish between Type A and Type B programs: | E49: 750000
B51: Auditee qualified as low-risk auditee? | F51: YES | G51: X | H51: NO
B54: 7 If the audit report for one or more major programs is other than unmodified, indicate the type of report issued for each program.
B55: Example: "Unmodified for all major programs except for [name of program], which was modified and [name of program], which
B56: was a disclaimer."
B58: 8 Major programs should generally be reported in the same order as they appear on the SEFA.
B60: 9 When the CFDA number is not available, include other identifying number, if applicable.
B62: 10 The name of the federal program or cluster should be the same as that listed in the SEFA. For clusters, auditors are only required to list
B63: the name of the cluster.

Sheet SF&QC Sec-2
B1: ='Single Audit Cover'!A7 -> Thornton Township High School District 205
B2: ='Single Audit Cover'!E7 -> 7016205017
B3: SCHEDULE OF FINDINGS AND QUESTIONED COSTS
B4: ='Single Audit Cover'!A4 -> Year Ending June 30, 2017
B7: SECTION II - FINANCIAL STATEMENT FINDINGS
B10: 1. FINDING NUMBER:11 | C10: 2017- | D10: 1 | F10: 2. THIS FINDING IS: | H10: New | I10: X | J10: Repeat from Prior Year?
I11: Year originally reported? | K11: 2014
B13: 3. Criteria or specific requirement
B14: The District should maintain an effective system of tracking complete capital asset records.
B16: 4. Condition
B17: The District does not have an effective system to track detailed capital asset records. The District relies on the external auditor to estimate depreciation expense and compile current year capital assets additions from the District's accounting records. The District received an updated appraisal report as of June 30, 2013, however the District has not provided the appraisal company with information to maintain an accurate and complete record of all capital assets owned by the District.
B19: 5. Context12
B20: During the course of the audit, it was noted that the District did not track capital additions during the fiscal year. The District relied on the expertise of the auditors to determine capital additions and estimate depreciation.
B22: 6. Effect
B23: The external financial statements may contain material misstatements relating to capital asset activity which have not been identified.
B25: 7. Cause
B26: The District did not track any changes to the District's capital assets during the fiscal year and could not determine depreciation expense and instead relied upon the external auditor to perform this task for financial reporting purposes.
B28: 8. Recommendation
B29: We recommend the District continuously track and maintain capital asset records, tracking all additions and deletions that occur during the year. Appropriate District personnel should also be trained and capable of calculating depreciation expense on capital assets during the year.
B31: 9. Management's response13
B32: See Corrective Action Plan
B34: For ISBE Review
B35: Date: | F35: Resolution Criteria Code Number
B36: Initials: | F36: Disposition of Questioned Costs Code Letter
B39: 11 A suggested format for assigning reference numbers is to use the digits of the fiscal year being audited followed by a numeric
B40: sequence of findings. For example, findings identified and reported in the audit of fiscal year 2017 would be assigned a reference
B41: number of 2017-001, 2017-002, etc. The sheet is formatted so that only the number need be entered (1, 2, etc.).
B42: 12 Provide sufficient information for judging the prevalence and consequences of the finding, such as relation to universe of costs and/or
B43: number of items examined and quantification of audit findings in dollars.
B44: 13 See §200.521 Management decision for additional guidance on reporting management's response.

Sheet SF&QC Sec-2 (2)
B1: ='Single Audit Cover'!A7 -> Thornton Township High School District 205
B2: ='Single Audit Cover'!E7 -> 7016205017
B3: SCHEDULE OF FINDINGS AND QUESTIONED COSTS
B4: ='Single Audit Cover'!A4 -> Year Ending June 30, 2017
B7: SECTION II - FINANCIAL STATEMENT FINDINGS
B10: 1. FINDING NUMBER:11 | C10: 2017- | D10: 2 | F10: 2. THIS FINDING IS: | H10: New | I10: X | J10: Repeat from Prior Year?
I11: Year originally reported? | K11: 2014
B13: 3. Criteria or specific requirement
B14: The District did not prepare their own completed external financial statements and Schedule of Expenditures of Federal Awards. The District's financial records should be presented to the auditor in such a manner that are free of material audit adjustments.
B16: 4. Condition
B17: The District does not currently prepare, and relies upon the external auditor to prepare, the external financial statements and the Schedule of Federal Expenditures. Multiple material adjusting journal entries were identified during the course of the audit to ensure that the financial statements were free of material errors.
B19: 5. Context12
B20: During our audit, we prepared the completed external financial statements and the Schedule of Federal Expenditures as the district was unable to do so. Material errors were present within the District's accounting records that required adjustments to ensure that the financial statements did not contain material errors.
B22: 6. Effect
B23: The District did not identify and correct material misstatements within the external financial statements and the Schedule of Federal Expenditures. The external auditor identified material audit adjustments which were presented to management and approved and relected in the audited financial statements.
B25: 7. Cause
B26: The District implemeneted a new accounting software application during the year and as a result of this several errors in the accounting records were not able to be corrected prior to the year end close process.
B28: 8. Recommendation
B29: Management should ensure that all identified material errors in the financial records are corrected in a timely fashion.
B31: 9. Management's response13
B32: See Corrective Action Plan
B34: For ISBE Review
B35: Date: | F35: Resolution Criteria Code Number
B36: Initials: | F36: Disposition of Questioned Costs Code Letter
B39: 11 A suggested format for assigning reference numbers is to use the digits of the fiscal year being audited followed by a numeric
B40: sequence of findings. For example, findings identified and reported in the audit of fiscal year 2017 would be assigned a reference
B41: number of 2017-001, 2017-002, etc. The sheet is formatted so that only the number need be entered (1, 2, etc.).
B42: 12 Provide sufficient information for judging the prevalence and consequences of the finding, such as relation to universe of costs and/or
B43: number of items examined and quantification of audit findings in dollars.
B44: 13 See §200.521 Management decision for additional guidance on reporting management's response.

Sheet SF&QC Sec-2 (3)
B1: ='Single Audit Cover'!A7 -> Thornton Township High School District 205
B2: ='Single Audit Cover'!E7 -> 7016205017
B3: SCHEDULE OF FINDINGS AND QUESTIONED COSTS
B4: ='Single Audit Cover'!A4 -> Year Ending June 30, 2017
B7: SECTION II - FINANCIAL STATEMENT FINDINGS
B10: 1. FINDING NUMBER:11 | C10: 2017- | D10: 3 | F10: 2. THIS FINDING IS: | H10: New | I10: X | J10: Repeat from Prior Year?
I11: Year originally reported? | K11: 2014
B13: 3. Criteria or specific requirement
B14: The District should maintain proper financial control over the student activity fund bank accounts and other fiduciary accounts. Bank reconciliations should be completed in a timely manner and reviewed by an individual not responsible for performing the reconciliation to ensure their completion and that this process is properly performed and documented.
B16: 4. Condition
B17: The District was unable to produce bank-to-book reconciliations for the student activity funds bank account and the flexible spending bank account for which the District functions in a role of fiduciary responsibility.
B19: 5. Context12
B20: The District does not have a formal, standard policy in place to reconcile the various accounts within the student activity fund and the flexible spending account. The accounting for these accounts is decentralized and the District does not review activity on a regular basis.
B22: 6. Effect
B23: The District is exposed to the risk that an unauthorized transaction could be recorded in the fiduciary financial statements that could result in a material misstatement of the financial statements. The external auditor was unable to render an opinion on the year end balances due to inadequate record keeping.
B25: 7. Cause
B26: The District does not have a formal process in place to ensure that bank reconciliations are performed timely and accurately for the student activity fund bank accounts.
B28: 8. Recommendation
B29: We recommend that the District implement a process that ensures that bank to book reconciliations are performed on a monthly basis for each student activity fund bank account and the flexible spending account. Further, these reconciliations and the related activity should be reviewed by District management on a regular basis.
B31: 9. Management's response13
B32: See Corrective Action Plan
B34: For ISBE Review
B35: Date: | F35: Resolution Criteria Code Number
B36: Initials: | F36: Disposition of Questioned Costs Code Letter
B39: 11 A suggested format for assigning reference numbers is to use the digits of the fiscal year being audited followed by a numeric
B40: sequence of findings. For example, findings identified and reported in the audit of fiscal year 2017 would be assigned a reference
B41: number of 2017-001, 2017-002, etc. The sheet is formatted so that only the number need be entered (1, 2, etc.).
B42: 12 Provide sufficient information for judging the prevalence and consequences of the finding, such as relation to universe of costs and/or
B43: number of items examined and quantification of audit findings in dollars.
B44: 13 See §200.521 Management decision for additional guidance on reporting management's response.

Sheet SF&QC Sec-3
B1: ='Single Audit Cover'!A7 -> Thornton Township High School District 205
B2: ='Single Audit Cover'!E7 -> 7016205017
B3: SCHEDULE OF FINDINGS AND QUESTIONED COSTS
B4: ='Single Audit Cover'!A4 -> Year Ending June 30, 2017
B6: SECTION III - FEDERAL AWARD FINDINGS AND QUESTIONED COSTS
B8: 1. FINDING NUMBER:14 | C8: 2017- | D8: 4 | F8: 2. THIS FINDING IS: | G8: X | H8: New | J8: Repeat from Prior year?
I9: Year originally reported?
B12: 3. Federal Program Name and Year: | F12: Child Nutrition Cluster
B14: 4. Project No.: | D14: 16-4220-00, 17-4220-00, 16-4210-00, 17-4210-00, 17-4299-00 | H14: 5. CFDA No.: | I14: 10.553, 10.555
B16: 6. Passed Through: | D16: Illinois State Board of Education
B17: 7. Federal Agency: | D17: U.S. Department of Agriculture
B19: 8. Criteria or specific requirement (including statutory, regulatory, or other citation)
B20: Child Nutrition Cluster requires reports to be submitted within 60 days to ISBE.
B22: 9. Condition15
B23: One monthly report had not been submitted in a timely fashion, therefore, the District was required to file a one time exception, which can be used once in every 3 years. One time exception has not been finalized and as such, the District has not yet received funds.
B25: 10. Questioned Costs16
B26: No questioned costs noted.
B28: 11. Context17
B29: It was noted that the November claims report had been submitted one day after the 60 day deadline to ISBE.
B31: 12. Effect
B32: The District has not yet received November claims submitted for reimbursement.
B34: 13. Cause
B35: The District had turnover in the department of who was responsible to file the report and District did not follow up in the appropriate amount of time in order to meet deadline.
B37: 14. Recommendation
B38: It is recommended that the District implement procedures to monitor report due dates and ensure reports are submitted timely.
B40: 15. Management's response18
B41: See corrective action plan.
B43: For ISBE Review
B44: Date: | F44: Resolution Criteria Code Number
B45: Initials: | F45: Disposition of Questioned Costs Code Letter
B48: 14 See footnote 11.
B49: 15 Include facts that support the deficiency identified on the audit finding (§200.516 (b)(3)).
B50: 16 Identify questioned costs as required by §200.516 (a)(3 - 4).
B51: 17 See footnote 12.
B52: 18 To the extent practical, indicate when management does not agree with the finding, questioned cost, or both.

Sheet SF&QC Sec-3 (2)
B1: ='Single Audit Cover'!A7 -> Thornton Township High School District 205
B2: ='Single Audit Cover'!E7 -> 7016205017
B3: SCHEDULE OF FINDINGS AND QUESTIONED COSTS
B4: ='Single Audit Cover'!A4 -> Year Ending June 30, 2017
B6: SECTION III - FEDERAL AWARD FINDINGS AND QUESTIONED COSTS
B8: 1. FINDING NUMBER:14 | C8: 2017- | D8: 5 | F8: 2. THIS FINDING IS: | G8: X | H8: New | J8: Repeat from Prior year?
I9: Year originally reported?
B12: 3. Federal Program Name and Year: | F12: Child Nutrition Cluster
B14: 4. Project No.: | D14: 16-4220-00, 17-4220-00, 16-4210-00, 17-4210-00, 17-4299-00 | H14: 5. CFDA No.: | I14: 10.553, 10.555
B16: 6. Passed Through: | D16: Illinois State Board of Education
B17: 7. Federal Agency: | D17: U.S. Department of Agriculture
B19: 8. Criteria or specific requirement (including statutory, regulatory, or other citation)
B20: Per 2 CFR 225 and 7 CFR 210.14, the District must identify all monies received by the nonprofit school food service account including, but not limited to, meal payments, earnings on investments, other local revenues, state revenues, and federal cash reimbursements. This information should be available on the statement of revenues and expenses, the general ledger, or other similar accounts. All expenses related to the revenue received should also be included in the nonprofit school food service account.
B22: 9. Condition15
B23: The District did not record revenues received for ala carte food service sales in a food service account.
B25: 10. Questioned Costs16
B26: No questioned costs noted.
B28: 11. Context17
B29: The District did not record revenues received for ala carte food service sales in a food service account.
B31: 12. Effect
B32: Maintaining improper records over the ala carte food service account risks misrepresentation of food service account financial records and related federal revenue and expenses, and may result in non-compliance with 7 CFR 210.14(f).
B34: 13. Cause
B35: The District did not establish a process to track all of its ala carte food service revenue.
B37: 14. Recommendation
B38: It is recommended that the District establish a process to track all of its ala carte food service revenue during the school year, including student and adult food sales.
B40: 15. Management's response18
B41: See corrective action plan.
B43: For ISBE Review
B44: Date: | F44: Resolution Criteria Code Number
B45: Initials: | F45: Disposition of Questioned Costs Code Letter
B48: 14 See footnote 11.
B49: 15 Include facts that support the deficiency identified on the audit finding (§200.516 (b)(3)).
B50: 16 Identify questioned costs as required by §200.516 (a)(3 - 4).
B51: 17 See footnote 12.
B52: 18 To the extent practical, indicate when management does not agree with the finding, questioned cost, or both.

Sheet SSPAF
B1: ='Single Audit Cover'!A7 -> Thornton Township High School District 205
B2: ='Single Audit Cover'!E7 -> 7016205017
B3: SUMMARY SCHEDULE OF PRIOR AUDIT FINDINGS19
B4: ='Single Audit Cover'!A4 -> Year Ending June 30, 2017
B6: Finding Number | C6: Condition | D6: Current Status20
B7: 2016-001 | C7: Management does not meet on a periodic basis to review financial information or perform a budget-to-actual analysis. Also, there was no formal review of risks facing the District, and financial procedures and controls are not documented. | D7: The District implemented a new accounting software application during the year which also resulted in management implementing new procedures to review financial information on a periodic basis to assess the District's budget to actual results. The District also realigned duties within the business office and implemented several monitoring controls to mitigate this risk in the current year. This finding was not repeated in the current year.
B8: 2016-002 | C8: Individual tasks within the expenditure process have not been segregated appropriately and adequate monitoring controls were not formally documented and could not be verified during the audit process. Deficiencies within the expenditure process did not detect errors in payments made during the year. | D8: The District implemented a new accounting software application during the year, realigned duties within the business office, and implemented several monitoring controls to mitigate this risk in the current year. This finding was not repeated in the current year.
B9: 2016-003 | C9: Accounting personnel have the ability to add or modify employee pay data and process payroll. | D9: The District implemented a new accounting software application during the year, realigned duties within the business office, and implemented several monitoring controls to mitigate this risk in the current year. This finding was not repeated in the current year.
B10: 2016-004 | C10: The District was unable to provide supporting documentation for multiple adjusting journal entries that were recorded in the financial records during the year. The District lacks a formal process to ensure that all adjusting journal entries are properly approved and supported prior to entry in the accounting records. | D10: The District implemented a new accounting software application during the year, realigned duties within the business office, and implemented several monitoring controls to mitigate this risk in the current year. Supporting documentation for adjusting journal entries was maintained and properly approved throughout the year. This finding was not repeated in the current year.
B11: 2016-005 | C11: The District does not have an effective system to track detailed capital asset records. The District relies on the external auditor to calculate depreciation expense and identify current year capital assets additions. The District received an updated appraisal report as of June 30, 2013, however the District has not provided the appraisal company with information to maintain an accurate and complete record of all capital assets owned by the District. | D11: The District relied upon the external auditor to compile capital asset additions and estimate depreciation expense for purposes of external financial report presentation in the current year. The District will engage the services of an appraisal company to assist in establishing detailed asset records and will implement procedures to track capital asset activity moving forward. Finding was not resolved in the current fiscal year.
B12: 2016-006 | C12: The District does not currently prepare, and relies upon the external auditor to prepare, the external financial statements and the Schedule of Federal Expenditures. Multiple material adjusting journal entries were identified during the course of the audit to ensure that the financial statements were not free of material errors. | D12: The District will continue to rely upon the external auditor for the preparation of the external financial reports and the Schedule of Federal Expenditures and material adjustments were identified during the course of the audit. This finding was repeated in the current year. See corrective action plan for finding 2017-002.
B13: 2016-007 | C13: The District does not adequately monitor activities outsourced to the Township Treasurer and general ledger software provider. | D13: The District implemented a new accounting software application during the year which also resulted in management implementing new procedures to review financial information on a periodic basis to assess the District's budget to actual results. The District also realigned duties within the business office and implemented several monitoring controls to mitigate this risk in the current year. This finding was not repeated in the current year.
B14: 2016-008 | C14: The District was unable to produce bank-to-book reconciliations for the student activity funds bank account and the flexible spending bank account for which the District functions in a role of fiduciary responsibility. | D14: In fiscal year 2017 the District engaged a third party consultant to review all book and bank activity associated with the Student Activity accounts and anticipates that these balances will be reconciled by June 30, 2018. Finding will be repeated in fiscal year 2017 as this process is not yet complete.
B15: 2016-009 | C15: The District submitted 2 invoices for reimbursement that were not properly approved by an authorized party. There was no documentation of an approval on the invoices, nor were there any purchase orders associated with the payment. | D15: The District has implemented a new accounting software application during fiscal year 2017 which tracks all signatures associated with purchases for approval. Each PO has to be approved by a number of people before the purchase can occur. This finding was not repeated in the current year.
B16: 2016-010 | C16: The District was unable to reproduce the general ledger detail reports from the accounting software that was utilized to prepare grant expenditure reports that could be reconciled to one another without exceptions. | D16: The District implemented a new accounting software application in the current year and implemented procedures that require grant specific expenditures to be tracked in a subset of grant specific account numbers. These account numbers are utilized to prepare grant expenditure reports throughout the year and are reviewed by an appropriate member of management throughout the year to ensure that grant expenditure reports can be reconciled to the District's grant specific account numbers. As a result of these new procedures this finding has not repeated itself in the current year.
B17: 2016-011 | C17: The person in charge of preparing meal counts is also the same person who is reviewing/approving and submitting claims to ISBE. | D17: The District implemented a procedure in FY 2017 that required a different individual to review meal claim reports to ISBE that was different than the original preparer. During the year one monthly report had not been submitted in a timely fashion (one day late), therefore, the District was required to file a one time exception, which can be used once in every 3 years. One time exception has not been finalized and as such, the District has not yet received funds as of June 30, 2017. This finding was repeated in the current year, however the District has implemented procedures in FY 2018 to ensure that this issue is not repeated again, see corrective action plan 2017-004 for further information.
B18: 2016-012 | C18: The District submitted an invoice for reimbursement that was not properly apporoved by an authorized party. There was no documentation of an approval on the invoice. | D18: The Office of Federal and State Programs and Business Operations will be working in collaboration with both the program and fiscal components. Federal Programs has instituted more stringent procedures and processes which will ensure that federal and state expenditure invoices, expenditure reports are reviewed, processed, and submitted on a monthly basis. To that end, a Fiscal Compliance Manager (FCM) position has been developed to ensure that an additional internal tier of Quality Assurance is provided in terms of fiduciary responsibilities. As a result of this all invoices are properly approved prior to payment, this finding was not repeated in the current year.
B19: 2016-013 | C19: The District is claiming more expenditures for certain Functions and Objects on the Title I Reimbursement Claim Reports than what is showing in their GL detail for the same Functions and Objects | D19: The Office of Federal and State Programs and Business Operations will be working in collaboration with both the program and fiscal components. Federal Programs has instituted more stringent procedures and processes which will ensure that federal and state expenditure invoices, expenditure reports are reviewed, processed, and submitted on a monthly basis. To that end, a Fiscal Compliance Manager (FCM) position has been developed to ensure that an additional internal tier of Quality Assurance is provided in terms of fiduciary responsibilities. The District has implemented procedures to ensure that grant specific expenditure accounts are utilized to track grant spending and these accounts are reconcilied back to expenditure reports on a periodic basis, as a result of these new procedures this finding was not repeated in the current year.
B44: When possible, all prior findings should be on the same page
B45: 19 Explanation of this schedule - §200.511 (b)
B46: 20 Current Status should include one of the following:
B47: • A statement that corrective action was taken
B48: • A description of any partial or planned corrective action
B49: • An explanation if the corrective action taken was significantly different from that previously reported
B50: or in the management decision received from the pass-through entity.

Sheet CAP
B1: ='Single Audit Cover'!A7 -> Thornton Township High School District 205
B2: ='Single Audit Cover'!E7 -> 7016205017
B3: CORRECTIVE ACTION PLAN FOR CURRENT YEAR AUDIT FINDINGS21
B4: ='Single Audit Cover'!A4 -> Year Ending June 30, 2017
B6: Corrective Action Plan
B8: Finding No.: | C8: 2017- | D8: 1
B10: Condition:
B11: The District should maintain an effective system of tracking complete capital asset records.
B13: Plan:
B14: The District will engage the services of an appraisal company to assist in establishing detailed asset records and will implement procedures to track capital asset activity moving forward.
B16: Anticipated Date of Completion: | E16: 2018-06-30
B18: Name of Contact Person: | E18: Mr. Toriano Horton
B20: Management Response: | E20: See above
B42: 21 Must address each audit finding - §200.511 ( c)

Sheet CAP (2)
B1: ='Single Audit Cover'!A7 -> Thornton Township High School District 205
B2: ='Single Audit Cover'!E7 -> 7016205017
B3: CORRECTIVE ACTION PLAN FOR CURRENT YEAR AUDIT FINDINGS21
B4: ='Single Audit Cover'!A4 -> Year Ending June 30, 2017
B6: Corrective Action Plan
B8: Finding No.: | C8: 2017- | D8: 2
B10: Condition:
B11: The District does not currently prepare, and relies upon the external auditor to prepare, the external financial statements and the Schedule of Federal Expenditures. Multiple material adjusting journal entries were identified during the course of the audit to ensure that the financial statements were not free of material errors.
B13: Plan:
B14: The District will continue to rely upon the external auditor for the preparation of the external financial reports and the Schedule of Federal Expenditures however the District will implement procedures to ensure that the accounting records are free from material errors at year end.
B16: Anticipated Date of Completion: | E16: 2018-06-30
B18: Name of Contact Person: | E18: Mr. Toriano Horton
B20: Management Response: | E20: See above
B42: 21 Must address each audit finding - §200.511 ( c)

Sheet CAP (3)
B1: ='Single Audit Cover'!A7 -> Thornton Township High School District 205
B2: ='Single Audit Cover'!E7 -> 7016205017
B3: CORRECTIVE ACTION PLAN FOR CURRENT YEAR AUDIT FINDINGS21
B4: ='Single Audit Cover'!A4 -> Year Ending June 30, 2017
B6: Corrective Action Plan
B8: Finding No.: | C8: 2017- | D8: 3
B10: Condition:
B11: The District was unable to produce bank-to-book reconciliations for the student activity funds bank account and the flexible spending bank account for which the District functions in a role of fiduciary responsibility.
B13: Plan:
B14: In fiscal year 2017 the District engaged a third party consultant to review all book and bank activity associated with the Student Activity accounts and anticipates that these balances will be reconciled by June 30, 2018.
B16: Anticipated Date of Completion: | E16: 2018-06-30
B18: Name of Contact Person: | E18: Mr. Toriano Horton
B20: Management Response: | E20: See above
B42: 21 Must address each audit finding - §200.511 ( c)

Sheet CAP (4)
B1: ='Single Audit Cover'!A7 -> Thornton Township High School District 205
B2: ='Single Audit Cover'!E7 -> 7016205017
B3: CORRECTIVE ACTION PLAN FOR CURRENT YEAR AUDIT FINDINGS21
B4: ='Single Audit Cover'!A4 -> Year Ending June 30, 2017
B6: Corrective Action Plan
B8: Finding No.: | C8: 2017- | D8: 4
B10: Condition:
B11: One monthly report had not been submitted in a timely fashion, therefore, the District was required to file a one time exception, which can be used once in every 3 years. One time exception has not been finalized and as such, the District has not yet received funds.
B13: Plan:
B14: The District has implemented procedures to ensure monthly claims are submitted within the appropriate timelines and has followed up with ISBE regarding the claim that was filed after the due date. ISBE has approved the one time exception request from the District as of November 17, 2017.
B16: Anticipated Date of Completion: | E16: 2018-06-30
B18: Name of Contact Person: | E18: Mr. Toriano Horton
B20: Management Response: | E20: See Above
B42: 21 Must address each audit finding - §200.511 ( c)

Sheet CAP (5)
B1: ='Single Audit Cover'!A7 -> Thornton Township High School District 205
B2: ='Single Audit Cover'!E7 -> 7016205017
B3: CORRECTIVE ACTION PLAN FOR CURRENT YEAR AUDIT FINDINGS21
B4: ='Single Audit Cover'!A4 -> Year Ending June 30, 2017
B6: Corrective Action Plan
B8: Finding No.: | C8: 2017- | D8: 5
B10: Condition:
B11: The District did not record revenues received for ala carte food service sales in a food service account.
B13: Plan:
B14: The District has implemented a new accounting software application in fiscal year 2017 and separate food service revenue accounts have been established and will be utilized in fiscal year 2018 to track food service revenues in accordance with the Illinois Program Accounting Manual.
B16: Anticipated Date of Completion: | E16: 2018-06-30
B18: Name of Contact Person: | E18: Mr. Toriano Horton
B20: Management Response: | E20: See Above
B42: 21 Must address each audit finding - §200.511 ( c)

Sheet AFR17 (hidden)
A1: HEADING (No Data Entry is required on this sheet) | B1: CELL AMOUNT
A2: District/Joint Agreement Code | B2: =COVER!A13 -> 7016205017
A3: County Name | B3: =COVER!A15 -> Cook
A4: District/Joint Agreement Name | B4: =COVER!A17 -> Thornton Township High School District 205
A5: District Superintendent/Administrator Name | B5: =COVER!A38 -> Dr. Leotis Swopes
A6: Name of Township | B6: =COVER!P35 -> Thornton
A7: Township Treasurer Name | B7: =COVER!I38 -> 0
A8: Regional Superintendent Name | B8: =COVER!T38 -> 0
A9: Accounting Basis | B9: =AUDITCHECK!D29 -> CASH
A10: Is this a School District AFR? (YES) | B10: =COVER!B5 -> X
A11: Is this a Joint Agreement AFR? (YES) | B11: =COVER!B6 -> 0
A12: Are Federal Expenditures greater than $750,000? (1 YES, 2 NO) | B12: =IF(COVER!J29="x","Yes",IF(COVER!L29="X","No",0)) -> Yes
A13: Is all Single Audit Information completed and attached? (1 YES, 2 NO) | B13: =IF(COVER!J30="x","Yes",IF(COVER!L30="x","No",0)) -> Yes
A14: Were any findings issued? (1 YES, 2 NO) | B14: =IF(COVER!J31="x","Yes",IF(COVER!L31="x","No",0)) -> Yes
A15: Illinois Registration Number | B15: =COVER!T23 -> 066-004260
A16: CPA Firm Name | B16: =COVER!T13 -> Baker Tilly Virchow Krause, LLP
A17: Name of Audit Supervisor | B17: =COVER!T15 -> Carl Thomas, CPA
A18: Address | B18: =COVER!T17 -> 1301 West 22nd Street, Suite 400
A19: Email Address | B19: =COVER!T25 -> carl.thomas@bakertilly.com
A20: City | B20: =COVER!T19 -> Oak Brook
A21: State | B21: =COVER!X19 -> IL
A22: Zip Code | B22: =COVER!Z19 -> 60523
A23: Telephone Number | B23: =COVER!T21 -> (630) 990-3131
A24: Fax Number | B24: =COVER!Y21 -> 0
A25: Reviewed by the District Superintendent | B25: =COVER!B34 -> 0
A26: Reviewed by Township Treasurer | B26: =COVER!L34 -> 0
A27: Reviewed by Regional Superintendent | B27: =COVER!U34 -> 0
A28: AQ1 (X=YES) | B28: =IF('Aud Quest 2'!B9="x","Yes",IF('Aud Quest 2'!B9<>"x","0")) -> 0
A29: AQ2 | B29: =IF('Aud Quest 2'!B11="x","Yes",IF('Aud Quest 2'!B11<>"x","0")) -> 0
A30: AQ3 | B30: =IF('Aud Quest 2'!B13="x","Yes",IF('Aud Quest 2'!B13<>"x","0")) -> 0
A31: AQ4 | B31: =IF('Aud Quest 2'!B14="x","Yes",IF('Aud Quest 2'!B14<>"x","0")) -> 0
A32: AQ5 | B32: =IF('Aud Quest 2'!B15="x","Yes",IF('Aud Quest 2'!B15<>"x","0")) -> 0
A33: AQ6 | B33: =IF('Aud Quest 2'!B16="x","Yes",IF('Aud Quest 2'!B16<>"x","0")) -> 0
A34: AQ7 | B34: =IF('Aud Quest 2'!B18="x","Yes",IF('Aud Quest 2'!B18<>"x","0")) -> 0
A35: AQ8 | B35: =IF('Aud Quest 2'!B20="x","Yes",IF('Aud Quest 2'!B20<>"x","0")) -> 0
A36: AQ9 | B36: =IF('Aud Quest 2'!B22="x","Yes",IF('Aud Quest 2'!B22<>"x","0")) -> 0
A37: AQ10 | B37: =IF('Aud Quest 2'!B24="x","Yes",IF('Aud Quest 2'!B24<>"x","0")) -> 0
A38: AQ11 | B38: =IF('Aud Quest 2'!B25="x","Yes",IF('Aud Quest 2'!B25<>"x","0")) -> 0
A39: AQ12 | B39: =IF('Aud Quest 2'!B27="x","Yes",IF('Aud Quest 2'!B27<>"x","0")) -> 0
A40: AQ13 | B40: =IF('Aud Quest 2'!B29="x","Yes",IF('Aud Quest 2'!B29<>"x","0")) -> 0
A41: AQ14 | B41: =IF('Aud Quest 2'!B31="x","Yes",IF('Aud Quest 2'!B31<>"x","0")) -> 0
A42: AQ15 | B42: =IF('Aud Quest 2'!B37="x","Yes",IF('Aud Quest 2'!B37<>"x","0")) -> 0
A43: AQ16 | B43: =IF('Aud Quest 2'!B40="x","Yes",IF('Aud Quest 2'!B40<>"x","0")) -> 0
A44: AQ17 | B44: =IF('Aud Quest 2'!B42="x","Yes",IF('Aud Quest 2'!B42<>"x","0")) -> 0
A45: AQ18 | B45: =IF('Aud Quest 2'!B44="x","Yes",IF('Aud Quest 2'!B44<>"x","0")) -> 0
A46: AQ19 | B46: =IF('Aud Quest 2'!B49="x","Yes",IF('Aud Quest 2'!B49<>"x","0")) -> Yes
A47: AQ20 | B47: =IF('Aud Quest 2'!B50="x","Yes",IF('Aud Quest 2'!B50<>"x","0")) -> Yes
A48: AQ21 | B48: =IF('Aud Quest 2'!B51="x","Yes",IF('Aud Quest 2'!B51<>"x","0")) -> 0
A49: AQ22 | B49: =IF('Aud Quest 2'!B53="x","Yes",IF('Aud Quest 2'!B53<>"x","0")) -> Yes
A50: AQ22 Date (If AQ22 = X, DATE) | B50: ='Aud Quest 2'!H53 -> 1995-01-01
A51: AQ23 | B51: =IF('Aud Quest 2'!B54="x","Yes",IF('Aud Quest 2'!B54<>"x","0")) -> Yes
A52: Comment1 | B52: =('Aud Quest 2'!D56) -> 0
A53: QE1(Pending Litigation) | B53: =IF('FP Info 3'!B44="X","Yes",0) -> 0
A54: QE2 (Material Decrease in EAV) | B54: =IF('FP Info 3'!B45="X","Yes",0) -> 0
A55: QE3 (Material Increase/Decrease in Enrollment) | B55: =IF('FP Info 3'!B46="X","Yes",0) -> 0
A56: QE4 (Adverse Arbitration Ruling) | B56: =IF('FP Info 3'!B47="X","Yes",0) -> 0
A57: QE5 (Passage of Referendum) | B57: =IF('FP Info 3'!B48="X","Yes",0) -> 0
A58: QE6 (Taxes Filed Under Protest) | B58: =IF('FP Info 3'!B49="X","Yes",0) -> 0
A59: QE7 (Decisions By Local Board of Review or IL Property Tax Appeal Board) | B59: =IF('FP Info 3'!B50="X","Yes",0) -> 0
A60: QE8 (Other Ongoing Concerns) | B60: =IF('FP Info 3'!B51="X","Yes",0) -> 0
A61: QE(Comment) | B61: =('FP Info 3'!A53) -> 0 | D61: =IF(ISBLANK(B62),"OK",IF(A62-B62=0,"OK","Error?")) -> OK
A62: 1 | D62: =IF(ISBLANK(B62),"OK",IF(A62-B62=0,"OK","Error?")) -> OK
A63: 2 | D63: =IF(ISBLANK(B63),"OK",IF(A63-B63=0,"OK","Error?")) -> OK
A64: 3 | D64: OK
A65: 4 | B65: ='Assets-Liab 5-6'!C6 -> 0 | D65: Error?
A66: 5 | D66: OK
A67: 6 | D67: OK
A68: 7 | D68: OK
A69: 8 | D69: OK
A70: 9 | D70: OK
A71: 10 | D71: OK
A72: 11 | B72: ='Assets-Liab 5-6'!C10 -> 0 | D72: Error?
A73: 12 | B73: ='Assets-Liab 5-6'!C5 -> 0 | D73: Error?
A74: 13 | D74: OK
A75: 14 | D75: OK
A76: 15 | B76: ='Assets-Liab 5-6'!C12 -> 0 | D76: Error?
A77: 16 | B77: ='Assets-Liab 5-6'!C13 -> 0 | C77: T | D77: Error?
A78: 17 | D78: OK
A79: 18 | D79: OK
A80: 19 | D80: OK
A81: 20 | D81: OK
A82: 21 | D82: OK
A83: 22 | D83: OK
A84: 23 | D84: OK
A85: 24 | D85: OK
A86: 25 | B86: ='Assets-Liab 5-6'!C31 -> 0 | D86: Error?
A87: 26 | D87: OK
A88: 27 | B88: ='Assets-Liab 5-6'!C32 -> -195438 | D88: Error?
A89: 28 | D89: OK
A90: 29 | D90: OK
A91: 30 | B91: ='Assets-Liab 5-6'!C34 -> 3067182 | C91: T | D91: Error?
A92: 31 | B92: ='Assets-Liab 5-6'!C39 -> -3067182 | D92: Error?
A93: 32 | B93: ='Assets-Liab 5-6'!C41 -> 0 | C93: T | D93: Error?
A94: 33 | D94: OK
A95: 34 | D95: OK
A96: 35 | D96: OK
A97: 36 | B97: ='Assets-Liab 5-6'!D6 -> 0 | D97: Error?
A98: 37 | D98: OK
A99: 38 | D99: OK
A100: 39 | D100: OK
A101: 40 | D101: OK
A102: 41 | D102: OK
A103: 42 | D103: OK
A104: 43 | B104: ='Assets-Liab 5-6'!D10 -> 0 | D104: Error?
A105: 44 | B105: ='Assets-Liab 5-6'!D5 -> 0 | D105: Error?
A106: 45 | D106: OK
A107: 46 | D107: OK
A108: 47 | B108: ='Assets-Liab 5-6'!D12 -> 0 | D108: Error?
A109: 48 | B109: ='Assets-Liab 5-6'!D13 -> 0 | C109: T | D109: Error?
A110: 49 | D110: OK
A111: 50 | D111: OK
A112: 51 | D112: OK
A113: 52 | D113: OK
A114: 53 | D114: OK
A115: 54 | D115: OK
A116: 55 | D116: OK
A117: 56 | B117: ='Assets-Liab 5-6'!D31 -> 0 | D117: Error?
A118: 57 | D118: OK
A119: 58 | B119: ='Assets-Liab 5-6'!D32 -> -12486 | D119: Error?
A120: 59 | D120: OK
A121: 60 | D121: OK
A122: 61 | B122: ='Assets-Liab 5-6'!D34 -> 591423 | C122: T | D122: Error?
A123: 62 | B123: ='Assets-Liab 5-6'!D39 -> 0 | D123: Error?
A124: 63 | B124: ='Assets-Liab 5-6'!D41 -> 0 | C124: T | D124: Error?
A125: 64 | D125: OK
A126: 65 | B126: ='Assets-Liab 5-6'!E6 -> 0 | D126: Error?
A127: 66 | D127: =IF(ISBLANK(B127),"OK",IF(A127-B127=0,"OK","Error?")) -> OK
A128: 67 | D128: OK
A129: 68 | B129: ='Assets-Liab 5-6'!E5 -> 0 | D129: Error?
A130: 69 | B130: ='Assets-Liab 5-6'!E12 -> 0 | D130: Error?
A131: 70 | B131: ='Assets-Liab 5-6'!E13 -> 4864136 | C131: T | D131: Error?
A132: 71 | D132: OK
A133: 72 | D133: OK
A134: 73 | B134: ='Assets-Liab 5-6'!E32 -> 0 | D134: Error?
A135: 74 | D135: OK
A136: 75 | D136: OK
A137: 76 | D137: OK
A138: 77 | D138: OK
A139: 78 | B139: ='Assets-Liab 5-6'!E34 -> 0 | C139: T | D139: Error?
A140: 79 | B140: ='Assets-Liab 5-6'!E39 -> 4799649 | D140: Error?
A141: 80 | B141: ='Assets-Liab 5-6'!E41 -> 4864136 | C141: T | D141: Error?
A142: 81 | D142: OK
A143: 82 | D143: OK
A144: 83 | D144: OK
A145: 84 | B145: ='Assets-Liab 5-6'!F6 -> 0 | D145: Error?
A146: 85 | D146: OK
A147: 86 | D147: OK
A148: 87 | D148: OK
A149: 88 | D149: OK
A150: 89 | D150: OK
A151: 90 | D151: OK
A152: 91 | B152: ='Assets-Liab 5-6'!F10 -> 0 | D152: Error?
A153: 92 | B153: ='Assets-Liab 5-6'!F5 -> 0 | D153: Error?
A154: 93 | D154: OK
A155: 94 | D155: OK
A156: 95 | B156: ='Assets-Liab 5-6'!F12 -> 0 | D156: Error?
A157: 96 | B157: ='Assets-Liab 5-6'!F13 -> 17479505 | C157: T | D157: Error?
A158: 97 | D158: OK
A159: 98 | D159: OK
A160: 99 | D160: OK
A161: 100 | D161: OK
A162: 101 | D162: OK
A163: 102 | D163: OK
A164: 103 | B164: ='Assets-Liab 5-6'!F31 -> 0 | D164: Error?
A165: 104 | D165: OK
A166: 105 | B166: ='Assets-Liab 5-6'!F32 -> 0 | D166: Error?
A167: 106 | D167: OK
A168: 107 | D168: OK
A169: 108 | B169: ='Assets-Liab 5-6'!F34 -> 0 | C169: T | D169: Error?
A170: 109 | B170: ='Assets-Liab 5-6'!F39 -> 17009032 | D170: Error?
A171: 110 | B171: ='Assets-Liab 5-6'!F41 -> 17479505 | C171: T | D171: Error?
A172: 111 | D172: OK
A173: 112 | B173: ='Assets-Liab 5-6'!G6 -> 0 | D173: Error?
A174: 113 | D174: OK
A175: 114 | D175: OK
A176: 115 | D176: OK
A177: 116 | B177: ='Assets-Liab 5-6'!G5 -> 0 | D177: Error?
A178: 117 | D178: OK
A179: 118 | B179: ='Assets-Liab 5-6'!G12 -> 0 | D179: Error?
A180: 119 | B180: ='Assets-Liab 5-6'!G13 -> 2676109 | C180: T | D180: Error?
A181: 120 | D181: OK
A182: 121 | D182: OK
A183: 122 | D183: OK
A184: 123 | B184: ='Assets-Liab 5-6'!G31 -> 0 | D184: Error?
A185: 124 | B185: ='Assets-Liab 5-6'!G32 -> 0 | D185: Error?
A186: 125 | D186: OK
A187: 126 | D187: OK
A188: 127 | B188: ='Assets-Liab 5-6'!G34 -> 0 | C188: T | D188: Error?
A189: 128 | B189: ='Assets-Liab 5-6'!G39 -> 2624537 | D189: Error?
A190: 129 | B190: ='Assets-Liab 5-6'!G41 -> 2676109 | C190: T | D190: Error?
A191: 130 | D191: =IF(ISBLANK(B191),"OK",IF(A191-B191=0,"OK","Error?")) -> OK
A192: 131 | D192: OK
A193: 132 | D193: OK
A194: 133 | D194: OK
A195: 134 | D195: OK
A196: 135 | D196: OK
A197: 136 | D197: OK
A198: 137 | B198: ='Assets-Liab 5-6'!H10 -> 0 | D198: Error?
A199: 138 | B199: ='Assets-Liab 5-6'!H5 -> 0 | D199: Error?
A200: 139 | D200: OK
... 7600 more rows
